Council Name,Date,TransNo,Amount � (Excl VAT),Supplier name,Supplier Category,Expense Area,Expense Type,Expense Code,Unclaimed VAT
London Borough of Sutton,01/09/2022,20031335,"1,908.76",ADAM HTT LTD,TAXI AND COACH HIRE,Peoples Services,Childrens Social Care Transport,A32009,0
London Borough of Sutton,01/09/2022,20031418,952.14,Albany Housing YP Ltd,CARE LEAVERS,Peoples Services,Approved Lodgings,A61000,0
London Borough of Sutton,01/09/2022,20031584,"1,543.36",Allstar Business Solutions,FUEL AND VEHICLE SUPPLIES,Environment Housing and Neighbourhoods,Vehicles -  Fuel,A30015,0
London Borough of Sutton,01/09/2022,50247524,"1,312.36",Ashlong House Ltd,SOCIAL SERVICES RESIDENTIAL,Peoples Services,Supported Living,A56088,0
London Borough of Sutton,01/09/2022,50247528,"1,915.00",Ashlong House Ltd,SOCIAL SERVICES RESIDENTIAL,Peoples Services,Supported Living,A56088,0
London Borough of Sutton,01/09/2022,50255474,"1,065.84",Ashlong House Ltd,SOCIAL SERVICES RESIDENTIAL,Peoples Services,Supported Living,A56088,0
London Borough of Sutton,01/09/2022,20031358,"5,729.22",Beeches Tree Care,AGRICULTURAL & ESTATE SERVICES,Environment Housing and Neighbourhoods,Highway Trees - Maintenance,A28005,0
London Borough of Sutton,01/09/2022,20031432,"1,178.54",By The Bridge Ltd,CHILDREN'S SERVICES - FOSTERING & ADOPTION SERVICES,Peoples Services,Approved Lodgings,A61000,0
London Borough of Sutton,01/09/2022,50248787,"2,975.69",By The Bridge Ltd,CHILDREN'S SERVICES - FOSTERING & ADOPTION SERVICES,Peoples Services,Foster Parents Support,A44110,0
London Borough of Sutton,01/09/2022,50248789,"2,975.69",By The Bridge Ltd,CHILDREN'S SERVICES - FOSTERING & ADOPTION SERVICES,Peoples Services,Foster Parents Support,A44110,0
London Borough of Sutton,01/09/2022,50248852,"4,667.05",By The Bridge Ltd,CHILDREN'S SERVICES - FOSTERING & ADOPTION SERVICES,Peoples Services,Foster Parents Support,A44110,0
London Borough of Sutton,01/09/2022,20031393,"2,617.80",C&L Properties,SUNDRY SUPPLIER - HOUSING,Environment Housing and Neighbourhoods,Rent Deposit Scheme,B32179,0
London Borough of Sutton,01/09/2022,50246766,"1,400.00",Care More Ltd,SOCIAL SERVICES RESIDENTIAL,Peoples Services,Home Care Services,A56019,0
London Borough of Sutton,01/09/2022,20031486,580.00,Caremark (Sutton),SOCIAL SERVICES DAY CARE,Peoples Services,Home Care Services,A56019,0
London Borough of Sutton,01/09/2022,20031354,"9,078.57",Caremore Group Ltd,CHILDREN'S SERVICES - FOSTERING & ADOPTION SERVICES,Peoples Services,Approved Lodgings,A61000,0
London Borough of Sutton,01/09/2022,20031420,"7,727.86",Caremore Group Ltd,CHILDREN'S SERVICES - FOSTERING & ADOPTION SERVICES,Peoples Services,Approved Lodgings,A61000,0
London Borough of Sutton,01/09/2022,50248840,"9,997.50",Caremore Group Ltd,CHILDREN'S SERVICES - FOSTERING & ADOPTION SERVICES,Peoples Services,Approved Lodgings,A61000,0
London Borough of Sutton,01/09/2022,20031538,"32,043.70",Caysh Housing Project,SOCIAL SERVICES RESIDENTIAL,Peoples Services,Approved Lodgings,A61000,0
London Borough of Sutton,01/09/2022,50256625,"1,400.00",Christchurch Fledgelings Pre-School,GRANTS & EX GRATIA PAYMENTS,Peoples Services,SEND Inclusion funding,A60038,0
London Borough of Sutton,01/09/2022,50251814,"2,125.00",Connect Fostering Services Ltd,CHILDREN'S SERVICES - FOSTERING & ADOPTION SERVICES,Peoples Services,Foster Parents Support,A44110,0
London Borough of Sutton,01/09/2022,20031638,"2,170.00",Delta Wise Limited,ACCOMMODATION BED & BREAKFAST,Environment Housing and Neighbourhoods,Bed & Breakfast,A56000,0
London Borough of Sutton,01/09/2022,20031639,"1,333.00",Delta Wise Limited,ACCOMMODATION BED & BREAKFAST,Environment Housing and Neighbourhoods,Bed & Breakfast,A56000,0
London Borough of Sutton,01/09/2022,20031640,"3,720.00",Delta Wise Limited,ACCOMMODATION BED & BREAKFAST,Environment Housing and Neighbourhoods,Bed & Breakfast,A56000,0
London Borough of Sutton,01/09/2022,20031641,"1,085.00",Delta Wise Limited,ACCOMMODATION BED & BREAKFAST,Environment Housing and Neighbourhoods,Bed & Breakfast,A56000,0
London Borough of Sutton,01/09/2022,20031642,"3,255.00",Delta Wise Limited,ACCOMMODATION BED & BREAKFAST,Environment Housing and Neighbourhoods,Bed & Breakfast,A56000,0
London Borough of Sutton,01/09/2022,20031643,"2,170.00",Delta Wise Limited,ACCOMMODATION BED & BREAKFAST,Environment Housing and Neighbourhoods,Bed & Breakfast,A56000,0
London Borough of Sutton,01/09/2022,20031644,"2,170.00",Delta Wise Limited,ACCOMMODATION BED & BREAKFAST,Environment Housing and Neighbourhoods,Bed & Breakfast,A56000,0
London Borough of Sutton,01/09/2022,20031399,601.09,DSI Billing Services Ltd,OFFICE SERVICES,Resources,Postage & Couriers,A45015,0
London Borough of Sutton,01/09/2022,20031399,601.08,DSI Billing Services Ltd,OFFICE SERVICES,Resources,Postage & Couriers,A45015,0
London Borough of Sutton,01/09/2022,50251812,"4,926.77",Dynamic Care Ltd,SOCIAL SERVICES RESIDENTIAL,Peoples Services,Approved Lodgings,A61000,0
London Borough of Sutton,01/09/2022,50251816,"4,066.04",Dynamic Care Ltd,SOCIAL SERVICES RESIDENTIAL,Peoples Services,Approved Lodgings,A61000,0
London Borough of Sutton,01/09/2022,20031610,928.33,EDF Energy,UTILITIES,Environment Housing and Neighbourhoods,Electricity,A21000,0
London Borough of Sutton,01/09/2022,20031993,"10,804.46",EDF Energy,UTILITIES,Resources,Electricity,A21000,0
London Borough of Sutton,01/09/2022,20032799,"11,920.00",Fern Court London Limited,ACCOMMODATION BED & BREAKFAST,Environment Housing and Neighbourhoods,Bed & Breakfast,A56000,0
London Borough of Sutton,01/09/2022,20031355,"3,450.00",Global Resourcing Limited,TEMP STAFF & CONSULTANCY,Resources,Agency Staff - Other,A10505,0
London Borough of Sutton,01/09/2022,50245998,"3,324.24",REDACTED - PERSONAL DATA,REFUND,Peoples Services,Miscellaneous Expenses,A49000,0
London Borough of Sutton,01/09/2022,20031345,"3,518.00",REDACTED - PERSONAL DATA,GRANTS & EX GRATIA PAYMENTS,Environment Housing and Neighbourhoods,Temporary Protection - Homeless Persons,A62028,0
London Borough of Sutton,01/09/2022,50248786,"50,211.00",Houses Of Hope Care Group Ltd,CHILDREN'S SERVICE - OTHER,Peoples Services,Residential Care-Children,A56115,0
London Borough of Sutton,01/09/2022,20031514,"9,588.00",Icongrove Ltd,PLS LANDLORDS,Environment Housing and Neighbourhoods,Temporary Protection - Homeless Persons,A62028,0
London Borough of Sutton,01/09/2022,50248764,"2,367.85",Independence Way Ltd,LANDLORDS,Peoples Services,Accommodation - Supported Living,A62001,0
London Borough of Sutton,01/09/2022,50248764,151.79,Independence Way Ltd,LANDLORDS,Peoples Services,Accommodation - Supported Living,A62001,0
London Borough of Sutton,01/09/2022,50246003,"14,617.16",Integrated Services Programme,SOCIAL SERVICES RESIDENTIAL,Peoples Services,Independent School Fees,A56002,0
London Borough of Sutton,01/09/2022,50248758,"17,361.79",Jurita Limited,SOCIAL SERVICES RESIDENTIAL,Peoples Services,Residential Care-Children,A56115,0
London Borough of Sutton,01/09/2022,50246779,564.50,Kare 4 You Surrey Ltd,SOCIAL SERVICES-HOME CARE,Peoples Services,Home Care Services,A56019,0
London Borough of Sutton,01/09/2022,50246780,"1,477.25",Kare 4 You Surrey Ltd,SOCIAL SERVICES-HOME CARE,Peoples Services,Home Care Services,A56019,0
London Borough of Sutton,01/09/2022,50246781,"1,552.25",Kare 4 You Surrey Ltd,SOCIAL SERVICES-HOME CARE,Peoples Services,Home Care Services,A56019,0
London Borough of Sutton,01/09/2022,50246782,645.25,Kare 4 You Surrey Ltd,SOCIAL SERVICES-HOME CARE,Peoples Services,Home Care Services,A56019,0
London Borough of Sutton,01/09/2022,50246783,691.00,Kare 4 You Surrey Ltd,SOCIAL SERVICES-HOME CARE,Peoples Services,Home Care Services,A56019,0
London Borough of Sutton,01/09/2022,50246786,"1,136.50",Kare 4 You Surrey Ltd,SOCIAL SERVICES-HOME CARE,Peoples Services,Home Care Services,A56019,0
London Borough of Sutton,01/09/2022,50246788,"2,157.75",Kare 4 You Surrey Ltd,SOCIAL SERVICES-HOME CARE,Peoples Services,Home Care Services,A56019,0
London Borough of Sutton,01/09/2022,50246789,"1,006.50",Kare 4 You Surrey Ltd,SOCIAL SERVICES-HOME CARE,Peoples Services,Home Care Services,A56019,0
London Borough of Sutton,01/09/2022,50246791,"1,220.50",Kare 4 You Surrey Ltd,SOCIAL SERVICES-HOME CARE,Peoples Services,Home Care Services,A56019,0
London Borough of Sutton,01/09/2022,50246792,693.50,Kare 4 You Surrey Ltd,SOCIAL SERVICES-HOME CARE,Peoples Services,Home Care Services,A56019,0
London Borough of Sutton,01/09/2022,50246793,619.75,Kare 4 You Surrey Ltd,SOCIAL SERVICES-HOME CARE,Peoples Services,Home Care Services,A56019,0
London Borough of Sutton,01/09/2022,50246794,"1,741.29",Kare 4 You Surrey Ltd,SOCIAL SERVICES-HOME CARE,Peoples Services,Home Care Services,A56019,0
London Borough of Sutton,01/09/2022,50246796,502.25,Kare 4 You Surrey Ltd,SOCIAL SERVICES-HOME CARE,Peoples Services,Home Care Services,A56019,0
London Borough of Sutton,01/09/2022,50246798,941.50,Kare 4 You Surrey Ltd,SOCIAL SERVICES-HOME CARE,Peoples Services,Home Care Services,A56019,0
London Borough of Sutton,01/09/2022,50246800,820.25,Kare 4 You Surrey Ltd,SOCIAL SERVICES-HOME CARE,Peoples Services,Home Care Services,A56019,0
London Borough of Sutton,01/09/2022,50246803,"3,896.00",Kare 4 You Surrey Ltd,SOCIAL SERVICES-HOME CARE,Peoples Services,Home Care Services,A56019,0
London Borough of Sutton,01/09/2022,50246806,853.25,Kare 4 You Surrey Ltd,SOCIAL SERVICES-HOME CARE,Peoples Services,Home Care Services,A56019,0
London Borough of Sutton,01/09/2022,50246807,"1,542.25",Kare 4 You Surrey Ltd,SOCIAL SERVICES-HOME CARE,Peoples Services,Home Care Services,A56019,0
London Borough of Sutton,01/09/2022,50246809,935.50,Kare 4 You Surrey Ltd,SOCIAL SERVICES-HOME CARE,Peoples Services,Home Care Services,A56019,0
London Borough of Sutton,01/09/2022,50246810,"1,948.00",Kare 4 You Surrey Ltd,SOCIAL SERVICES-HOME CARE,Peoples Services,Home Care Services,A56019,0
London Borough of Sutton,01/09/2022,50246811,"2,450.00",Kare 4 You Surrey Ltd,SOCIAL SERVICES-HOME CARE,Peoples Services,Home Care Services,A56019,0
London Borough of Sutton,01/09/2022,50246812,"2,013.00",Kare 4 You Surrey Ltd,SOCIAL SERVICES-HOME CARE,Peoples Services,Home Care Services,A56019,0
London Borough of Sutton,01/09/2022,50246813,"1,006.50",Kare 4 You Surrey Ltd,SOCIAL SERVICES-HOME CARE,Peoples Services,Home Care Services,A56019,0
London Borough of Sutton,01/09/2022,50246815,552.00,Kare 4 You Surrey Ltd,SOCIAL SERVICES-HOME CARE,Peoples Services,Home Care Services,A56019,0
London Borough of Sutton,01/09/2022,50246816,623.50,Kare 4 You Surrey Ltd,SOCIAL SERVICES-HOME CARE,Peoples Services,Home Care Services,A56019,0
London Borough of Sutton,01/09/2022,50246817,588.50,Kare 4 You Surrey Ltd,SOCIAL SERVICES-HOME CARE,Peoples Services,Home Care Services,A56019,0
London Borough of Sutton,01/09/2022,50246818,"3,896.00",Kare 4 You Surrey Ltd,SOCIAL SERVICES-HOME CARE,Peoples Services,Home Care Services,A56019,0
London Borough of Sutton,01/09/2022,50246819,"1,430.45",Kare 4 You Surrey Ltd,SOCIAL SERVICES-HOME CARE,Peoples Services,Home Care Services,A56019,0
London Borough of Sutton,01/09/2022,50246820,620.75,Kare 4 You Surrey Ltd,SOCIAL SERVICES-HOME CARE,Peoples Services,Home Care Services,A56019,0
London Borough of Sutton,01/09/2022,50246822,531.00,Kare 4 You Surrey Ltd,SOCIAL SERVICES-HOME CARE,Peoples Services,Home Care Services,A56019,0
London Borough of Sutton,01/09/2022,50246823,"2,054.50",Kare 4 You Surrey Ltd,SOCIAL SERVICES-HOME CARE,Peoples Services,Home Care Services,A56019,0
London Borough of Sutton,01/09/2022,50246825,"1,623.75",Kare 4 You Surrey Ltd,SOCIAL SERVICES-HOME CARE,Peoples Services,Home Care Services,A56019,0
London Borough of Sutton,01/09/2022,50246826,"1,412.25",Kare 4 You Surrey Ltd,SOCIAL SERVICES-HOME CARE,Peoples Services,Home Care Services,A56019,0
London Borough of Sutton,01/09/2022,50246827,"1,324.00",Kare 4 You Surrey Ltd,SOCIAL SERVICES-HOME CARE,Peoples Services,Home Care Services,A56019,0
London Borough of Sutton,01/09/2022,50246828,95.75,Kare 4 You Surrey Ltd,SOCIAL SERVICES-HOME CARE,Peoples Services,Home Care Services,A56019,0
London Borough of Sutton,01/09/2022,50246828,"1,885.00",Kare 4 You Surrey Ltd,SOCIAL SERVICES-HOME CARE,Peoples Services,Home Care Services,A56019,0
London Borough of Sutton,01/09/2022,50246830,"1,932.50",Kare 4 You Surrey Ltd,SOCIAL SERVICES-HOME CARE,Peoples Services,Home Care Services,A56019,0
London Borough of Sutton,01/09/2022,50246831,"1,006.50",Kare 4 You Surrey Ltd,SOCIAL SERVICES-HOME CARE,Peoples Services,Home Care Services,A56019,0
London Borough of Sutton,01/09/2022,50246833,"1,766.20",Kare 4 You Surrey Ltd,SOCIAL SERVICES-HOME CARE,Peoples Services,Home Care Services,A56019,0
London Borough of Sutton,01/09/2022,20031374,746.00,REDACTED - PERSONAL DATA,GRANTS & EX GRATIA PAYMENTS,Environment Housing and Neighbourhoods,Temporary Protection - Homeless Persons,A62028,0
London Borough of Sutton,01/09/2022,50250400,"1,593.23",KNK Building Services Ltd,CONSTRUCTION INDUSTRY,HRA,Payments to Contractors,C14000,0
London Borough of Sutton,01/09/2022,20031348,"1,917.78",London Borough Of Merton,CENTRAL & LOCAL GOVERNMENT,Resources,Debt Collection Agency Fees,A44273,0
London Borough of Sutton,01/09/2022,20031966,590.00,Student2UK,CHILDREN'S SERVICES - RESIDENTIAL,Peoples Services,C.C.A Rent & Utilities,A61009,0
London Borough of Sutton,01/09/2022,20031347,397.00,McKeown Fencing Ltd,CONSTRUCTION INDUSTRY,Environment Housing and Neighbourhoods,Payments to Contractors,C14000,0
London Borough of Sutton,01/09/2022,20031347,403.00,McKeown Fencing Ltd,CONSTRUCTION INDUSTRY,Environment Housing and Neighbourhoods,Purchases and Repairs Fixtures & Fittings,A25005,0
London Borough of Sutton,01/09/2022,20031370,"1,025.00",REDACTED - PERSONAL DATA,GRANTS & EX GRATIA PAYMENTS,Environment Housing and Neighbourhoods,Temporary Protection - Homeless Persons,A62028,0
London Borough of Sutton,01/09/2022,50245988,"12,541.67",REDACTED - PERSONAL DATA,REFUND,Peoples Services,Special Educational Needs,A51015,0
London Borough of Sutton,01/09/2022,20031424,"1,050.00",REDACTED - PERSONAL DATA,GRANTS & EX GRATIA PAYMENTS,Environment Housing and Neighbourhoods,Temporary Protection - Homeless Persons,A62028,0
London Borough of Sutton,01/09/2022,50250790,"1,064.52",REDACTED - PERSONAL DATA,SOCIAL SERVICES - DIRECT PAYMENTS,Peoples Services,Miscellaneous Expenses,A49000,0
London Borough of Sutton,01/09/2022,50250791,"1,775.00",REDACTED - PERSONAL DATA,REFUND,Peoples Services,Miscellaneous Expenses,A49000,0
London Borough of Sutton,01/09/2022,50248741,"4,605.71",Network Ventures Ltd ,FOSTER PARENTS,Peoples Services,Foster Parents Support,A44110,0
London Borough of Sutton,01/09/2022,50248751,"4,597.43",Network Ventures Ltd ,FOSTER PARENTS,Peoples Services,Foster Parents Support,A44110,0
London Borough of Sutton,01/09/2022,50248759,"4,597.43",Network Ventures Ltd ,FOSTER PARENTS,Peoples Services,Foster Parents Support,A44110,0
London Borough of Sutton,01/09/2022,50248761,"4,597.43",Network Ventures Ltd ,FOSTER PARENTS,Peoples Services,Foster Parents Support,A44110,0
London Borough of Sutton,01/09/2022,20031421,"14,420.00",Nickel Support Community Interest Company,CONFERENCES,Peoples Services,Home Care Services,A56019,0
London Borough of Sutton,01/09/2022,20032059,"5,000.00",Oru Space Ltd,OFFICE SERVICES,Development Growth and Regeneration,External Fees and Consultants,C20000,0
London Borough of Sutton,01/09/2022,20032060,"3,000.00",Oru Space Ltd,OFFICE SERVICES,Development Growth and Regeneration,External Fees and Consultants,C20000,0
London Borough of Sutton,01/09/2022,20032061,"98,809.05",Oru Space Ltd,OFFICE SERVICES,Development Growth and Regeneration,External Fees and Consultants,C20000,0
London Borough of Sutton,01/09/2022,20032062,"6,000.00",Oru Space Ltd,OFFICE SERVICES,Development Growth and Regeneration,External Fees and Consultants,C20000,0
London Borough of Sutton,01/09/2022,20031324,"3,908.57",Ownlife Ltd,SOCIAL SERVICES DAY CARE,Peoples Services,Approved Lodgings,A61000,0
London Borough of Sutton,01/09/2022,50248818,"5,314.28",Ownlife Ltd,SOCIAL SERVICES DAY CARE,Peoples Services,Approved Lodgings,A61000,0
London Borough of Sutton,01/09/2022,20031332,"1,215.00",REDACTED - PERSONAL DATA,GRANTS & EX GRATIA PAYMENTS,Environment Housing and Neighbourhoods,Temporary Protection - Homeless Persons,A62028,0
London Borough of Sutton,01/09/2022,20031504,"3,250.00",Pinnacle Chauffeur Transport Ltd,TAXI AND COACH HIRE,Resources,Hire of Transport - Non Staff,A32000,0
London Borough of Sutton,01/09/2022,50246002,540.00,PLAY PLACE TRANSITIONS LTD,CHILDREN'S SERVICES - SEN SERVICES,Peoples Services,Independent School Fees,A56002,0
London Borough of Sutton,01/09/2022,20031384,"1,079.88",Playwise Learning CIC,GRANTS & EX GRATIA PAYMENTS,Peoples Services,Play Groups,A56111,0
London Borough of Sutton,01/09/2022,20031386,780.00,Playwise Learning CIC,GRANTS & EX GRATIA PAYMENTS,Peoples Services,Play Groups,A56111,0
London Borough of Sutton,01/09/2022,20031387,"1,529.94",Playwise Learning CIC,GRANTS & EX GRATIA PAYMENTS,Peoples Services,Play Groups,A56111,0
London Borough of Sutton,01/09/2022,20031582,"14,287.00",Quartz Properties,ACCOMMODATION BED & BREAKFAST,Environment Housing and Neighbourhoods,Bed & Breakfast,A56000,0
London Borough of Sutton,01/09/2022,50245837,"1,398.00",REDACTED - PERSONAL DATA,SOCIAL SERVICES RESIDENTIAL,Peoples Services,Approved Lodgings,A61000,0
London Borough of Sutton,01/09/2022,20032427,997.10,R & N Investment Properties Ltd,ACCOMMODATION BED & BREAKFAST,Environment Housing and Neighbourhoods,Temporary Protection - Homeless Persons,A62028,0
London Borough of Sutton,01/09/2022,20032428,997.10,R & N Investment Properties Ltd,ACCOMMODATION BED & BREAKFAST,Environment Housing and Neighbourhoods,Temporary Protection - Homeless Persons,A62028,0
London Borough of Sutton,01/09/2022,20031680,"1,882.84",REDACTED - PERSONAL DATA,SOCIAL SERVICES-HOME CARE,Peoples Services,Specialist Adoption & Permanence (SGO),A56012,0
London Borough of Sutton,01/09/2022,20032622,660.00,REDACTED - PERSONAL DATA,FOSTER PARENTS,Peoples Services,Specialist Adoption & Permanence (SGO),A56012,0
London Borough of Sutton,01/09/2022,50246013,258.06,REDACTED - PERSONAL DATA,SOCIAL SERVICES - DIRECT PAYMENTS,Peoples Services,Fostering Allowances,A56008,0
London Borough of Sutton,01/09/2022,50246013,129.54,REDACTED - PERSONAL DATA,SOCIAL SERVICES - DIRECT PAYMENTS,Peoples Services,Fostering Allowances,A56008,0
London Borough of Sutton,01/09/2022,50246013,230.00,REDACTED - PERSONAL DATA,SOCIAL SERVICES - DIRECT PAYMENTS,Peoples Services,Fostering Allowances,A56008,0
London Borough of Sutton,01/09/2022,50246026,258.06,REDACTED - PERSONAL DATA,SOCIAL SERVICES - DIRECT PAYMENTS,Peoples Services,Fostering Allowances,A56008,0
London Borough of Sutton,01/09/2022,50246026,129.54,REDACTED - PERSONAL DATA,SOCIAL SERVICES - DIRECT PAYMENTS,Peoples Services,Fostering Allowances,A56008,0
London Borough of Sutton,01/09/2022,50246026,230.00,REDACTED - PERSONAL DATA,SOCIAL SERVICES - DIRECT PAYMENTS,Peoples Services,Fostering Allowances,A56008,0
London Borough of Sutton,01/09/2022,50246079,536.60,REDACTED - PERSONAL DATA,UASC SUBS PAYMENTS,Peoples Services,Specialist Adoption & Permanence (SGO),A56012,0
London Borough of Sutton,01/09/2022,50246167,545.60,REDACTED - PERSONAL DATA,CHILDREN'S SERVICES - FOSTERING & ADOPTION SERVICES,Peoples Services,Adoptions Allowances,A56015,0
London Borough of Sutton,01/09/2022,50246168,644.36,REDACTED - PERSONAL DATA,CHILDREN'S SERVICES - FOSTERING & ADOPTION SERVICES,Peoples Services,Adoptions Allowances,A56015,0
London Borough of Sutton,01/09/2022,50247283,769.70,Smith & Byford Ltd,CONSTRUCTION INDUSTRY,HRA,Payments to Contractors,C14000,0
London Borough of Sutton,01/09/2022,50247284,484.52,Smith & Byford Ltd,CONSTRUCTION INDUSTRY,HRA,Payments to Contractors,C14000,0
London Borough of Sutton,01/09/2022,50253084,755.60,Smith & Byford Ltd,CONSTRUCTION INDUSTRY,HRA,Payments to Contractors,C14000,0
London Borough of Sutton,01/09/2022,50253085,769.70,Smith & Byford Ltd,CONSTRUCTION INDUSTRY,HRA,Payments to Contractors,C14000,0
London Borough of Sutton,01/09/2022,50253086,769.70,Smith & Byford Ltd,CONSTRUCTION INDUSTRY,HRA,Payments to Contractors,C14000,0
London Borough of Sutton,01/09/2022,50253087,769.70,Smith & Byford Ltd,CONSTRUCTION INDUSTRY,HRA,Payments to Contractors,C14000,0
London Borough of Sutton,01/09/2022,50253088,769.70,Smith & Byford Ltd,CONSTRUCTION INDUSTRY,HRA,Payments to Contractors,C14000,0
London Borough of Sutton,01/09/2022,50253089,720.13,Smith & Byford Ltd,CONSTRUCTION INDUSTRY,HRA,Payments to Contractors,C14000,0
London Borough of Sutton,01/09/2022,50253090,670.56,Smith & Byford Ltd,CONSTRUCTION INDUSTRY,HRA,Payments to Contractors,C14000,0
London Borough of Sutton,01/09/2022,20031346,"5,000.00",Successful Sutton,CHARITIES & VOLUNTARY ORGNS,Development Growth and Regeneration,Professional Fees,A44066,0
London Borough of Sutton,01/09/2022,50247448,"1,350.00",Thankyou Cars Ltd,TAXI AND COACH HIRE,Peoples Services,Hired Peoples Transport (Adults),A32002,0
London Borough of Sutton,01/09/2022,50253421,"2,351.86",The Jigsaw School,GRANTS & EX GRATIA PAYMENTS,Peoples Services,Independent School Fees,A56002,0
London Borough of Sutton,01/09/2022,50253418,"1,095.37",REDACTED - PERSONAL DATA,CHILDREN'S SERVICES - SEN SERVICES,Peoples Services,Special Educational Needs,A51015,0
London Borough of Sutton,01/09/2022,20031616,685.00,W A Truelove & Son Ltd,LEGAL & PROFESSIONAL SERVICES,Peoples Services,Funeral Expenses,A44220,0
London Borough of Sutton,02/09/2022,50246420,-750.40,Abbey Care Centre,SOCIAL SERVICES RESIDENTIAL,Peoples Services,Nursing Care - 3rd party top up payment,A56023,0
London Borough of Sutton,02/09/2022,50246420,"3,848.24",Abbey Care Centre,SOCIAL SERVICES RESIDENTIAL,Peoples Services,Nursing Care Short Term,A56026,0
London Borough of Sutton,02/09/2022,50246532,-750.40,Abbey Care Centre,SOCIAL SERVICES RESIDENTIAL,Peoples Services,Nursing Care - 3rd party top up payment,A56023,0
London Borough of Sutton,02/09/2022,50246532,"3,848.24",Abbey Care Centre,SOCIAL SERVICES RESIDENTIAL,Peoples Services,Nursing Care Short Term,A56026,0
London Borough of Sutton,02/09/2022,50246532,"-1,492.80",Abbey Care Centre,SOCIAL SERVICES RESIDENTIAL,Peoples Services,Nursing Care - 3rd party top up payment,A56023,0
London Borough of Sutton,02/09/2022,50246545,"3,848.24",Abbey Care Centre,SOCIAL SERVICES RESIDENTIAL,Peoples Services,Nursing Care - Ext Provider,A56025,0
London Borough of Sutton,02/09/2022,50246545,-750.40,Abbey Care Centre,SOCIAL SERVICES RESIDENTIAL,Peoples Services,Nursing Care - 3rd party top up payment,A56023,0
London Borough of Sutton,02/09/2022,50246583,"1,501.20",Abbey Care Centre,SOCIAL SERVICES RESIDENTIAL,Peoples Services,Respite Care,A56116,0
London Borough of Sutton,02/09/2022,50246583,-328.73,Abbey Care Centre,SOCIAL SERVICES RESIDENTIAL,Peoples Services,Nursing Care - 3rd party top up payment,A56023,0
London Borough of Sutton,02/09/2022,50246587,"1,348.00",Abbey Care Centre,SOCIAL SERVICES RESIDENTIAL,Peoples Services,Respite Care,A56116,0
London Borough of Sutton,02/09/2022,50246722,-750.40,Abbey Care Centre,SOCIAL SERVICES RESIDENTIAL,Peoples Services,Nursing Care - 3rd party top up payment,A56023,0
London Borough of Sutton,02/09/2022,50246722,"3,848.24",Abbey Care Centre,SOCIAL SERVICES RESIDENTIAL,Peoples Services,Nursing Care Short Term,A56026,0
London Borough of Sutton,02/09/2022,50246747,"1,257.14",Abbey Care Centre,SOCIAL SERVICES RESIDENTIAL,Peoples Services,Respite Care,A56116,0
London Borough of Sutton,02/09/2022,50246752,"1,500.00",Abbey Care Centre,SOCIAL SERVICES RESIDENTIAL,Peoples Services,Respite Care,A56116,0
London Borough of Sutton,02/09/2022,50246297,"8,103.64",Achieve Together Limited,SOCIAL SERVICES RESIDENTIAL,Peoples Services,Residential Care - Ext Provider,A56114,0
London Borough of Sutton,02/09/2022,50246297,-425.60,Achieve Together Limited,SOCIAL SERVICES RESIDENTIAL,Peoples Services,Residential Care - Client Cont ( Net Paymt ),A56113,0
London Borough of Sutton,02/09/2022,50246312,"6,845.04",Achieve Together Limited,SOCIAL SERVICES RESIDENTIAL,Peoples Services,Residential Care - Ext Provider,A56114,0
London Borough of Sutton,02/09/2022,50246312,-438.80,Achieve Together Limited,SOCIAL SERVICES RESIDENTIAL,Peoples Services,Residential Care - Client Cont ( Net Paymt ),A56113,0
London Borough of Sutton,02/09/2022,50246554,"4,375.48",Achieve Together Limited,SOCIAL SERVICES RESIDENTIAL,Peoples Services,Residential Care - Ext Provider,A56114,0
London Borough of Sutton,02/09/2022,50246554,-488.80,Achieve Together Limited,SOCIAL SERVICES RESIDENTIAL,Peoples Services,Residential Care - Client Cont ( Net Paymt ),A56113,0
London Borough of Sutton,02/09/2022,50246614,"4,682.44",Achieve Together Limited,SOCIAL SERVICES RESIDENTIAL,Peoples Services,Residential Care - Ext Provider,A56114,0
London Borough of Sutton,02/09/2022,50246614,-492.80,Achieve Together Limited,SOCIAL SERVICES RESIDENTIAL,Peoples Services,Residential Care - Client Cont ( Net Paymt ),A56113,0
London Borough of Sutton,02/09/2022,50246649,"5,810.56",Achieve Together Limited,SOCIAL SERVICES RESIDENTIAL,Peoples Services,Residential Care - Ext Provider,A56114,0
London Borough of Sutton,02/09/2022,50246725,"5,100.00",Achieve Together Limited,SOCIAL SERVICES RESIDENTIAL,Peoples Services,Residential Care - Ext Provider,A56114,0
London Borough of Sutton,02/09/2022,50246412,"5,620.60",ACHIEVE TOGETHER LTD,SOCIAL SERVICES RESIDENTIAL,Peoples Services,Residential Care - Ext Provider,A56114,0
London Borough of Sutton,02/09/2022,50246412,-494.90,ACHIEVE TOGETHER LTD,SOCIAL SERVICES RESIDENTIAL,Peoples Services,Residential Care - Client Cont ( Net Paymt ),A56113,0
London Borough of Sutton,02/09/2022,50246484,"11,047.88",ACHIEVE TOGETHER LTD,SOCIAL SERVICES RESIDENTIAL,Peoples Services,Residential Care - Ext Provider,A56114,0
London Borough of Sutton,02/09/2022,50246537,"4,653.76",ACHIEVE TOGETHER LTD,SOCIAL SERVICES RESIDENTIAL,Peoples Services,Residential Care - Ext Provider,A56114,0
London Borough of Sutton,02/09/2022,50246262,"3,012.36",Acorn Lodge,SOCIAL SERVICES RESIDENTIAL,Peoples Services,Residential Care - Ext Provider,A56114,0
London Borough of Sutton,02/09/2022,50246570,"3,232.48",Acorn Residential Home,SOCIAL SERVICES RESIDENTIAL,Peoples Services,Residential Care - Ext Provider,A56114,0
London Borough of Sutton,02/09/2022,50246299,"7,793.40",Aims Care Partnership (Leighton House Ltd),SOCIAL SERVICES RESIDENTIAL,Peoples Services,Residential Care - Ext Provider,A56114,0
London Borough of Sutton,02/09/2022,50246307,"8,716.00",Aitch Care Homes,SOCIAL SERVICES RESIDENTIAL,Peoples Services,Residential Care - Ext Provider,A56114,0
London Borough of Sutton,02/09/2022,50246269,"4,621.64",Allied Care (Mhs) Ltd,SOCIAL SERVICES - OTHER,Peoples Services,Residential Care - Ext Provider,A56114,0
London Borough of Sutton,02/09/2022,50246431,"5,397.60",Allswell Care Services Ltd,SOCIAL SERVICES RESIDENTIAL,Peoples Services,Residential Care - Ext Provider,A56114,0
London Borough of Sutton,02/09/2022,50246517,"6,609.52",Allswell Care Services Ltd,SOCIAL SERVICES RESIDENTIAL,Peoples Services,Residential Care - Ext Provider,A56114,0
London Borough of Sutton,02/09/2022,50246658,"5,397.60",Allswell Care Services Ltd,SOCIAL SERVICES RESIDENTIAL,Peoples Services,Residential Care - Ext Provider,A56114,0
London Borough of Sutton,02/09/2022,50246622,"2,762.52",Anchor Trust,SOCIAL SERVICES RESIDENTIAL,Peoples Services,Residential Care - Ext Provider,A56114,0
London Borough of Sutton,02/09/2022,50246322,"-1,990.00",Ashurst Lodge Healthcare Ltd,CHILDREN'S SERVICES - RESIDENTIAL,Peoples Services,Nursing Care - 3rd party top up payment,A56023,0
London Borough of Sutton,02/09/2022,50246322,"3,980.00",Ashurst Lodge Healthcare Ltd,CHILDREN'S SERVICES - RESIDENTIAL,Peoples Services,Residential Care - Ext Provider,A56114,0
London Borough of Sutton,02/09/2022,50246273,"4,144.68",Aspen Place,SOCIAL SERVICES DAY CARE,Peoples Services,Nursing Care - Ext Provider,A56025,0
London Borough of Sutton,02/09/2022,50246337,"5,699.00",Aspens Charities,SOCIAL SERVICES RESIDENTIAL,Peoples Services,Residential Care - Ext Provider,A56114,0
London Borough of Sutton,02/09/2022,20031540,"1,424.10",Athona Ltd,TEMP STAFF & CONSULTANCY,Peoples Services,Agency Staff - Care Workers,A10503,0
London Borough of Sutton,02/09/2022,50246317,"6,024.56",Autism & Aspergers Care Services,SOCIAL SERVICES RESIDENTIAL,Peoples Services,Residential Care - Ext Provider,A56114,0
London Borough of Sutton,02/09/2022,50246631,"3,942.88",BNP Care Ltd,SOCIAL SERVICES RESIDENTIAL,Peoples Services,Residential Care - Ext Provider,A56114,0
London Borough of Sutton,02/09/2022,50246655,"2,127.08",BNP Care Ltd,SOCIAL SERVICES RESIDENTIAL,Peoples Services,Residential Care - Ext Provider,A56114,0
London Borough of Sutton,02/09/2022,50246371,"3,848.24",Bridge House Care Centre,SOCIAL SERVICES RESIDENTIAL,Peoples Services,Nursing Care - Ext Provider,A56025,0
London Borough of Sutton,02/09/2022,50246371,-750.40,Bridge House Care Centre,SOCIAL SERVICES RESIDENTIAL,Peoples Services,Nursing Care - 3rd party top up payment,A56023,0
London Borough of Sutton,02/09/2022,50246397,"2,153.12",Bridge House Care Centre,SOCIAL SERVICES RESIDENTIAL,Peoples Services,Nursing Care - Ext Provider,A56025,0
London Borough of Sutton,02/09/2022,50246428,-750.40,Bridge House Care Centre,SOCIAL SERVICES RESIDENTIAL,Peoples Services,Nursing Care - 3rd party top up payment,A56023,0
London Borough of Sutton,02/09/2022,50246428,"-1,492.80",Bridge House Care Centre,SOCIAL SERVICES RESIDENTIAL,Peoples Services,Nursing Care - 3rd party top up payment,A56023,0
London Borough of Sutton,02/09/2022,50246428,"3,736.00",Bridge House Care Centre,SOCIAL SERVICES RESIDENTIAL,Peoples Services,Nursing Care - Ext Provider,A56025,0
London Borough of Sutton,02/09/2022,50246440,-214.40,Bridge House Care Centre,SOCIAL SERVICES RESIDENTIAL,Peoples Services,Nursing Care - 3rd party top up payment,A56023,0
London Borough of Sutton,02/09/2022,50246440,"1,600.57",Bridge House Care Centre,SOCIAL SERVICES RESIDENTIAL,Peoples Services,Nursing Care Short Term,A56026,0
London Borough of Sutton,02/09/2022,50246443,"3,821.24",Bridge House Care Centre,SOCIAL SERVICES RESIDENTIAL,Peoples Services,Nursing Care - Ext Provider,A56025,0
London Borough of Sutton,02/09/2022,50246443,-836.76,Bridge House Care Centre,SOCIAL SERVICES RESIDENTIAL,Peoples Services,Nursing Care - 3rd party top up payment,A56023,0
London Borough of Sutton,02/09/2022,50246450,-836.76,Bridge House Care Centre,SOCIAL SERVICES RESIDENTIAL,Peoples Services,Nursing Care - 3rd party top up payment,A56023,0
London Borough of Sutton,02/09/2022,50246450,"3,821.24",Bridge House Care Centre,SOCIAL SERVICES RESIDENTIAL,Peoples Services,Nursing Care Short Term,A56026,0
London Borough of Sutton,02/09/2022,50246458,"3,609.04",Bridge House Care Centre,SOCIAL SERVICES RESIDENTIAL,Peoples Services,Nursing Care - Ext Provider,A56025,0
London Borough of Sutton,02/09/2022,50246458,-662.24,Bridge House Care Centre,SOCIAL SERVICES RESIDENTIAL,Peoples Services,Nursing Care - 3rd party top up payment,A56023,0
London Borough of Sutton,02/09/2022,50246470,-750.40,Bridge House Care Centre,SOCIAL SERVICES RESIDENTIAL,Peoples Services,Nursing Care - 3rd party top up payment,A56023,0
London Borough of Sutton,02/09/2022,50246475,"3,848.24",Bridge House Care Centre,SOCIAL SERVICES RESIDENTIAL,Peoples Services,Nursing Care - Ext Provider,A56025,0
London Borough of Sutton,02/09/2022,50246475,-750.40,Bridge House Care Centre,SOCIAL SERVICES RESIDENTIAL,Peoples Services,Nursing Care - 3rd party top up payment,A56023,0
London Borough of Sutton,02/09/2022,50246509,"3,720.16",Bridge House Care Centre,SOCIAL SERVICES RESIDENTIAL,Peoples Services,Nursing Care - Ext Provider,A56025,0
London Borough of Sutton,02/09/2022,50246509,-735.68,Bridge House Care Centre,SOCIAL SERVICES RESIDENTIAL,Peoples Services,Nursing Care - 3rd party top up payment,A56023,0
London Borough of Sutton,02/09/2022,50246551,"3,719.80",Bridge House Care Centre,SOCIAL SERVICES RESIDENTIAL,Peoples Services,Nursing Care - Ext Provider,A56025,0
London Borough of Sutton,02/09/2022,50246551,-735.68,Bridge House Care Centre,SOCIAL SERVICES RESIDENTIAL,Peoples Services,Nursing Care - 3rd party top up payment,A56023,0
London Borough of Sutton,02/09/2022,50246565,"3,665.20",Bridge House Care Centre,SOCIAL SERVICES RESIDENTIAL,Peoples Services,Nursing Care - Ext Provider,A56025,0
London Borough of Sutton,02/09/2022,50246565,-632.64,Bridge House Care Centre,SOCIAL SERVICES RESIDENTIAL,Peoples Services,Nursing Care - 3rd party top up payment,A56023,0
London Borough of Sutton,02/09/2022,50246580,"3,848.24",Bridge House Care Centre,SOCIAL SERVICES RESIDENTIAL,Peoples Services,Nursing Care - Ext Provider,A56025,0
London Borough of Sutton,02/09/2022,50246580,-750.40,Bridge House Care Centre,SOCIAL SERVICES RESIDENTIAL,Peoples Services,Nursing Care - 3rd party top up payment,A56023,0
London Borough of Sutton,02/09/2022,50246584,"3,736.00",Bridge House Care Centre,SOCIAL SERVICES RESIDENTIAL,Peoples Services,Nursing Care - Ext Provider,A56025,0
London Borough of Sutton,02/09/2022,50246584,-750.40,Bridge House Care Centre,SOCIAL SERVICES RESIDENTIAL,Peoples Services,Nursing Care - 3rd party top up payment,A56023,0
London Borough of Sutton,02/09/2022,50246595,"3,734.88",Bridge House Care Centre,SOCIAL SERVICES RESIDENTIAL,Peoples Services,Nursing Care - Ext Provider,A56025,0
London Borough of Sutton,02/09/2022,50246595,-750.40,Bridge House Care Centre,SOCIAL SERVICES RESIDENTIAL,Peoples Services,Nursing Care - 3rd party top up payment,A56023,0
London Borough of Sutton,02/09/2022,50246609,"3,734.88",Bridge House Care Centre,SOCIAL SERVICES RESIDENTIAL,Peoples Services,Nursing Care Short Term,A56026,0
London Borough of Sutton,02/09/2022,50246609,-750.40,Bridge House Care Centre,SOCIAL SERVICES RESIDENTIAL,Peoples Services,Nursing Care - 3rd party top up payment,A56023,0
London Borough of Sutton,02/09/2022,50246651,"3,734.88",Bridge House Care Centre,SOCIAL SERVICES RESIDENTIAL,Peoples Services,Nursing Care - Ext Provider,A56025,0
London Borough of Sutton,02/09/2022,50246664,-750.40,Bridge House Care Centre,SOCIAL SERVICES RESIDENTIAL,Peoples Services,Nursing Care - 3rd party top up payment,A56023,0
London Borough of Sutton,02/09/2022,50246664,"3,848.24",Bridge House Care Centre,SOCIAL SERVICES RESIDENTIAL,Peoples Services,Nursing Care - Ext Provider,A56025,0
London Borough of Sutton,02/09/2022,50246696,"3,579.44",Bridge House Care Centre,SOCIAL SERVICES RESIDENTIAL,Peoples Services,Nursing Care - Ext Provider,A56025,0
London Borough of Sutton,02/09/2022,50246696,-632.64,Bridge House Care Centre,SOCIAL SERVICES RESIDENTIAL,Peoples Services,Nursing Care - 3rd party top up payment,A56023,0
London Borough of Sutton,02/09/2022,50246704,955.31,Bridge House Care Centre,SOCIAL SERVICES RESIDENTIAL,Peoples Services,Respite Care,A56116,0
London Borough of Sutton,02/09/2022,50246704,-209.19,Bridge House Care Centre,SOCIAL SERVICES RESIDENTIAL,Peoples Services,Nursing Care - 3rd party top up payment,A56023,0
London Borough of Sutton,02/09/2022,50246716,"3,734.88",Bridge House Care Centre,SOCIAL SERVICES RESIDENTIAL,Peoples Services,Nursing Care Short Term,A56026,0
London Borough of Sutton,02/09/2022,50246716,-750.40,Bridge House Care Centre,SOCIAL SERVICES RESIDENTIAL,Peoples Services,Nursing Care - 3rd party top up payment,A56023,0
London Borough of Sutton,02/09/2022,50246721,"3,848.24",Bridge House Care Centre,SOCIAL SERVICES RESIDENTIAL,Peoples Services,Nursing Care Short Term,A56026,0
London Borough of Sutton,02/09/2022,50246721,-750.40,Bridge House Care Centre,SOCIAL SERVICES RESIDENTIAL,Peoples Services,Nursing Care - 3rd party top up payment,A56023,0
London Borough of Sutton,02/09/2022,20031477,"9,187.78",Bright Futures Care Ltd,CHILDREN'S SERVICES - FOSTERING & ADOPTION SERVICES,Peoples Services,Client Care/Assistance,A61011,0
London Borough of Sutton,02/09/2022,20031550,"1,013.43",British Gas,UTILITIES,Health and Wellbeing,Electricity,A21000,0
London Borough of Sutton,02/09/2022,50246279,-766.48,British Home & Hospital For Incurables,SOCIAL SERVICES RESIDENTIAL,Peoples Services,Nursing Care - Client Cont ( Net paymt ),A56024,0
London Borough of Sutton,02/09/2022,50246279,"2,591.80",British Home & Hospital For Incurables,SOCIAL SERVICES RESIDENTIAL,Peoples Services,Nursing Care - Ext Provider,A56025,0
London Borough of Sutton,02/09/2022,50246290,"-4,414.41",Bupa Care Services,SOCIAL SERVICES RESIDENTIAL,Peoples Services,Nursing Care - 3rd party top up payment,A56023,0
London Borough of Sutton,02/09/2022,50246290,"8,828.87",Bupa Care Services,SOCIAL SERVICES RESIDENTIAL,Peoples Services,Nursing Care Short Term,A56026,0
London Borough of Sutton,02/09/2022,50246288,"8,118.48",Butterfly's Care Homes Ltd,SOCIAL SERVICES RESIDENTIAL,Peoples Services,Residential Care - Ext Provider,A56114,0
London Borough of Sutton,02/09/2022,50246275,-938.08,Canterbury Oast Trust,SOCIAL SERVICES RESIDENTIAL,Peoples Services,Residential Care - Client Cont ( Net Paymt ),A56113,0
London Borough of Sutton,02/09/2022,50246275,204.72,Canterbury Oast Trust,SOCIAL SERVICES RESIDENTIAL,Peoples Services,One to One Care,A56108,0
London Borough of Sutton,02/09/2022,50246275,"4,060.72",Canterbury Oast Trust,SOCIAL SERVICES RESIDENTIAL,Peoples Services,Residential Care - Ext Provider,A56114,0
London Borough of Sutton,02/09/2022,50246579,"-3,000.00",Care Concern Group,SOCIAL SERVICES RESIDENTIAL,Peoples Services,Nursing Care - 3rd party top up payment,A56023,0
London Borough of Sutton,02/09/2022,50246579,-750.40,Care Concern Group,SOCIAL SERVICES RESIDENTIAL,Peoples Services,Nursing Care - 3rd party top up payment,A56023,0
London Borough of Sutton,02/09/2022,50246579,"6,750.40",Care Concern Group,SOCIAL SERVICES RESIDENTIAL,Peoples Services,Nursing Care - Ext Provider,A56025,0
London Borough of Sutton,02/09/2022,50246581,"-2,500.00",Care Concern Group,SOCIAL SERVICES RESIDENTIAL,Peoples Services,Nursing Care - 3rd party top up payment,A56023,0
London Borough of Sutton,02/09/2022,50246581,-836.76,Care Concern Group,SOCIAL SERVICES RESIDENTIAL,Peoples Services,Nursing Care - 3rd party top up payment,A56023,0
London Borough of Sutton,02/09/2022,50246581,"5,836.76",Care Concern Group,SOCIAL SERVICES RESIDENTIAL,Peoples Services,Nursing Care - Ext Provider,A56025,0
London Borough of Sutton,02/09/2022,50246654,"3,320.32",Care Concern Group,SOCIAL SERVICES RESIDENTIAL,Peoples Services,Residential Care - Ext Provider,A56114,0
London Borough of Sutton,02/09/2022,50246272,"3,768.36",Care Direct Uk Ltd ,SOCIAL SERVICES RESIDENTIAL,Peoples Services,Residential Care - Ext Provider,A56114,0
London Borough of Sutton,02/09/2022,50246266,-438.80,Care UK Homecare Ltd,SOCIAL SERVICES RESIDENTIAL,Peoples Services,Residential Care - Client Cont ( Net Paymt ),A56113,0
London Borough of Sutton,02/09/2022,50246266,"4,772.96",Care UK Homecare Ltd,SOCIAL SERVICES RESIDENTIAL,Peoples Services,Residential Care - Ext Provider,A56114,0
London Borough of Sutton,02/09/2022,50246401,"1,200.00",Care UK Homecare Ltd,SOCIAL SERVICES RESIDENTIAL,Peoples Services,Nursing Care Short Term,A56026,0
London Borough of Sutton,02/09/2022,50246402,"2,100.00",Care UK Homecare Ltd,SOCIAL SERVICES RESIDENTIAL,Peoples Services,Nursing Care Short Term,A56026,0
London Borough of Sutton,02/09/2022,50246502,"3,960.00",Care UK Homecare Ltd,SOCIAL SERVICES RESIDENTIAL,Peoples Services,Nursing Care - Ext Provider,A56025,0
London Borough of Sutton,02/09/2022,50246502,-836.76,Care UK Homecare Ltd,SOCIAL SERVICES RESIDENTIAL,Peoples Services,Nursing Care - 3rd party top up payment,A56023,0
London Borough of Sutton,02/09/2022,50246572,-266.63,Care UK Homecare Ltd,SOCIAL SERVICES RESIDENTIAL,Peoples Services,Nursing Care - 3rd party top up payment,A56023,0
London Borough of Sutton,02/09/2022,50246572,"1,334.06",Care UK Homecare Ltd,SOCIAL SERVICES RESIDENTIAL,Peoples Services,Nursing Care Short Term,A56026,0
London Borough of Sutton,02/09/2022,50246572,-214.40,Care UK Homecare Ltd,SOCIAL SERVICES RESIDENTIAL,Peoples Services,Nursing Care - 3rd party top up payment,A56023,0
London Borough of Sutton,02/09/2022,50246659,"1,980.00",Care UK Homecare Ltd,SOCIAL SERVICES RESIDENTIAL,Peoples Services,Nursing Care Short Term,A56026,0
London Borough of Sutton,02/09/2022,50246659,-418.38,Care UK Homecare Ltd,SOCIAL SERVICES RESIDENTIAL,Peoples Services,Nursing Care - 3rd party top up payment,A56023,0
London Borough of Sutton,02/09/2022,50246698,-662.24,Care UK Homecare Ltd,SOCIAL SERVICES RESIDENTIAL,Peoples Services,Nursing Care - 3rd party top up payment,A56023,0
London Borough of Sutton,02/09/2022,50246698,"3,696.24",Care UK Homecare Ltd,SOCIAL SERVICES RESIDENTIAL,Peoples Services,Nursing Care - Ext Provider,A56025,0
London Borough of Sutton,02/09/2022,20031490,420.00,Careium UK Limited,ACCOMMODATION - OTHER,Peoples Services,Equipment,A61013,0
London Borough of Sutton,02/09/2022,20031491,"2,041.97",Careium UK Limited,ACCOMMODATION - OTHER,Peoples Services,Equipment,A61013,0
London Borough of Sutton,02/09/2022,50246451,"82,116.68",Caretech Community Services Ltd,SOCIAL SERVICES RESIDENTIAL,Peoples Services,Residential Care - Ext Provider,A56114,0
London Borough of Sutton,02/09/2022,50246451,"-72,139.64",Caretech Community Services Ltd,SOCIAL SERVICES RESIDENTIAL,Peoples Services,Residential Care - Ext Provider,A56114,0
London Borough of Sutton,02/09/2022,50246451,"5,438.57",Caretech Community Services Ltd,SOCIAL SERVICES RESIDENTIAL,Peoples Services,Residential Care - Client Cont ( Net Paymt ),A56113,0
London Borough of Sutton,02/09/2022,50246451,"-5,877.37",Caretech Community Services Ltd,SOCIAL SERVICES RESIDENTIAL,Peoples Services,Residential Care - Client Cont ( Net Paymt ),A56113,0
London Borough of Sutton,02/09/2022,50246452,"82,116.68",Caretech Community Services Ltd,SOCIAL SERVICES RESIDENTIAL,Peoples Services,Residential Care - Ext Provider,A56114,0
London Borough of Sutton,02/09/2022,50246452,"-72,139.64",Caretech Community Services Ltd,SOCIAL SERVICES RESIDENTIAL,Peoples Services,Residential Care - Ext Provider,A56114,0
London Borough of Sutton,02/09/2022,50246452,"-6,189.58",Caretech Community Services Ltd,SOCIAL SERVICES RESIDENTIAL,Peoples Services,Residential Care - Client Cont ( Net Paymt ),A56113,0
London Borough of Sutton,02/09/2022,50246452,"5,479.58",Caretech Community Services Ltd,SOCIAL SERVICES RESIDENTIAL,Peoples Services,Residential Care - Client Cont ( Net Paymt ),A56113,0
London Borough of Sutton,02/09/2022,50246693,"-73,992.80",Caretech Community Services Ltd,SOCIAL SERVICES RESIDENTIAL,Peoples Services,Residential Care - Ext Provider,A56114,0
London Borough of Sutton,02/09/2022,50246693,"84,226.99",Caretech Community Services Ltd,SOCIAL SERVICES RESIDENTIAL,Peoples Services,Residential Care - Ext Provider,A56114,0
London Borough of Sutton,02/09/2022,50246693,"-8,282.94",Caretech Community Services Ltd,SOCIAL SERVICES RESIDENTIAL,Peoples Services,Residential Care - Client Cont ( Net Paymt ),A56113,0
London Borough of Sutton,02/09/2022,50246693,"7,655.14",Caretech Community Services Ltd,SOCIAL SERVICES RESIDENTIAL,Peoples Services,Residential Care - Client Cont ( Net Paymt ),A56113,0
London Borough of Sutton,02/09/2022,50246434,"5,684.08",Carlene House,SOCIAL SERVICES RESIDENTIAL,Peoples Services,Residential Care - Ext Provider,A56114,0
London Borough of Sutton,02/09/2022,50246485,"5,684.08",Carlene House,SOCIAL SERVICES RESIDENTIAL,Peoples Services,Residential Care - Ext Provider,A56114,0
London Borough of Sutton,02/09/2022,50246486,"5,684.08",Carlene House,SOCIAL SERVICES RESIDENTIAL,Peoples Services,Residential Care - Ext Provider,A56114,0
London Borough of Sutton,02/09/2022,50246487,"5,684.08",Carlene House,SOCIAL SERVICES RESIDENTIAL,Peoples Services,Residential Care - Ext Provider,A56114,0
London Borough of Sutton,02/09/2022,50246488,"5,684.08",Carlene House,SOCIAL SERVICES RESIDENTIAL,Peoples Services,Residential Care - Ext Provider,A56114,0
London Borough of Sutton,02/09/2022,50246542,"5,684.08",Carlene House,SOCIAL SERVICES RESIDENTIAL,Peoples Services,Residential Care - Ext Provider,A56114,0
London Borough of Sutton,02/09/2022,50246624,"5,684.08",Carlene House,SOCIAL SERVICES RESIDENTIAL,Peoples Services,Residential Care - Ext Provider,A56114,0
London Borough of Sutton,02/09/2022,50246378,"4,150.40",Chegworth Nursing Home Bayswift Ltd,SOCIAL SERVICES RESIDENTIAL,Peoples Services,Nursing Care - Ext Provider,A56025,0
London Borough of Sutton,02/09/2022,50246385,"11,190.77",Chegworth Nursing Home Bayswift Ltd,SOCIAL SERVICES RESIDENTIAL,Peoples Services,Nursing Care Short Term,A56026,0
London Borough of Sutton,02/09/2022,50246385,"-2,450.51",Chegworth Nursing Home Bayswift Ltd,SOCIAL SERVICES RESIDENTIAL,Peoples Services,Nursing Care - 3rd party top up payment,A56023,0
London Borough of Sutton,02/09/2022,50246406,-735.68,Chegworth Nursing Home Bayswift Ltd,SOCIAL SERVICES RESIDENTIAL,Peoples Services,Nursing Care - 3rd party top up payment,A56023,0
London Borough of Sutton,02/09/2022,50246406,"3,720.16",Chegworth Nursing Home Bayswift Ltd,SOCIAL SERVICES RESIDENTIAL,Peoples Services,Nursing Care - Ext Provider,A56025,0
London Borough of Sutton,02/09/2022,50246427,"3,734.88",Chegworth Nursing Home Bayswift Ltd,SOCIAL SERVICES RESIDENTIAL,Peoples Services,Nursing Care Short Term,A56026,0
London Borough of Sutton,02/09/2022,50246427,-750.40,Chegworth Nursing Home Bayswift Ltd,SOCIAL SERVICES RESIDENTIAL,Peoples Services,Nursing Care - 3rd party top up payment,A56023,0
London Borough of Sutton,02/09/2022,50246457,-662.24,Chegworth Nursing Home Bayswift Ltd,SOCIAL SERVICES RESIDENTIAL,Peoples Services,Nursing Care - 3rd party top up payment,A56023,0
London Borough of Sutton,02/09/2022,50246457,"4,955.56",Chegworth Nursing Home Bayswift Ltd,SOCIAL SERVICES RESIDENTIAL,Peoples Services,Nursing Care Short Term,A56026,0
London Borough of Sutton,02/09/2022,50246530,-632.64,Chegworth Nursing Home Bayswift Ltd,SOCIAL SERVICES RESIDENTIAL,Peoples Services,Nursing Care - 3rd party top up payment,A56023,0
London Borough of Sutton,02/09/2022,50246530,"3,919.08",Chegworth Nursing Home Bayswift Ltd,SOCIAL SERVICES RESIDENTIAL,Peoples Services,Nursing Care - Ext Provider,A56025,0
London Borough of Sutton,02/09/2022,50246531,"4,149.92",Chegworth Nursing Home Bayswift Ltd,SOCIAL SERVICES RESIDENTIAL,Peoples Services,Nursing Care - Ext Provider,A56025,0
London Borough of Sutton,02/09/2022,50246531,-750.40,Chegworth Nursing Home Bayswift Ltd,SOCIAL SERVICES RESIDENTIAL,Peoples Services,Nursing Care - 3rd party top up payment,A56023,0
London Borough of Sutton,02/09/2022,50246568,"3,753.20",Chegworth Nursing Home Bayswift Ltd,SOCIAL SERVICES RESIDENTIAL,Peoples Services,Nursing Care - Ext Provider,A56025,0
London Borough of Sutton,02/09/2022,50246568,-735.68,Chegworth Nursing Home Bayswift Ltd,SOCIAL SERVICES RESIDENTIAL,Peoples Services,Nursing Care - 3rd party top up payment,A56023,0
London Borough of Sutton,02/09/2022,50246589,"3,665.20",Chegworth Nursing Home Bayswift Ltd,SOCIAL SERVICES RESIDENTIAL,Peoples Services,Nursing Care - Ext Provider,A56025,0
London Borough of Sutton,02/09/2022,50246589,-632.64,Chegworth Nursing Home Bayswift Ltd,SOCIAL SERVICES RESIDENTIAL,Peoples Services,Nursing Care - 3rd party top up payment,A56023,0
London Borough of Sutton,02/09/2022,50246601,-209.19,Chegworth Nursing Home Bayswift Ltd,SOCIAL SERVICES RESIDENTIAL,Peoples Services,Nursing Care - 3rd party top up payment,A56023,0
London Borough of Sutton,02/09/2022,50246601,746.12,Chegworth Nursing Home Bayswift Ltd,SOCIAL SERVICES RESIDENTIAL,Peoples Services,Nursing Care Short Term,A56026,0
London Borough of Sutton,02/09/2022,50246616,"3,734.88",Chegworth Nursing Home Bayswift Ltd,SOCIAL SERVICES RESIDENTIAL,Peoples Services,Nursing Care Short Term,A56026,0
London Borough of Sutton,02/09/2022,50246616,-750.40,Chegworth Nursing Home Bayswift Ltd,SOCIAL SERVICES RESIDENTIAL,Peoples Services,Nursing Care - 3rd party top up payment,A56023,0
London Borough of Sutton,02/09/2022,50246619,"2,905.28",Chegworth Nursing Home Bayswift Ltd,SOCIAL SERVICES RESIDENTIAL,Peoples Services,Nursing Care Short Term,A56026,0
London Borough of Sutton,02/09/2022,50246652,"3,820.84",Chegworth Nursing Home Bayswift Ltd,SOCIAL SERVICES RESIDENTIAL,Peoples Services,Nursing Care - Ext Provider,A56025,0
London Borough of Sutton,02/09/2022,50246652,-836.76,Chegworth Nursing Home Bayswift Ltd,SOCIAL SERVICES RESIDENTIAL,Peoples Services,Nursing Care - 3rd party top up payment,A56023,0
London Borough of Sutton,02/09/2022,50246669,"2,456.51",Chegworth Nursing Home Bayswift Ltd,SOCIAL SERVICES RESIDENTIAL,Peoples Services,Nursing Care Short Term,A56026,0
London Borough of Sutton,02/09/2022,50246669,-537.92,Chegworth Nursing Home Bayswift Ltd,SOCIAL SERVICES RESIDENTIAL,Peoples Services,Nursing Care - 3rd party top up payment,A56023,0
London Borough of Sutton,02/09/2022,50246695,"3,665.20",Chegworth Nursing Home Bayswift Ltd,SOCIAL SERVICES RESIDENTIAL,Peoples Services,Nursing Care - Ext Provider,A56025,0
London Borough of Sutton,02/09/2022,50246695,-632.64,Chegworth Nursing Home Bayswift Ltd,SOCIAL SERVICES RESIDENTIAL,Peoples Services,Nursing Care - 3rd party top up payment,A56023,0
London Borough of Sutton,02/09/2022,50246720,"3,848.24",Chegworth Nursing Home Bayswift Ltd,SOCIAL SERVICES RESIDENTIAL,Peoples Services,Nursing Care - Ext Provider,A56025,0
London Borough of Sutton,02/09/2022,50246720,-750.40,Chegworth Nursing Home Bayswift Ltd,SOCIAL SERVICES RESIDENTIAL,Peoples Services,Nursing Care - 3rd party top up payment,A56023,0
London Borough of Sutton,02/09/2022,50246726,"3,821.24",Chegworth Nursing Home Bayswift Ltd,SOCIAL SERVICES RESIDENTIAL,Peoples Services,Nursing Care Short Term,A56026,0
London Borough of Sutton,02/09/2022,50246726,-836.76,Chegworth Nursing Home Bayswift Ltd,SOCIAL SERVICES RESIDENTIAL,Peoples Services,Nursing Care - 3rd party top up payment,A56023,0
London Borough of Sutton,02/09/2022,50246435,"2,895.32",Cherry Lodge,SOCIAL SERVICES RESIDENTIAL,Peoples Services,Residential Care - Ext Provider,A56114,0
London Borough of Sutton,02/09/2022,50246435,-460.04,Cherry Lodge,SOCIAL SERVICES RESIDENTIAL,Peoples Services,Residential Care - Client Cont ( Net Paymt ),A56113,0
London Borough of Sutton,02/09/2022,50246518,"3,486.32",Cherry Lodge,SOCIAL SERVICES RESIDENTIAL,Peoples Services,Residential Care - Ext Provider,A56114,0
London Borough of Sutton,02/09/2022,50246510,"6,923.72",CHHG Ltd,SOCIAL SERVICES RESIDENTIAL,Peoples Services,Nursing Care - Ext Provider,A56025,0
London Borough of Sutton,02/09/2022,50246510,-750.40,CHHG Ltd,SOCIAL SERVICES RESIDENTIAL,Peoples Services,Nursing Care - 3rd party top up payment,A56023,0
London Borough of Sutton,02/09/2022,50246593,-735.68,CHHG Ltd,SOCIAL SERVICES RESIDENTIAL,Peoples Services,Nursing Care - 3rd party top up payment,A56023,0
London Borough of Sutton,02/09/2022,50246593,"3,927.68",CHHG Ltd,SOCIAL SERVICES RESIDENTIAL,Peoples Services,Nursing Care - Ext Provider,A56025,0
London Borough of Sutton,02/09/2022,50246391,"7,512.24",Choice Care Group (Surrey) Ltd,SOCIAL SERVICES RESIDENTIAL,Peoples Services,Residential Care - Ext Provider,A56114,0
London Borough of Sutton,02/09/2022,50246437,"8,682.92",Choice Care Group (Surrey) Ltd,SOCIAL SERVICES RESIDENTIAL,Peoples Services,Residential Care - Ext Provider,A56114,0
London Borough of Sutton,02/09/2022,50246670,"7,793.40",Choice Care Group (Surrey) Ltd,SOCIAL SERVICES RESIDENTIAL,Peoples Services,Residential Care - Ext Provider,A56114,0
London Borough of Sutton,02/09/2022,50246670,-367.80,Choice Care Group (Surrey) Ltd,SOCIAL SERVICES RESIDENTIAL,Peoples Services,Residential Care - Client Cont ( Net Paymt ),A56113,0
London Borough of Sutton,02/09/2022,50246671,"7,809.32",Choice Care Group (Surrey) Ltd,SOCIAL SERVICES RESIDENTIAL,Peoples Services,Residential Care - Ext Provider,A56114,0
London Borough of Sutton,02/09/2022,50246331,"5,716.12",Choice Support,GRANTS & EX GRATIA PAYMENTS,Peoples Services,Residential Care - Ext Provider,A56114,0
London Borough of Sutton,02/09/2022,50246423,"3,734.88",Claremont Care Svs Ltd,SOCIAL SERVICES RESIDENTIAL,Peoples Services,Nursing Care Short Term,A56026,0
London Borough of Sutton,02/09/2022,50246423,-750.40,Claremont Care Svs Ltd,SOCIAL SERVICES RESIDENTIAL,Peoples Services,Nursing Care - 3rd party top up payment,A56023,0
London Borough of Sutton,02/09/2022,50246471,"4,525.36",Claremont Care Svs Ltd,SOCIAL SERVICES RESIDENTIAL,Peoples Services,Nursing Care - Ext Provider,A56025,0
London Borough of Sutton,02/09/2022,50246471,-750.40,Claremont Care Svs Ltd,SOCIAL SERVICES RESIDENTIAL,Peoples Services,Nursing Care - 3rd party top up payment,A56023,0
London Borough of Sutton,02/09/2022,50246503,-974.00,Claremont Care Svs Ltd,SOCIAL SERVICES RESIDENTIAL,Peoples Services,Nursing Care - 3rd party top up payment,A56023,0
London Borough of Sutton,02/09/2022,50246503,"4,514.68",Claremont Care Svs Ltd,SOCIAL SERVICES RESIDENTIAL,Peoples Services,Nursing Care - Ext Provider,A56025,0
London Borough of Sutton,02/09/2022,50246503,-632.64,Claremont Care Svs Ltd,SOCIAL SERVICES RESIDENTIAL,Peoples Services,Nursing Care - 3rd party top up payment,A56023,0
London Borough of Sutton,02/09/2022,50246618,"3,848.24",Claremont Care Svs Ltd,SOCIAL SERVICES RESIDENTIAL,Peoples Services,Nursing Care - Ext Provider,A56025,0
London Borough of Sutton,02/09/2022,50246618,-750.40,Claremont Care Svs Ltd,SOCIAL SERVICES RESIDENTIAL,Peoples Services,Nursing Care - 3rd party top up payment,A56023,0
London Borough of Sutton,02/09/2022,50246682,"2,320.04",Claremont Care Svs Ltd,SOCIAL SERVICES RESIDENTIAL,Peoples Services,Nursing Care - Ext Provider,A56025,0
London Borough of Sutton,02/09/2022,50246682,-508.03,Claremont Care Svs Ltd,SOCIAL SERVICES RESIDENTIAL,Peoples Services,Nursing Care - 3rd party top up payment,A56023,0
London Borough of Sutton,02/09/2022,50246707,"6,487.64",Claremont Care Svs Ltd,SOCIAL SERVICES RESIDENTIAL,Peoples Services,Nursing Care - Ext Provider,A56025,0
London Borough of Sutton,02/09/2022,50246707,-750.40,Claremont Care Svs Ltd,SOCIAL SERVICES RESIDENTIAL,Peoples Services,Nursing Care - 3rd party top up payment,A56023,0
London Borough of Sutton,02/09/2022,50246712,"14,613.88",Claremont Care Svs Ltd,SOCIAL SERVICES RESIDENTIAL,Peoples Services,Nursing Care - Ext Provider,A56025,0
London Borough of Sutton,02/09/2022,50246712,"-11,424.00",Claremont Care Svs Ltd,SOCIAL SERVICES RESIDENTIAL,Peoples Services,Nursing Care - 3rd party top up payment,A56023,0
London Borough of Sutton,02/09/2022,50246742,-735.68,Claremont Care Svs Ltd,SOCIAL SERVICES RESIDENTIAL,Peoples Services,Nursing Care - 3rd party top up payment,A56023,0
London Borough of Sutton,02/09/2022,50246742,"5,367.84",Claremont Care Svs Ltd,SOCIAL SERVICES RESIDENTIAL,Peoples Services,Nursing Care - Ext Provider,A56025,0
London Borough of Sutton,02/09/2022,50246749,"6,513.96",Claremont Care Svs Ltd,SOCIAL SERVICES RESIDENTIAL,Peoples Services,Nursing Care - Ext Provider,A56025,0
London Borough of Sutton,02/09/2022,50246749,-836.76,Claremont Care Svs Ltd,SOCIAL SERVICES RESIDENTIAL,Peoples Services,Nursing Care - 3rd party top up payment,A56023,0
London Borough of Sutton,02/09/2022,50246311,-735.68,Bondcare (London) Ltd,SOCIAL SERVICES RESIDENTIAL,Peoples Services,Nursing Care - 3rd party top up payment,A56023,0
London Borough of Sutton,02/09/2022,50246311,"3,720.16",Bondcare (London) Ltd,SOCIAL SERVICES RESIDENTIAL,Peoples Services,Nursing Care - Ext Provider,A56025,0
London Borough of Sutton,02/09/2022,50246336,"4,234.16",Coast Care Homes Ltd,SOCIAL SERVICES RESIDENTIAL,Peoples Services,Residential Care - Ext Provider,A56114,0
London Borough of Sutton,02/09/2022,50246339,"12,960.16",Cognithan Ltd,SOCIAL SERVICES RESIDENTIAL,Peoples Services,Residential Care - Ext Provider,A56114,0
London Borough of Sutton,02/09/2022,50246298,"11,981.04",Coleg Elidyr Camphill Communities,CHILDREN'S SERVICES - RESIDENTIAL,Peoples Services,Interim Placements - Ext Provider,A56102,0
London Borough of Sutton,02/09/2022,50246344,"7,107.84",Cream 11 Ltd,SOCIAL SERVICES RESIDENTIAL,Peoples Services,Residential Care - Ext Provider,A56114,0
London Borough of Sutton,02/09/2022,50246344,"5,560.52",Cream 11 Ltd,SOCIAL SERVICES RESIDENTIAL,Peoples Services,One to One Care,A56108,0
London Borough of Sutton,02/09/2022,50246410,-735.68,CRNH Ltd,SOCIAL SERVICES RESIDENTIAL,Peoples Services,Nursing Care - 3rd party top up payment,A56023,0
London Borough of Sutton,02/09/2022,50246410,"3,720.16",CRNH Ltd,SOCIAL SERVICES RESIDENTIAL,Peoples Services,Nursing Care - Ext Provider,A56025,0
London Borough of Sutton,02/09/2022,50246463,"4,198.56",CRNH Ltd,SOCIAL SERVICES RESIDENTIAL,Peoples Services,Nursing Care - Ext Provider,A56025,0
London Borough of Sutton,02/09/2022,50246463,-662.24,CRNH Ltd,SOCIAL SERVICES RESIDENTIAL,Peoples Services,Nursing Care - 3rd party top up payment,A56023,0
London Borough of Sutton,02/09/2022,50246472,"3,848.24",CRNH Ltd,SOCIAL SERVICES RESIDENTIAL,Peoples Services,Nursing Care Short Term,A56026,0
London Borough of Sutton,02/09/2022,50246472,-750.40,CRNH Ltd,SOCIAL SERVICES RESIDENTIAL,Peoples Services,Nursing Care - 3rd party top up payment,A56023,0
London Borough of Sutton,02/09/2022,50246520,"3,920.00",CRNH Ltd,SOCIAL SERVICES RESIDENTIAL,Peoples Services,Nursing Care - Ext Provider,A56025,0
London Borough of Sutton,02/09/2022,50246520,-836.76,CRNH Ltd,SOCIAL SERVICES RESIDENTIAL,Peoples Services,Nursing Care - 3rd party top up payment,A56023,0
London Borough of Sutton,02/09/2022,50246522,"3,664.08",CRNH Ltd,SOCIAL SERVICES RESIDENTIAL,Peoples Services,Nursing Care - Ext Provider,A56025,0
London Borough of Sutton,02/09/2022,50246522,-662.24,CRNH Ltd,SOCIAL SERVICES RESIDENTIAL,Peoples Services,Nursing Care - 3rd party top up payment,A56023,0
London Borough of Sutton,02/09/2022,50246535,"3,609.96",CRNH Ltd,SOCIAL SERVICES RESIDENTIAL,Peoples Services,Nursing Care - Ext Provider,A56025,0
London Borough of Sutton,02/09/2022,50246535,-632.64,CRNH Ltd,SOCIAL SERVICES RESIDENTIAL,Peoples Services,Nursing Care - 3rd party top up payment,A56023,0
London Borough of Sutton,02/09/2022,50246592,-735.68,CRNH Ltd,SOCIAL SERVICES RESIDENTIAL,Peoples Services,Nursing Care - 3rd party top up payment,A56023,0
London Borough of Sutton,02/09/2022,50246592,"3,720.16",CRNH Ltd,SOCIAL SERVICES RESIDENTIAL,Peoples Services,Nursing Care Short Term,A56026,0
London Borough of Sutton,02/09/2022,50246615,"3,848.24",CRNH Ltd,SOCIAL SERVICES RESIDENTIAL,Peoples Services,Nursing Care - Ext Provider,A56025,0
London Borough of Sutton,02/09/2022,50246615,-750.40,CRNH Ltd,SOCIAL SERVICES RESIDENTIAL,Peoples Services,Nursing Care - 3rd party top up payment,A56023,0
London Borough of Sutton,02/09/2022,50246686,"4,021.24",CRNH Ltd,SOCIAL SERVICES RESIDENTIAL,Peoples Services,Nursing Care - Ext Provider,A56025,0
London Borough of Sutton,02/09/2022,50246686,-750.40,CRNH Ltd,SOCIAL SERVICES RESIDENTIAL,Peoples Services,Nursing Care - 3rd party top up payment,A56023,0
London Borough of Sutton,02/09/2022,50246689,"2,000.00",CRNH Ltd,SOCIAL SERVICES RESIDENTIAL,Peoples Services,Nursing Care Short Term,A56026,0
London Borough of Sutton,02/09/2022,50246689,-298.84,CRNH Ltd,SOCIAL SERVICES RESIDENTIAL,Peoples Services,Nursing Care - 3rd party top up payment,A56023,0
London Borough of Sutton,02/09/2022,50246690,"3,920.00",CRNH Ltd,SOCIAL SERVICES RESIDENTIAL,Peoples Services,Nursing Care Short Term,A56026,0
London Borough of Sutton,02/09/2022,50246690,-836.76,CRNH Ltd,SOCIAL SERVICES RESIDENTIAL,Peoples Services,Nursing Care - 3rd party top up payment,A56023,0
London Borough of Sutton,02/09/2022,50246697,"3,720.16",CRNH Ltd,SOCIAL SERVICES RESIDENTIAL,Peoples Services,Nursing Care - Ext Provider,A56025,0
London Borough of Sutton,02/09/2022,50246697,-735.68,CRNH Ltd,SOCIAL SERVICES RESIDENTIAL,Peoples Services,Nursing Care - 3rd party top up payment,A56023,0
London Borough of Sutton,02/09/2022,50246439,"3,633.76",Cross Care Services Ltd,SOCIAL SERVICES RESIDENTIAL,Peoples Services,Nursing Care - Ext Provider,A56025,0
London Borough of Sutton,02/09/2022,50246603,"3,720.16",Cross Care Services Ltd,SOCIAL SERVICES RESIDENTIAL,Peoples Services,Nursing Care - Ext Provider,A56025,0
London Borough of Sutton,02/09/2022,50246603,-735.68,Cross Care Services Ltd,SOCIAL SERVICES RESIDENTIAL,Peoples Services,Nursing Care - 3rd party top up payment,A56023,0
London Borough of Sutton,02/09/2022,50246607,"3,720.16",Cross Care Services Ltd,SOCIAL SERVICES RESIDENTIAL,Peoples Services,Nursing Care - Ext Provider,A56025,0
London Borough of Sutton,02/09/2022,50246607,-735.68,Cross Care Services Ltd,SOCIAL SERVICES RESIDENTIAL,Peoples Services,Nursing Care - 3rd party top up payment,A56023,0
London Borough of Sutton,02/09/2022,50246706,"3,734.88",Cross Care Services Ltd,SOCIAL SERVICES RESIDENTIAL,Peoples Services,Nursing Care - Ext Provider,A56025,0
London Borough of Sutton,02/09/2022,50246706,-750.40,Cross Care Services Ltd,SOCIAL SERVICES RESIDENTIAL,Peoples Services,Nursing Care - 3rd party top up payment,A56023,0
London Borough of Sutton,02/09/2022,50246755,"3,720.16",Cross Care Services Ltd,SOCIAL SERVICES RESIDENTIAL,Peoples Services,Nursing Care - Ext Provider,A56025,0
London Borough of Sutton,02/09/2022,50246755,-735.68,Cross Care Services Ltd,SOCIAL SERVICES RESIDENTIAL,Peoples Services,Nursing Care - 3rd party top up payment,A56023,0
London Borough of Sutton,02/09/2022,50246292,"8,118.44",CSS Ltd,SOCIAL SERVICES RESIDENTIAL,Peoples Services,Residential Care - Ext Provider,A56114,0
London Borough of Sutton,02/09/2022,50246335,"5,810.56",Curado Limited,GRANTS & EX GRATIA PAYMENTS,Peoples Services,Interim Placements - Ext Provider,A56102,0
London Borough of Sutton,02/09/2022,50246304,-758.00,Cygnet Learning Disabilities Midlands Ltd,SOCIAL SERVICES RESIDENTIAL,Peoples Services,Residential Care - Client Cont ( Net Paymt ),A56113,0
London Borough of Sutton,02/09/2022,50246304,"6,827.40",Cygnet Learning Disabilities Midlands Ltd,SOCIAL SERVICES RESIDENTIAL,Peoples Services,Residential Care - Ext Provider,A56114,0
London Borough of Sutton,02/09/2022,50246514,"3,505.00",Denville Hall 2012,SOCIAL SERVICES RESIDENTIAL,Peoples Services,Residential Care - Ext Provider,A56114,0
London Borough of Sutton,02/09/2022,50246305,"3,175.04",Devaglade Trading Limited,SOCIAL SERVICES RESIDENTIAL,Peoples Services,Residential Care - Ext Provider,A56114,0
London Borough of Sutton,02/09/2022,50246329,"3,187.44",Dunheved Lodge,SOCIAL SERVICES RESIDENTIAL,Peoples Services,Residential Care - Ext Provider,A56114,0
London Borough of Sutton,02/09/2022,50246329,"3,016.00",Dunheved Lodge,SOCIAL SERVICES RESIDENTIAL,Peoples Services,One to One Care,A56108,0
London Borough of Sutton,02/09/2022,50246361,"3,848.24",Eastcroft Nursing Home,SOCIAL SERVICES RESIDENTIAL,Peoples Services,Nursing Care - Ext Provider,A56025,0
London Borough of Sutton,02/09/2022,50246361,-750.40,Eastcroft Nursing Home,SOCIAL SERVICES RESIDENTIAL,Peoples Services,Nursing Care - 3rd party top up payment,A56023,0
London Borough of Sutton,02/09/2022,50246553,"3,734.88",Eastcroft Nursing Home,SOCIAL SERVICES RESIDENTIAL,Peoples Services,Nursing Care - Ext Provider,A56025,0
London Borough of Sutton,02/09/2022,50246553,-750.40,Eastcroft Nursing Home,SOCIAL SERVICES RESIDENTIAL,Peoples Services,Nursing Care - 3rd party top up payment,A56023,0
London Borough of Sutton,02/09/2022,50246612,"3,734.88",Eastcroft Nursing Home,SOCIAL SERVICES RESIDENTIAL,Peoples Services,Nursing Care - Ext Provider,A56025,0
London Borough of Sutton,02/09/2022,50246612,-750.40,Eastcroft Nursing Home,SOCIAL SERVICES RESIDENTIAL,Peoples Services,Nursing Care - 3rd party top up payment,A56023,0
London Borough of Sutton,02/09/2022,50246629,"3,736.00",Eastcroft Nursing Home,SOCIAL SERVICES RESIDENTIAL,Peoples Services,Nursing Care Short Term,A56026,0
London Borough of Sutton,02/09/2022,50246629,-750.40,Eastcroft Nursing Home,SOCIAL SERVICES RESIDENTIAL,Peoples Services,Nursing Care - 3rd party top up payment,A56023,0
London Borough of Sutton,02/09/2022,50246353,"9,101.84",Elysium Healthcare Ltd,CHILDREN'S SERVICES - FOSTERING & ADOPTION SERVICES,Peoples Services,Residential Care - Ext Provider,A56114,0
London Borough of Sutton,02/09/2022,50246291,"7,668.40",Elysium Supported Living Limited,SOCIAL SERVICES RESIDENTIAL,Peoples Services,Residential Care - Ext Provider,A56114,0
London Borough of Sutton,02/09/2022,50246396,"3,736.00",Family Star Ltd,SOCIAL SERVICES RESIDENTIAL,Peoples Services,Nursing Care - Ext Provider,A56025,0
London Borough of Sutton,02/09/2022,50246396,-750.40,Family Star Ltd,SOCIAL SERVICES RESIDENTIAL,Peoples Services,Nursing Care - 3rd party top up payment,A56023,0
London Borough of Sutton,02/09/2022,50246398,"-3,466.58",Family Star Ltd,SOCIAL SERVICES RESIDENTIAL,Peoples Services,Nursing Care - 3rd party top up payment,A56023,0
London Borough of Sutton,02/09/2022,50246398,"15,830.85",Family Star Ltd,SOCIAL SERVICES RESIDENTIAL,Peoples Services,Nursing Care Short Term,A56026,0
London Borough of Sutton,02/09/2022,50246419,"3,734.88",Family Star Ltd,SOCIAL SERVICES RESIDENTIAL,Peoples Services,Nursing Care - Ext Provider,A56025,0
London Borough of Sutton,02/09/2022,50246419,-750.40,Family Star Ltd,SOCIAL SERVICES RESIDENTIAL,Peoples Services,Nursing Care - 3rd party top up payment,A56023,0
London Borough of Sutton,02/09/2022,50246495,-836.76,Family Star Ltd,SOCIAL SERVICES RESIDENTIAL,Peoples Services,Nursing Care - 3rd party top up payment,A56023,0
London Borough of Sutton,02/09/2022,50246495,"3,934.60",Family Star Ltd,SOCIAL SERVICES RESIDENTIAL,Peoples Services,Nursing Care - Ext Provider,A56025,0
London Borough of Sutton,02/09/2022,50246499,-836.76,Family Star Ltd,SOCIAL SERVICES RESIDENTIAL,Peoples Services,Nursing Care - 3rd party top up payment,A56023,0
London Borough of Sutton,02/09/2022,50246499,"3,821.24",Family Star Ltd,SOCIAL SERVICES RESIDENTIAL,Peoples Services,Nursing Care Short Term,A56026,0
London Borough of Sutton,02/09/2022,50246604,"3,646.72",Family Star Ltd,SOCIAL SERVICES RESIDENTIAL,Peoples Services,Nursing Care - Ext Provider,A56025,0
London Borough of Sutton,02/09/2022,50246604,-662.24,Family Star Ltd,SOCIAL SERVICES RESIDENTIAL,Peoples Services,Nursing Care - 3rd party top up payment,A56023,0
London Borough of Sutton,02/09/2022,50246620,"3,848.24",Family Star Ltd,SOCIAL SERVICES RESIDENTIAL,Peoples Services,Nursing Care - Ext Provider,A56025,0
London Borough of Sutton,02/09/2022,50246620,-750.40,Family Star Ltd,SOCIAL SERVICES RESIDENTIAL,Peoples Services,Nursing Care - 3rd party top up payment,A56023,0
London Borough of Sutton,02/09/2022,50246683,-750.40,Family Star Ltd,SOCIAL SERVICES RESIDENTIAL,Peoples Services,Nursing Care - 3rd party top up payment,A56023,0
London Borough of Sutton,02/09/2022,50246683,"3,734.88",Family Star Ltd,SOCIAL SERVICES RESIDENTIAL,Peoples Services,Nursing Care Short Term,A56026,0
London Borough of Sutton,02/09/2022,50246309,"3,652.88",Fircroft Homes,SOCIAL SERVICES RESIDENTIAL,Peoples Services,Residential Care - Ext Provider,A56114,0
London Borough of Sutton,02/09/2022,50246309,-643.80,Fircroft Homes,SOCIAL SERVICES RESIDENTIAL,Peoples Services,Residential Care - Client Cont ( Net Paymt ),A56113,0
London Borough of Sutton,02/09/2022,50246356,806.74,Fitzroy,SOCIAL SERVICES RESIDENTIAL,Peoples Services,Residential Care - Ext Provider,A56114,0
London Borough of Sutton,02/09/2022,50246356,-62.69,Fitzroy,SOCIAL SERVICES RESIDENTIAL,Peoples Services,Residential Care - Client Cont ( Net Paymt ),A56113,0
London Borough of Sutton,02/09/2022,50246338,"7,470.72",Florence Avenue Care Home Ltd,SOCIAL SERVICES RESIDENTIAL,Peoples Services,Residential Care - Ext Provider,A56114,0
London Borough of Sutton,02/09/2022,50246367,"2,697.76",Friends Of The Elderly,SOCIAL SERVICES RESIDENTIAL,Peoples Services,Interim Placements - Ext Provider,A56102,0
London Borough of Sutton,02/09/2022,50246375,"2,697.76",Friends Of The Elderly,SOCIAL SERVICES RESIDENTIAL,Peoples Services,Residential Care - Ext Provider,A56114,0
London Borough of Sutton,02/09/2022,50246376,"2,697.76",Friends Of The Elderly,SOCIAL SERVICES RESIDENTIAL,Peoples Services,Residential Care - Ext Provider,A56114,0
London Borough of Sutton,02/09/2022,50246446,"4,420.00",Friends Of The Elderly,SOCIAL SERVICES RESIDENTIAL,Peoples Services,Residential Care - Ext Provider,A56114,0
London Borough of Sutton,02/09/2022,50246492,"2,697.76",Friends Of The Elderly,SOCIAL SERVICES RESIDENTIAL,Peoples Services,Interim Placements - Ext Provider,A56102,0
London Borough of Sutton,02/09/2022,50246496,"3,000.00",Friends Of The Elderly,SOCIAL SERVICES RESIDENTIAL,Peoples Services,Interim Placements - Ext Provider,A56102,0
London Borough of Sutton,02/09/2022,50246539,"2,697.76",Friends Of The Elderly,SOCIAL SERVICES RESIDENTIAL,Peoples Services,Residential Care - Ext Provider,A56114,0
London Borough of Sutton,02/09/2022,50246540,"3,332.76",Friends Of The Elderly,SOCIAL SERVICES RESIDENTIAL,Peoples Services,Residential Care - Ext Provider,A56114,0
London Borough of Sutton,02/09/2022,50246599,674.44,Friends Of The Elderly,SOCIAL SERVICES RESIDENTIAL,Peoples Services,Residential Care Respite,A56018,0
London Borough of Sutton,02/09/2022,50246633,"2,697.76",Friends Of The Elderly,SOCIAL SERVICES RESIDENTIAL,Peoples Services,Residential Care - Ext Provider,A56114,0
London Borough of Sutton,02/09/2022,50246646,"2,697.76",Friends Of The Elderly,SOCIAL SERVICES RESIDENTIAL,Peoples Services,Residential Care - Ext Provider,A56114,0
London Borough of Sutton,02/09/2022,50246672,"2,697.76",Friends Of The Elderly,SOCIAL SERVICES RESIDENTIAL,Peoples Services,Interim Placements - Ext Provider,A56102,0
London Borough of Sutton,02/09/2022,50248774,"5,258.00",Full Circle Support UK Limited,CHILDREN'S SERVICES - FOSTERING & ADOPTION SERVICES,Peoples Services,Approved Lodgings,A61000,0
London Borough of Sutton,02/09/2022,50248809,"4,926.79",Full Circle Support UK Limited,CHILDREN'S SERVICES - FOSTERING & ADOPTION SERVICES,Peoples Services,Approved Lodgings,A61000,0
London Borough of Sutton,02/09/2022,50248834,"2,954.00",Full Circle Support UK Limited,CHILDREN'S SERVICES - FOSTERING & ADOPTION SERVICES,Peoples Services,Approved Lodgings,A61000,0
London Borough of Sutton,02/09/2022,50248834,125.00,Full Circle Support UK Limited,CHILDREN'S SERVICES - FOSTERING & ADOPTION SERVICES,Peoples Services,Approved Lodgings,A61000,0
London Borough of Sutton,02/09/2022,50246544,"2,697.76",Gable Lodge,SOCIAL SERVICES RESIDENTIAL,Peoples Services,Residential Care - Ext Provider,A56114,0
London Borough of Sutton,02/09/2022,50246546,"2,697.76",Gable Lodge,SOCIAL SERVICES RESIDENTIAL,Peoples Services,Residential Care - Ext Provider,A56114,0
London Borough of Sutton,02/09/2022,50246571,"2,697.76",Gable Lodge,SOCIAL SERVICES RESIDENTIAL,Peoples Services,Residential Care - Ext Provider,A56114,0
London Borough of Sutton,02/09/2022,50246745,"2,697.76",Gable Lodge,SOCIAL SERVICES RESIDENTIAL,Peoples Services,Interim Placements - Ext Provider,A56102,0
London Borough of Sutton,02/09/2022,50246459,"3,923.20",Galleon Care Homes Ltd,SOCIAL SERVICES RESIDENTIAL,Peoples Services,Nursing Care - Ext Provider,A56025,0
London Borough of Sutton,02/09/2022,50246459,-735.68,Galleon Care Homes Ltd,SOCIAL SERVICES RESIDENTIAL,Peoples Services,Nursing Care - 3rd party top up payment,A56023,0
London Borough of Sutton,02/09/2022,50246436,"2,697.76",Gate Lodge Care Home,SOCIAL SERVICES RESIDENTIAL,Peoples Services,Residential Care - Ext Provider,A56114,0
London Borough of Sutton,02/09/2022,50246489,"2,905.28",Gate Lodge Care Home,SOCIAL SERVICES RESIDENTIAL,Peoples Services,Residential Care - Ext Provider,A56114,0
London Borough of Sutton,02/09/2022,50246490,"2,697.76",Gate Lodge Care Home,SOCIAL SERVICES RESIDENTIAL,Peoples Services,Residential Care - Ext Provider,A56114,0
London Borough of Sutton,02/09/2022,50246585,"1,414.29",Gate Lodge Care Home,SOCIAL SERVICES RESIDENTIAL,Peoples Services,Residential Care - Ext Provider,A56114,0
London Borough of Sutton,02/09/2022,50246714,"2,697.76",Gate Lodge Care Home,SOCIAL SERVICES RESIDENTIAL,Peoples Services,Residential Care - Ext Provider,A56114,0
London Borough of Sutton,02/09/2022,50246729,"2,697.76",Gate Lodge Care Home,SOCIAL SERVICES RESIDENTIAL,Peoples Services,Residential Care - Ext Provider,A56114,0
London Borough of Sutton,02/09/2022,20031476,"1,350.00",REDACTED - PERSONAL DATA,PLS LANDLORDS,Environment Housing and Neighbourhoods,Temporary Protection - Homeless Persons,A62028,0
London Borough of Sutton,02/09/2022,50246324,"5,642.72",Glebe Care Ltd,SOCIAL SERVICES DAY CARE,Peoples Services,Nursing Care - Ext Provider,A56025,0
London Borough of Sutton,02/09/2022,50246324,-662.24,Glebe Care Ltd,SOCIAL SERVICES DAY CARE,Peoples Services,Nursing Care - 3rd party top up payment,A56023,0
London Borough of Sutton,02/09/2022,50246408,-735.68,Gracewell Healthcare 3 Ltd,SOCIAL SERVICES RESIDENTIAL,Peoples Services,Nursing Care - 3rd party top up payment,A56023,0
London Borough of Sutton,02/09/2022,50246408,"5,275.92",Gracewell Healthcare 3 Ltd,SOCIAL SERVICES RESIDENTIAL,Peoples Services,Nursing Care - Ext Provider,A56025,0
London Borough of Sutton,02/09/2022,50246500,"1,501.20",Gracewell Healthcare 3 Ltd,SOCIAL SERVICES RESIDENTIAL,Peoples Services,Nursing Care - Ext Provider,A56025,0
London Borough of Sutton,02/09/2022,50246500,-328.73,Gracewell Healthcare 3 Ltd,SOCIAL SERVICES RESIDENTIAL,Peoples Services,Nursing Care - 3rd party top up payment,A56023,0
London Borough of Sutton,02/09/2022,50246515,"4,150.40",Gracewell Healthcare 3 Ltd,SOCIAL SERVICES RESIDENTIAL,Peoples Services,Residential Care - Ext Provider,A56114,0
London Borough of Sutton,02/09/2022,50246600,"-11,027.30",Gracewell Healthcare 3 Ltd,SOCIAL SERVICES RESIDENTIAL,Peoples Services,Nursing Care - 3rd party top up payment,A56023,0
London Borough of Sutton,02/09/2022,50246600,"69,187.50",Gracewell Healthcare 3 Ltd,SOCIAL SERVICES RESIDENTIAL,Peoples Services,Nursing Care - Ext Provider,A56025,0
London Borough of Sutton,02/09/2022,50246389,867.13,Grange Cottage Ltd,MANAGEMENT & TRAINING SERVICES,Peoples Services,Residential Care Respite,A56018,0
London Borough of Sutton,02/09/2022,50246390,"2,697.76",Grange Cottage Ltd,MANAGEMENT & TRAINING SERVICES,Peoples Services,Residential Care - Ext Provider,A56114,0
London Borough of Sutton,02/09/2022,50246393,"2,697.76",Grange Cottage Ltd,MANAGEMENT & TRAINING SERVICES,Peoples Services,Interim Placements - Ext Provider,A56102,0
London Borough of Sutton,02/09/2022,50246400,"2,800.00",Grange Cottage Ltd,MANAGEMENT & TRAINING SERVICES,Peoples Services,Residential Care Respite,A56018,0
London Borough of Sutton,02/09/2022,50246491,"2,697.76",Grange Cottage Ltd,MANAGEMENT & TRAINING SERVICES,Peoples Services,Residential Care - Ext Provider,A56114,0
London Borough of Sutton,02/09/2022,50246493,"3,112.80",Grange Cottage Ltd,MANAGEMENT & TRAINING SERVICES,Peoples Services,Residential Care - Ext Provider,A56114,0
London Borough of Sutton,02/09/2022,50246547,"2,697.76",Grange Cottage Ltd,MANAGEMENT & TRAINING SERVICES,Peoples Services,Residential Care - Ext Provider,A56114,0
London Borough of Sutton,02/09/2022,50246548,"2,697.76",Grange Cottage Ltd,MANAGEMENT & TRAINING SERVICES,Peoples Services,Residential Care - Ext Provider,A56114,0
London Borough of Sutton,02/09/2022,50246567,"2,984.48",Grange Cottage Ltd,MANAGEMENT & TRAINING SERVICES,Peoples Services,Interim Placements - Ext Provider,A56102,0
London Borough of Sutton,02/09/2022,50246573,"3,320.32",Grange Cottage Ltd,MANAGEMENT & TRAINING SERVICES,Peoples Services,Residential Care - Ext Provider,A56114,0
London Borough of Sutton,02/09/2022,50246574,"3,360.16",Grange Cottage Ltd,MANAGEMENT & TRAINING SERVICES,Peoples Services,Residential Care - Ext Provider,A56114,0
London Borough of Sutton,02/09/2022,50246639,"-7,033.45",Grange Cottage Ltd,MANAGEMENT & TRAINING SERVICES,Peoples Services,Interim Placements - Ext Provider,A56102,0
London Borough of Sutton,02/09/2022,50246650,"1,445.23",Grange Cottage Ltd,MANAGEMENT & TRAINING SERVICES,Peoples Services,Interim Placements - Ext Provider,A56102,0
London Borough of Sutton,02/09/2022,50246653,"9,731.21",Grange Cottage Ltd,MANAGEMENT & TRAINING SERVICES,Peoples Services,Residential Care - Ext Provider,A56114,0
London Borough of Sutton,02/09/2022,50246676,"1,348.88",Grange Cottage Ltd,MANAGEMENT & TRAINING SERVICES,Peoples Services,Residential Care - Ext Provider,A56114,0
London Borough of Sutton,02/09/2022,50246701,"10,791.04",Grange Cottage Ltd,MANAGEMENT & TRAINING SERVICES,Peoples Services,Residential Care - Ext Provider,A56114,0
London Borough of Sutton,02/09/2022,50246730,"2,905.28",Grange Cottage Ltd,MANAGEMENT & TRAINING SERVICES,Peoples Services,Residential Care - Ext Provider,A56114,0
London Borough of Sutton,02/09/2022,50246746,"2,801.52",Grange Cottage Ltd,MANAGEMENT & TRAINING SERVICES,Peoples Services,Interim Placements - Ext Provider,A56102,0
London Borough of Sutton,02/09/2022,50246516,"2,905.28",Grasmere Rest Home,SOCIAL SERVICES RESIDENTIAL,Peoples Services,Residential Care - Ext Provider,A56114,0
London Borough of Sutton,02/09/2022,50246549,"2,697.76",Grasmere Rest Home,SOCIAL SERVICES RESIDENTIAL,Peoples Services,Residential Care - Ext Provider,A56114,0
London Borough of Sutton,02/09/2022,50246575,"3,608.52",Grasmere Rest Home,SOCIAL SERVICES RESIDENTIAL,Peoples Services,Residential Care - Ext Provider,A56114,0
London Borough of Sutton,02/09/2022,50246576,"2,697.76",Grasmere Rest Home,SOCIAL SERVICES RESIDENTIAL,Peoples Services,Residential Care - Ext Provider,A56114,0
London Borough of Sutton,02/09/2022,50246661,"2,697.76",Grasmere Rest Home,SOCIAL SERVICES RESIDENTIAL,Peoples Services,Residential Care - Ext Provider,A56114,0
London Borough of Sutton,02/09/2022,50246662,"2,697.76",Grasmere Rest Home,SOCIAL SERVICES RESIDENTIAL,Peoples Services,Residential Care - Ext Provider,A56114,0
London Borough of Sutton,02/09/2022,50246663,"2,697.76",Grasmere Rest Home,SOCIAL SERVICES RESIDENTIAL,Peoples Services,Residential Care - Ext Provider,A56114,0
London Borough of Sutton,02/09/2022,50246345,"5,827.24",Sunrise Rehabilitation Centre & Trading Associates Ltd,SOCIAL SERVICES RESIDENTIAL,Peoples Services,Residential Care - Ext Provider,A56114,0
London Borough of Sutton,02/09/2022,50246438,"5,395.52",Hallmark Care Homes (Banstead) Ltd,SOCIAL SERVICES RESIDENTIAL,Peoples Services,Interim Placements - Ext Provider,A56102,0
London Borough of Sutton,02/09/2022,50246483,"5,810.56",Hallmark Care Homes (Banstead) Ltd,SOCIAL SERVICES RESIDENTIAL,Peoples Services,Residential Care - Ext Provider,A56114,0
London Borough of Sutton,02/09/2022,50246578,"5,046.88",Haydon Park Lodge,SOCIAL SERVICES RESIDENTIAL,Peoples Services,Residential Care - Ext Provider,A56114,0
London Borough of Sutton,02/09/2022,50246684,"5,306.28",Haydon Park Lodge,SOCIAL SERVICES RESIDENTIAL,Peoples Services,Residential Care - Ext Provider,A56114,0
London Borough of Sutton,02/09/2022,50246521,"3,821.24",HCOne Oval Ltd,SOCIAL SERVICES RESIDENTIAL,Peoples Services,Nursing Care Short Term,A56026,0
London Borough of Sutton,02/09/2022,50246521,-836.76,HCOne Oval Ltd,SOCIAL SERVICES RESIDENTIAL,Peoples Services,Nursing Care - 3rd party top up payment,A56023,0
London Borough of Sutton,02/09/2022,50246528,-750.40,HCOne Oval Ltd,SOCIAL SERVICES RESIDENTIAL,Peoples Services,Nursing Care - 3rd party top up payment,A56023,0
London Borough of Sutton,02/09/2022,50246528,"3,736.00",HCOne Oval Ltd,SOCIAL SERVICES RESIDENTIAL,Peoples Services,Nursing Care Short Term,A56026,0
London Borough of Sutton,02/09/2022,50246705,"3,734.88",HCOne Oval Ltd,SOCIAL SERVICES RESIDENTIAL,Peoples Services,Nursing Care Short Term,A56026,0
London Borough of Sutton,02/09/2022,50246705,-750.40,HCOne Oval Ltd,SOCIAL SERVICES RESIDENTIAL,Peoples Services,Nursing Care - 3rd party top up payment,A56023,0
London Borough of Sutton,02/09/2022,50246717,"3,734.88",HCOne Oval Ltd,SOCIAL SERVICES RESIDENTIAL,Peoples Services,Nursing Care - Ext Provider,A56025,0
London Borough of Sutton,02/09/2022,50246717,-750.40,HCOne Oval Ltd,SOCIAL SERVICES RESIDENTIAL,Peoples Services,Nursing Care - 3rd party top up payment,A56023,0
London Borough of Sutton,02/09/2022,50246296,"10,791.04",Heathcotes (Southern) Limited,SOCIAL SERVICES RESIDENTIAL,Peoples Services,Residential Care - Ext Provider,A56114,0
London Borough of Sutton,02/09/2022,50246354,"8,207.12",Heathcotes (Southern) Limited,SOCIAL SERVICES RESIDENTIAL,Peoples Services,Residential Care - Ext Provider,A56114,0
London Borough of Sutton,02/09/2022,50246354,-450.80,Heathcotes (Southern) Limited,SOCIAL SERVICES RESIDENTIAL,Peoples Services,Residential Care - Client Cont ( Net Paymt ),A56113,0
London Borough of Sutton,02/09/2022,50246300,"3,898.28",HF Trust Ltd,SOCIAL SERVICES RESIDENTIAL,Peoples Services,Residential Care - Ext Provider,A56114,0
London Borough of Sutton,02/09/2022,50246300,-360.80,HF Trust Ltd,SOCIAL SERVICES RESIDENTIAL,Peoples Services,Residential Care - Client Cont ( Net Paymt ),A56113,0
London Borough of Sutton,02/09/2022,50246563,"2,810.40",HF Trust Ltd,SOCIAL SERVICES RESIDENTIAL,Peoples Services,Residential Care - Ext Provider,A56114,0
London Borough of Sutton,02/09/2022,50246563,-425.60,HF Trust Ltd,SOCIAL SERVICES RESIDENTIAL,Peoples Services,Residential Care - Client Cont ( Net Paymt ),A56113,0
London Borough of Sutton,02/09/2022,50246274,"4,001.48",Hill House Nursing Home Ltd,SOCIAL SERVICES RESIDENTIAL,Peoples Services,Nursing Care - Ext Provider,A56025,0
London Borough of Sutton,02/09/2022,50246274,-836.76,Hill House Nursing Home Ltd,SOCIAL SERVICES RESIDENTIAL,Peoples Services,Nursing Care - 3rd party top up payment,A56023,0
London Borough of Sutton,02/09/2022,50246343,"4,097.32",Hill House Nursing Home Ltd,SOCIAL SERVICES RESIDENTIAL,Peoples Services,Nursing Care - Ext Provider,A56025,0
London Borough of Sutton,02/09/2022,50246343,-836.76,Hill House Nursing Home Ltd,SOCIAL SERVICES RESIDENTIAL,Peoples Services,Nursing Care - 3rd party top up payment,A56023,0
London Borough of Sutton,02/09/2022,20032181,447.00,HSL Compliance Limited,OFFICE SERVICES,Resources,FM - Planned Maintenance Contract - Mitie,A56097,0
London Borough of Sutton,02/09/2022,50246418,"3,848.24",Sutton Court Care Centre,SOCIAL SERVICES RESIDENTIAL,Peoples Services,Nursing Care - Ext Provider,A56025,0
London Borough of Sutton,02/09/2022,50246418,-750.40,Sutton Court Care Centre,SOCIAL SERVICES RESIDENTIAL,Peoples Services,Nursing Care - 3rd party top up payment,A56023,0
London Borough of Sutton,02/09/2022,50246421,687.19,Sutton Court Care Centre,SOCIAL SERVICES RESIDENTIAL,Peoples Services,Nursing Care Short Term,A56026,0
London Borough of Sutton,02/09/2022,50246421,-134.00,Sutton Court Care Centre,SOCIAL SERVICES RESIDENTIAL,Peoples Services,Nursing Care - 3rd party top up payment,A56023,0
London Borough of Sutton,02/09/2022,50246449,"3,821.24",Sutton Court Care Centre,SOCIAL SERVICES RESIDENTIAL,Peoples Services,Nursing Care - Ext Provider,A56025,0
London Borough of Sutton,02/09/2022,50246449,-836.76,Sutton Court Care Centre,SOCIAL SERVICES RESIDENTIAL,Peoples Services,Nursing Care - 3rd party top up payment,A56023,0
London Borough of Sutton,02/09/2022,50246506,"3,720.16",Sutton Court Care Centre,SOCIAL SERVICES RESIDENTIAL,Peoples Services,Nursing Care - Ext Provider,A56025,0
London Borough of Sutton,02/09/2022,50246506,-735.68,Sutton Court Care Centre,SOCIAL SERVICES RESIDENTIAL,Peoples Services,Nursing Care - 3rd party top up payment,A56023,0
London Borough of Sutton,02/09/2022,50246524,"3,753.20",Sutton Court Care Centre,SOCIAL SERVICES RESIDENTIAL,Peoples Services,Nursing Care - Ext Provider,A56025,0
London Borough of Sutton,02/09/2022,50246524,-735.68,Sutton Court Care Centre,SOCIAL SERVICES RESIDENTIAL,Peoples Services,Nursing Care - 3rd party top up payment,A56023,0
London Borough of Sutton,02/09/2022,50246526,"5,105.00",Sutton Court Care Centre,SOCIAL SERVICES RESIDENTIAL,Peoples Services,Nursing Care - Ext Provider,A56025,0
London Borough of Sutton,02/09/2022,50246557,-750.40,Sutton Court Care Centre,SOCIAL SERVICES RESIDENTIAL,Peoples Services,Nursing Care - 3rd party top up payment,A56023,0
London Borough of Sutton,02/09/2022,50246557,"3,848.24",Sutton Court Care Centre,SOCIAL SERVICES RESIDENTIAL,Peoples Services,Nursing Care Short Term,A56026,0
London Borough of Sutton,02/09/2022,50246582,"3,821.24",Sutton Court Care Centre,SOCIAL SERVICES RESIDENTIAL,Peoples Services,Nursing Care Short Term,A56026,0
London Borough of Sutton,02/09/2022,50246582,-836.76,Sutton Court Care Centre,SOCIAL SERVICES RESIDENTIAL,Peoples Services,Nursing Care - 3rd party top up payment,A56023,0
London Borough of Sutton,02/09/2022,50246588,-478.15,Sutton Court Care Centre,SOCIAL SERVICES RESIDENTIAL,Peoples Services,Nursing Care - 3rd party top up payment,A56023,0
London Borough of Sutton,02/09/2022,50246588,"2,183.57",Sutton Court Care Centre,SOCIAL SERVICES RESIDENTIAL,Peoples Services,Respite Care,A56116,0
London Borough of Sutton,02/09/2022,50246605,"3,720.16",Sutton Court Care Centre,SOCIAL SERVICES RESIDENTIAL,Peoples Services,Nursing Care - Ext Provider,A56025,0
London Borough of Sutton,02/09/2022,50246605,-735.68,Sutton Court Care Centre,SOCIAL SERVICES RESIDENTIAL,Peoples Services,Nursing Care - 3rd party top up payment,A56023,0
London Borough of Sutton,02/09/2022,50246613,"4,900.80",Sutton Court Care Centre,SOCIAL SERVICES RESIDENTIAL,Peoples Services,Nursing Care - Ext Provider,A56025,0
London Borough of Sutton,02/09/2022,50246613,-750.40,Sutton Court Care Centre,SOCIAL SERVICES RESIDENTIAL,Peoples Services,Nursing Care - 3rd party top up payment,A56023,0
London Borough of Sutton,02/09/2022,50246617,"3,848.24",Sutton Court Care Centre,SOCIAL SERVICES RESIDENTIAL,Peoples Services,Nursing Care - Ext Provider,A56025,0
London Borough of Sutton,02/09/2022,50246617,-750.40,Sutton Court Care Centre,SOCIAL SERVICES RESIDENTIAL,Peoples Services,Nursing Care - 3rd party top up payment,A56023,0
London Borough of Sutton,02/09/2022,50246691,"21,426.24",Sutton Court Care Centre,SOCIAL SERVICES RESIDENTIAL,Peoples Services,Nursing Care - Ext Provider,A56025,0
London Borough of Sutton,02/09/2022,50246691,"-4,691.83",Sutton Court Care Centre,SOCIAL SERVICES RESIDENTIAL,Peoples Services,Nursing Care - 3rd party top up payment,A56023,0
London Borough of Sutton,02/09/2022,50246699,-662.24,Sutton Court Care Centre,SOCIAL SERVICES RESIDENTIAL,Peoples Services,Nursing Care - 3rd party top up payment,A56023,0
London Borough of Sutton,02/09/2022,50246699,"3,609.04",Sutton Court Care Centre,SOCIAL SERVICES RESIDENTIAL,Peoples Services,Nursing Care - Ext Provider,A56025,0
London Borough of Sutton,02/09/2022,50246710,"3,848.24",Sutton Court Care Centre,SOCIAL SERVICES RESIDENTIAL,Peoples Services,Nursing Care - Ext Provider,A56025,0
London Borough of Sutton,02/09/2022,50246710,-750.40,Sutton Court Care Centre,SOCIAL SERVICES RESIDENTIAL,Peoples Services,Nursing Care - 3rd party top up payment,A56023,0
London Borough of Sutton,02/09/2022,50246734,"3,900.00",Sutton Court Care Centre,SOCIAL SERVICES RESIDENTIAL,Peoples Services,Nursing Care Short Term,A56026,0
London Borough of Sutton,02/09/2022,50246734,-832.75,Sutton Court Care Centre,SOCIAL SERVICES RESIDENTIAL,Peoples Services,Nursing Care - 3rd party top up payment,A56023,0
London Borough of Sutton,02/09/2022,50246315,"6,404.00",Independence Homes,SOCIAL SERVICES DAY CARE,Peoples Services,Residential Care - Ext Provider,A56114,0
London Borough of Sutton,02/09/2022,50246432,"9,532.92",Independence Homes,SOCIAL SERVICES DAY CARE,Peoples Services,Residential Care - Ext Provider,A56114,0
London Borough of Sutton,02/09/2022,50246711,"8,746.36",Independence Homes,SOCIAL SERVICES DAY CARE,Peoples Services,Residential Care - Ext Provider,A56114,0
London Borough of Sutton,02/09/2022,50246341,"4,442.16",Independent Lifestyle Options,SOCIAL SERVICES RESIDENTIAL,Peoples Services,Residential Care - Ext Provider,A56114,0
London Borough of Sutton,02/09/2022,50246293,"3,874.32",Janith Homes Ltd,SOCIAL SERVICES RESIDENTIAL,Peoples Services,Residential Care - Ext Provider,A56114,0
London Borough of Sutton,02/09/2022,50246293,-438.80,Janith Homes Ltd,SOCIAL SERVICES RESIDENTIAL,Peoples Services,Residential Care - Client Cont ( Net Paymt ),A56113,0
London Borough of Sutton,02/09/2022,50246414,"3,734.88",Jesmund Care Ltd,SOCIAL SERVICES RESIDENTIAL,Peoples Services,Nursing Care - Ext Provider,A56025,0
London Borough of Sutton,02/09/2022,50246414,-750.40,Jesmund Care Ltd,SOCIAL SERVICES RESIDENTIAL,Peoples Services,Nursing Care - 3rd party top up payment,A56023,0
London Borough of Sutton,02/09/2022,50246466,"3,079.72",Jesmund Care Ltd,SOCIAL SERVICES RESIDENTIAL,Peoples Services,Nursing Care - Ext Provider,A56025,0
London Borough of Sutton,02/09/2022,50246466,-850.40,Jesmund Care Ltd,SOCIAL SERVICES RESIDENTIAL,Peoples Services,Nursing Care - 3rd party top up payment,A56023,0
London Borough of Sutton,02/09/2022,50246507,-735.68,Jesmund Care Ltd,SOCIAL SERVICES RESIDENTIAL,Peoples Services,Nursing Care - 3rd party top up payment,A56023,0
London Borough of Sutton,02/09/2022,50246507,"3,833.52",Jesmund Care Ltd,SOCIAL SERVICES RESIDENTIAL,Peoples Services,Nursing Care - Ext Provider,A56025,0
London Borough of Sutton,02/09/2022,50246519,"3,734.88",Jesmund Care Ltd,SOCIAL SERVICES RESIDENTIAL,Peoples Services,Nursing Care - Ext Provider,A56025,0
London Borough of Sutton,02/09/2022,50246519,-750.40,Jesmund Care Ltd,SOCIAL SERVICES RESIDENTIAL,Peoples Services,Nursing Care - 3rd party top up payment,A56023,0
London Borough of Sutton,02/09/2022,50246525,"3,848.24",Jesmund Care Ltd,SOCIAL SERVICES RESIDENTIAL,Peoples Services,Nursing Care Short Term,A56026,0
London Borough of Sutton,02/09/2022,50246525,-750.40,Jesmund Care Ltd,SOCIAL SERVICES RESIDENTIAL,Peoples Services,Nursing Care - 3rd party top up payment,A56023,0
London Borough of Sutton,02/09/2022,50246560,-750.40,Jesmund Care Ltd,SOCIAL SERVICES RESIDENTIAL,Peoples Services,Nursing Care - 3rd party top up payment,A56023,0
London Borough of Sutton,02/09/2022,50246560,"3,735.28",Jesmund Care Ltd,SOCIAL SERVICES RESIDENTIAL,Peoples Services,Nursing Care - Ext Provider,A56025,0
London Borough of Sutton,02/09/2022,50246597,"3,734.88",Jesmund Care Ltd,SOCIAL SERVICES RESIDENTIAL,Peoples Services,Nursing Care - Ext Provider,A56025,0
London Borough of Sutton,02/09/2022,50246597,-750.40,Jesmund Care Ltd,SOCIAL SERVICES RESIDENTIAL,Peoples Services,Nursing Care - 3rd party top up payment,A56023,0
London Borough of Sutton,02/09/2022,50246732,"3,942.88",Jesmund Care Ltd,SOCIAL SERVICES RESIDENTIAL,Peoples Services,Nursing Care - Ext Provider,A56025,0
London Borough of Sutton,02/09/2022,50246737,"3,665.20",Jesmund Care Ltd,SOCIAL SERVICES RESIDENTIAL,Peoples Services,Nursing Care - Ext Provider,A56025,0
London Borough of Sutton,02/09/2022,50246737,-632.64,Jesmund Care Ltd,SOCIAL SERVICES RESIDENTIAL,Peoples Services,Nursing Care - 3rd party top up payment,A56023,0
London Borough of Sutton,02/09/2022,50246395,"3,720.16",Jesmund Care Ltd,SOCIAL SERVICES RESIDENTIAL,Peoples Services,Nursing Care - Ext Provider,A56025,0
London Borough of Sutton,02/09/2022,50246422,"3,734.88",Jesmund Care Ltd,SOCIAL SERVICES RESIDENTIAL,Peoples Services,Nursing Care - Ext Provider,A56025,0
London Borough of Sutton,02/09/2022,50246441,"3,734.88",Jesmund Care Ltd,SOCIAL SERVICES RESIDENTIAL,Peoples Services,Nursing Care - Ext Provider,A56025,0
London Borough of Sutton,02/09/2022,50246476,"3,734.88",Jesmund Care Ltd,SOCIAL SERVICES RESIDENTIAL,Peoples Services,Nursing Care - Ext Provider,A56025,0
London Borough of Sutton,02/09/2022,50246674,"6,425.32",Jesmund Care Ltd,SOCIAL SERVICES RESIDENTIAL,Peoples Services,Nursing Care - Ext Provider,A56025,0
London Borough of Sutton,02/09/2022,50246267,"3,196.00",Kenward Trust,GRANTS & EX GRATIA PAYMENTS,Peoples Services,Interim Placements - Ext Provider,A56102,0
London Borough of Sutton,02/09/2022,50246267,-341.60,Kenward Trust,GRANTS & EX GRATIA PAYMENTS,Peoples Services,Residential Care - Client Cont ( Net Paymt ),A56113,0
London Borough of Sutton,02/09/2022,50246319,"3,320.32",Langley Court Rest Home Limited,SOCIAL SERVICES RESIDENTIAL,Peoples Services,Interim Placements - Ext Provider,A56102,0
London Borough of Sutton,02/09/2022,50246278,"4,105.92",L'Arche Bognor Regis,SOCIAL SERVICES RESIDENTIAL,Peoples Services,Residential Care - Ext Provider,A56114,0
London Borough of Sutton,02/09/2022,50246278,-425.60,L'Arche Bognor Regis,SOCIAL SERVICES RESIDENTIAL,Peoples Services,Residential Care - Client Cont ( Net Paymt ),A56113,0
London Borough of Sutton,02/09/2022,50246284,"3,648.20",Laurel Residential Homes Ltd,SOCIAL SERVICES RESIDENTIAL,Peoples Services,Residential Care - Ext Provider,A56114,0
London Borough of Sutton,02/09/2022,50246352,-425.60,Laurel Residential Homes Ltd,SOCIAL SERVICES RESIDENTIAL,Peoples Services,Residential Care - Client Cont ( Net Paymt ),A56113,0
London Borough of Sutton,02/09/2022,50246352,"2,827.80",Laurel Residential Homes Ltd,SOCIAL SERVICES RESIDENTIAL,Peoples Services,Residential Care - Ext Provider,A56114,0
London Borough of Sutton,02/09/2022,50246308,"6,406.36",Leonard Cheshire Disability,SOCIAL SERVICES RESIDENTIAL,Peoples Services,Residential Care - Ext Provider,A56114,0
London Borough of Sutton,02/09/2022,50246327,"9,328.80",Leonard Cheshire Disability,SOCIAL SERVICES RESIDENTIAL,Peoples Services,Residential Care - Ext Provider,A56114,0
London Borough of Sutton,02/09/2022,50246641,"6,034.32",Leonard Cheshire Disability,SOCIAL SERVICES RESIDENTIAL,Peoples Services,Residential Care - Ext Provider,A56114,0
London Borough of Sutton,02/09/2022,50246648,"5,061.52",Leonard Cheshire Disability,SOCIAL SERVICES RESIDENTIAL,Peoples Services,Residential Care - Ext Provider,A56114,0
London Borough of Sutton,02/09/2022,50246342,"6,991.08",Living Ambitions Ltd,SOCIAL SERVICES DAY CARE,Peoples Services,Residential Care - Ext Provider,A56114,0
London Borough of Sutton,02/09/2022,50246715,"8,055.92",Living Ambitions Ltd,SOCIAL SERVICES DAY CARE,Peoples Services,Residential Care - Ext Provider,A56114,0
London Borough of Sutton,02/09/2022,50246731,"7,657.96",Living Ambitions Ltd,SOCIAL SERVICES DAY CARE,Peoples Services,Residential Care - Ext Provider,A56114,0
London Borough of Sutton,02/09/2022,50246454,"3,664.08",Lodore Nursing Home,SOCIAL SERVICES RESIDENTIAL,Peoples Services,Nursing Care - Ext Provider,A56025,0
London Borough of Sutton,02/09/2022,50246454,-662.24,Lodore Nursing Home,SOCIAL SERVICES RESIDENTIAL,Peoples Services,Nursing Care - 3rd party top up payment,A56023,0
London Borough of Sutton,02/09/2022,50246460,-632.64,Lodore Nursing Home,SOCIAL SERVICES RESIDENTIAL,Peoples Services,Nursing Care - 3rd party top up payment,A56023,0
London Borough of Sutton,02/09/2022,50246460,"3,542.00",Lodore Nursing Home,SOCIAL SERVICES RESIDENTIAL,Peoples Services,Nursing Care - Ext Provider,A56025,0
London Borough of Sutton,02/09/2022,50246461,"3,665.20",Lodore Nursing Home,SOCIAL SERVICES RESIDENTIAL,Peoples Services,Nursing Care - Ext Provider,A56025,0
London Borough of Sutton,02/09/2022,50246461,-632.64,Lodore Nursing Home,SOCIAL SERVICES RESIDENTIAL,Peoples Services,Nursing Care - 3rd party top up payment,A56023,0
London Borough of Sutton,02/09/2022,50246498,"4,006.59",Lodore Nursing Home,SOCIAL SERVICES RESIDENTIAL,Peoples Services,Nursing Care Short Term,A56026,0
London Borough of Sutton,02/09/2022,50246498,-836.76,Lodore Nursing Home,SOCIAL SERVICES RESIDENTIAL,Peoples Services,Nursing Care - 3rd party top up payment,A56023,0
London Borough of Sutton,02/09/2022,50246556,-545.48,Lodore Nursing Home,SOCIAL SERVICES RESIDENTIAL,Peoples Services,Nursing Care - 3rd party top up payment,A56023,0
London Borough of Sutton,02/09/2022,50246556,"4,286.12",Lodore Nursing Home,SOCIAL SERVICES RESIDENTIAL,Peoples Services,Nursing Care - Ext Provider,A56025,0
London Borough of Sutton,02/09/2022,50246556,-735.68,Lodore Nursing Home,SOCIAL SERVICES RESIDENTIAL,Peoples Services,Nursing Care - 3rd party top up payment,A56023,0
London Borough of Sutton,02/09/2022,50246586,"15,148.49",Lodore Nursing Home,SOCIAL SERVICES RESIDENTIAL,Peoples Services,Nursing Care - Ext Provider,A56025,0
London Borough of Sutton,02/09/2022,50246586,"-3,317.16",Lodore Nursing Home,SOCIAL SERVICES RESIDENTIAL,Peoples Services,Nursing Care - 3rd party top up payment,A56023,0
London Borough of Sutton,02/09/2022,50246591,"3,587.60",Lodore Nursing Home,SOCIAL SERVICES RESIDENTIAL,Peoples Services,Nursing Care - Ext Provider,A56025,0
London Borough of Sutton,02/09/2022,50246591,-662.24,Lodore Nursing Home,SOCIAL SERVICES RESIDENTIAL,Peoples Services,Nursing Care - 3rd party top up payment,A56023,0
London Borough of Sutton,02/09/2022,50246594,"3,734.88",Lodore Nursing Home,SOCIAL SERVICES RESIDENTIAL,Peoples Services,Nursing Care - Ext Provider,A56025,0
London Borough of Sutton,02/09/2022,50246594,-750.40,Lodore Nursing Home,SOCIAL SERVICES RESIDENTIAL,Peoples Services,Nursing Care - 3rd party top up payment,A56023,0
London Borough of Sutton,02/09/2022,50246665,"3,848.24",Lodore Nursing Home,SOCIAL SERVICES RESIDENTIAL,Peoples Services,Nursing Care - Ext Provider,A56025,0
London Borough of Sutton,02/09/2022,50246665,-750.40,Lodore Nursing Home,SOCIAL SERVICES RESIDENTIAL,Peoples Services,Nursing Care - 3rd party top up payment,A56023,0
London Borough of Sutton,02/09/2022,50246687,"3,848.24",Lodore Nursing Home,SOCIAL SERVICES RESIDENTIAL,Peoples Services,Nursing Care - Ext Provider,A56025,0
London Borough of Sutton,02/09/2022,50246687,-750.40,Lodore Nursing Home,SOCIAL SERVICES RESIDENTIAL,Peoples Services,Nursing Care - 3rd party top up payment,A56023,0
London Borough of Sutton,02/09/2022,50246723,"3,848.24",Lodore Nursing Home,SOCIAL SERVICES RESIDENTIAL,Peoples Services,Nursing Care Short Term,A56026,0
London Borough of Sutton,02/09/2022,50246723,-750.40,Lodore Nursing Home,SOCIAL SERVICES RESIDENTIAL,Peoples Services,Nursing Care - 3rd party top up payment,A56023,0
London Borough of Sutton,02/09/2022,50246753,"3,665.20",Lodore Nursing Home,SOCIAL SERVICES RESIDENTIAL,Peoples Services,Nursing Care - Ext Provider,A56025,0
London Borough of Sutton,02/09/2022,50246753,-632.64,Lodore Nursing Home,SOCIAL SERVICES RESIDENTIAL,Peoples Services,Nursing Care - 3rd party top up payment,A56023,0
London Borough of Sutton,02/09/2022,20031960,590.00,Student2UK,CHILDREN'S SERVICES - RESIDENTIAL,Peoples Services,C.C.A Rent & Utilities,A61009,0
London Borough of Sutton,02/09/2022,20031964,590.00,Student2UK,CHILDREN'S SERVICES - RESIDENTIAL,Peoples Services,C.C.A Rent & Utilities,A61009,0
London Borough of Sutton,02/09/2022,20031965,630.00,Student2UK,CHILDREN'S SERVICES - RESIDENTIAL,Peoples Services,C.C.A Rent & Utilities,A61009,0
London Borough of Sutton,02/09/2022,50246536,"2,800.00",Lorven Housing Ltd,SOCIAL SERVICES RESIDENTIAL,Peoples Services,Residential Care Respite,A56018,0
London Borough of Sutton,02/09/2022,50246606,-735.68,Lorven Housing Ltd,SOCIAL SERVICES RESIDENTIAL,Peoples Services,Nursing Care - 3rd party top up payment,A56023,0
London Borough of Sutton,02/09/2022,50246606,"3,720.16",Lorven Housing Ltd,SOCIAL SERVICES RESIDENTIAL,Peoples Services,Nursing Care - Ext Provider,A56025,0
London Borough of Sutton,02/09/2022,50246667,"2,800.00",Lorven Housing Ltd,SOCIAL SERVICES RESIDENTIAL,Peoples Services,Interim Placements - Ext Provider,A56102,0
London Borough of Sutton,02/09/2022,50246703,"2,800.00",Lorven Housing Ltd,SOCIAL SERVICES RESIDENTIAL,Peoples Services,Interim Placements - Ext Provider,A56102,0
London Borough of Sutton,02/09/2022,50246751,"1,400.00",Lorven Housing Ltd,SOCIAL SERVICES RESIDENTIAL,Peoples Services,Residential Care Respite,A56018,0
London Borough of Sutton,02/09/2022,50246380,"9,110.84",Loving Care Ltd,SOCIAL SERVICES RESIDENTIAL,Peoples Services,Residential Care - Ext Provider,A56114,0
London Borough of Sutton,02/09/2022,50246330,"4,215.92",Macintyre,SOCIAL SERVICES RESIDENTIAL,Peoples Services,Residential Care - Ext Provider,A56114,0
London Borough of Sutton,02/09/2022,50246330,-618.80,Macintyre,SOCIAL SERVICES RESIDENTIAL,Peoples Services,Residential Care - Client Cont ( Net Paymt ),A56113,0
London Borough of Sutton,02/09/2022,50246264,"7,028.80",Maesteilo Care Homes Ltd,SOCIAL SERVICES RESIDENTIAL,Peoples Services,Residential Care - Ext Provider,A56114,0
London Borough of Sutton,02/09/2022,50246334,"3,735.36",Magic Life Ltd,SOCIAL SERVICES RESIDENTIAL,Peoples Services,Residential Care - Ext Provider,A56114,0
London Borough of Sutton,02/09/2022,50246349,"19,363.75",Maples Community Care Limited,SOCIAL SERVICES RESIDENTIAL,Peoples Services,Interim Placements - Ext Provider,A56102,0
London Borough of Sutton,02/09/2022,20031441,594.00,McKeown Fencing Ltd,CONSTRUCTION INDUSTRY,Resources,"Property Repairs, Maintenance & Alterations",A20010,0
London Borough of Sutton,02/09/2022,50246477,"2,697.76",Methodist Homes ,SOCIAL SERVICES RESIDENTIAL,Peoples Services,Residential Care - Ext Provider,A56114,0
London Borough of Sutton,02/09/2022,50246569,"3,735.36",Methodist Homes ,SOCIAL SERVICES RESIDENTIAL,Peoples Services,Residential Care - Ext Provider,A56114,0
London Borough of Sutton,02/09/2022,50246417,"3,449.04",Metropolitan Support Trust,SOCIAL SERVICES RESIDENTIAL,Peoples Services,Residential Care - Ext Provider,A56114,0
London Borough of Sutton,02/09/2022,50246417,-425.60,Metropolitan Support Trust,SOCIAL SERVICES RESIDENTIAL,Peoples Services,Residential Care - Client Cont ( Net Paymt ),A56113,0
London Borough of Sutton,02/09/2022,50246424,"3,320.24",Metropolitan Support Trust,SOCIAL SERVICES RESIDENTIAL,Peoples Services,Residential Care - Ext Provider,A56114,0
London Borough of Sutton,02/09/2022,50246424,-438.80,Metropolitan Support Trust,SOCIAL SERVICES RESIDENTIAL,Peoples Services,Residential Care - Client Cont ( Net Paymt ),A56113,0
London Borough of Sutton,02/09/2022,50246426,"3,320.24",Metropolitan Support Trust,SOCIAL SERVICES RESIDENTIAL,Peoples Services,Residential Care - Ext Provider,A56114,0
London Borough of Sutton,02/09/2022,50246555,"3,320.24",Metropolitan Support Trust,SOCIAL SERVICES RESIDENTIAL,Peoples Services,Residential Care - Ext Provider,A56114,0
London Borough of Sutton,02/09/2022,50246555,-784.00,Metropolitan Support Trust,SOCIAL SERVICES RESIDENTIAL,Peoples Services,Residential Care - Client Cont ( Net Paymt ),A56113,0
London Borough of Sutton,02/09/2022,50246611,"3,320.24",Metropolitan Support Trust,SOCIAL SERVICES RESIDENTIAL,Peoples Services,Residential Care - Ext Provider,A56114,0
London Borough of Sutton,02/09/2022,50246611,-425.60,Metropolitan Support Trust,SOCIAL SERVICES RESIDENTIAL,Peoples Services,Residential Care - Client Cont ( Net Paymt ),A56113,0
London Borough of Sutton,02/09/2022,50246621,"3,320.24",Metropolitan Support Trust,SOCIAL SERVICES RESIDENTIAL,Peoples Services,Residential Care - Ext Provider,A56114,0
London Borough of Sutton,02/09/2022,50246634,"3,980.08",Metropolitan Support Trust,SOCIAL SERVICES RESIDENTIAL,Peoples Services,Residential Care - Ext Provider,A56114,0
London Borough of Sutton,02/09/2022,50246647,"3,320.24",Metropolitan Support Trust,SOCIAL SERVICES RESIDENTIAL,Peoples Services,Residential Care - Ext Provider,A56114,0
London Borough of Sutton,02/09/2022,50246657,"3,320.24",Metropolitan Support Trust,SOCIAL SERVICES RESIDENTIAL,Peoples Services,Residential Care - Ext Provider,A56114,0
London Borough of Sutton,02/09/2022,50246657,-438.80,Metropolitan Support Trust,SOCIAL SERVICES RESIDENTIAL,Peoples Services,Residential Care - Client Cont ( Net Paymt ),A56113,0
London Borough of Sutton,02/09/2022,50246328,-632.64,Mission Care ,SOCIAL SERVICES RESIDENTIAL,Peoples Services,Nursing Care - 3rd party top up payment,A56023,0
London Borough of Sutton,02/09/2022,50246328,"3,623.40",Mission Care ,SOCIAL SERVICES RESIDENTIAL,Peoples Services,Nursing Care - Ext Provider,A56025,0
London Borough of Sutton,02/09/2022,50246302,"7,968.76",Mitchell's Care Homes Ltd ,SOCIAL SERVICES RESIDENTIAL,Peoples Services,Residential Care - Ext Provider,A56114,0
London Borough of Sutton,02/09/2022,50246323,-662.24,MMCG 2 Ltd,SOCIAL SERVICES RESIDENTIAL,Peoples Services,Nursing Care - 3rd party top up payment,A56023,0
London Borough of Sutton,02/09/2022,50246323,"3,587.60",MMCG 2 Ltd,SOCIAL SERVICES RESIDENTIAL,Peoples Services,Nursing Care - Ext Provider,A56025,0
London Borough of Sutton,02/09/2022,50246464,-735.68,MMCG 2 Ltd,SOCIAL SERVICES RESIDENTIAL,Peoples Services,Nursing Care - 3rd party top up payment,A56023,0
London Borough of Sutton,02/09/2022,50246464,"3,720.16",MMCG 2 Ltd,SOCIAL SERVICES RESIDENTIAL,Peoples Services,Nursing Care - Ext Provider,A56025,0
London Borough of Sutton,02/09/2022,50246590,"4,540.52",MMCG 2 Ltd,SOCIAL SERVICES RESIDENTIAL,Peoples Services,Nursing Care - Ext Provider,A56025,0
London Borough of Sutton,02/09/2022,50246590,-937.76,MMCG 2 Ltd,SOCIAL SERVICES RESIDENTIAL,Peoples Services,Nursing Care - 3rd party top up payment,A56023,0
London Borough of Sutton,02/09/2022,50246590,-662.24,MMCG 2 Ltd,SOCIAL SERVICES RESIDENTIAL,Peoples Services,Nursing Care - 3rd party top up payment,A56023,0
London Borough of Sutton,02/09/2022,50246316,"9,230.48",Modus Care Ltd,SOCIAL SERVICES RESIDENTIAL,Peoples Services,Residential Care - Ext Provider,A56114,0
London Borough of Sutton,02/09/2022,50246357,"4,326.56",Modus Care Ltd,SOCIAL SERVICES RESIDENTIAL,Peoples Services,Residential Care - Ext Provider,A56114,0
London Borough of Sutton,02/09/2022,50246357,-438.80,Modus Care Ltd,SOCIAL SERVICES RESIDENTIAL,Peoples Services,Residential Care - Client Cont ( Net Paymt ),A56113,0
London Borough of Sutton,02/09/2022,50246373,"2,697.76",Montclair,SOCIAL SERVICES RESIDENTIAL,Peoples Services,Residential Care - Ext Provider,A56114,0
London Borough of Sutton,02/09/2022,50246425,"2,697.76",Montclair,SOCIAL SERVICES RESIDENTIAL,Peoples Services,Residential Care - Ext Provider,A56114,0
London Borough of Sutton,02/09/2022,50246350,-694.80,REDACTED - PERSONAL DATA,SOCIAL SERVICES RESIDENTIAL,Peoples Services,Residential Care - Client Cont ( Net Paymt ),A56113,0
London Borough of Sutton,02/09/2022,50246350,"2,302.36",REDACTED - PERSONAL DATA,SOCIAL SERVICES RESIDENTIAL,Peoples Services,Residential Care - Ext Provider,A56114,0
London Borough of Sutton,02/09/2022,50246386,"2,697.76",REDACTED - PERSONAL DATA,SOCIAL SERVICES RESIDENTIAL,Peoples Services,Residential Care - Ext Provider,A56114,0
London Borough of Sutton,02/09/2022,50246387,"2,697.76",REDACTED - PERSONAL DATA,SOCIAL SERVICES RESIDENTIAL,Peoples Services,Residential Care - Ext Provider,A56114,0
London Borough of Sutton,02/09/2022,50246429,"2,801.52",REDACTED - PERSONAL DATA,SOCIAL SERVICES RESIDENTIAL,Peoples Services,Interim Placements - Ext Provider,A56102,0
London Borough of Sutton,02/09/2022,50246625,"2,697.76",REDACTED - PERSONAL DATA,SOCIAL SERVICES RESIDENTIAL,Peoples Services,Residential Care - Ext Provider,A56114,0
London Borough of Sutton,02/09/2022,50246626,"2,697.76",REDACTED - PERSONAL DATA,SOCIAL SERVICES RESIDENTIAL,Peoples Services,Residential Care - Ext Provider,A56114,0
London Borough of Sutton,02/09/2022,50246644,"2,697.76",REDACTED - PERSONAL DATA,SOCIAL SERVICES RESIDENTIAL,Peoples Services,Residential Care - Ext Provider,A56114,0
London Borough of Sutton,02/09/2022,50246685,"2,905.28",REDACTED - PERSONAL DATA,SOCIAL SERVICES RESIDENTIAL,Peoples Services,Interim Placements - Ext Provider,A56102,0
London Borough of Sutton,02/09/2022,50246713,"2,697.76",REDACTED - PERSONAL DATA,SOCIAL SERVICES RESIDENTIAL,Peoples Services,Residential Care - Ext Provider,A56114,0
London Borough of Sutton,02/09/2022,50246727,"2,697.76",REDACTED - PERSONAL DATA,SOCIAL SERVICES RESIDENTIAL,Peoples Services,Residential Care - Ext Provider,A56114,0
London Borough of Sutton,02/09/2022,50246728,"2,697.76",REDACTED - PERSONAL DATA,SOCIAL SERVICES RESIDENTIAL,Peoples Services,Residential Care - Ext Provider,A56114,0
London Borough of Sutton,02/09/2022,50246303,"5,569.12",REDACTED - PERSONAL DATA,SOCIAL SERVICES RESIDENTIAL,Peoples Services,Residential Care - Ext Provider,A56114,0
London Borough of Sutton,02/09/2022,50246303,-236.40,REDACTED - PERSONAL DATA,SOCIAL SERVICES RESIDENTIAL,Peoples Services,Residential Care - Client Cont ( Net Paymt ),A56113,0
London Borough of Sutton,02/09/2022,50246550,"5,876.48",REDACTED - PERSONAL DATA,SOCIAL SERVICES RESIDENTIAL,Peoples Services,Residential Care - Ext Provider,A56114,0
London Borough of Sutton,02/09/2022,50246550,-438.80,REDACTED - PERSONAL DATA,SOCIAL SERVICES RESIDENTIAL,Peoples Services,Residential Care - Client Cont ( Net Paymt ),A56113,0
London Borough of Sutton,02/09/2022,50246577,"4,814.52",REDACTED - PERSONAL DATA,SOCIAL SERVICES RESIDENTIAL,Peoples Services,Residential Care - Ext Provider,A56114,0
London Borough of Sutton,02/09/2022,50246577,-474.80,REDACTED - PERSONAL DATA,SOCIAL SERVICES RESIDENTIAL,Peoples Services,Residential Care - Client Cont ( Net Paymt ),A56113,0
London Borough of Sutton,02/09/2022,50246276,"5,354.76",NAS Services Ltd ,SOCIAL SERVICES RESIDENTIAL,Peoples Services,Residential Care - Ext Provider,A56114,0
London Borough of Sutton,02/09/2022,50246276,-494.90,NAS Services Ltd ,SOCIAL SERVICES RESIDENTIAL,Peoples Services,Residential Care - Client Cont ( Net Paymt ),A56113,0
London Borough of Sutton,02/09/2022,50246538,"4,648.44",Nash Care Homes Ltd,SOCIAL SERVICES RESIDENTIAL,Peoples Services,Residential Care - Ext Provider,A56114,0
London Borough of Sutton,02/09/2022,50246455,"6,121.84",New Life Care Ltd,SOCIAL SERVICES RESIDENTIAL,Peoples Services,Residential Care - Ext Provider,A56114,0
London Borough of Sutton,02/09/2022,50246455,"-2,891.00",New Life Care Ltd,SOCIAL SERVICES RESIDENTIAL,Peoples Services,Nursing Care - 3rd party top up payment,A56023,0
London Borough of Sutton,02/09/2022,50246534,"5,916.40",New Life Care Ltd,SOCIAL SERVICES RESIDENTIAL,Peoples Services,Residential Care - Ext Provider,A56114,0
London Borough of Sutton,02/09/2022,50246673,"5,706.80",New Life Care Ltd,SOCIAL SERVICES RESIDENTIAL,Peoples Services,Interim Placements - Ext Provider,A56102,0
London Borough of Sutton,02/09/2022,50246541,-750.40,Newslease Ltd,SOCIAL SERVICES RESIDENTIAL,Peoples Services,Nursing Care - 3rd party top up payment,A56023,0
London Borough of Sutton,02/09/2022,50246541,"3,734.88",Newslease Ltd,SOCIAL SERVICES RESIDENTIAL,Peoples Services,Nursing Care Short Term,A56026,0
London Borough of Sutton,02/09/2022,50246692,"-2,121.78",Newslease Ltd,SOCIAL SERVICES RESIDENTIAL,Peoples Services,Nursing Care - 3rd party top up payment,A56023,0
London Borough of Sutton,02/09/2022,50246692,"9,689.57",Newslease Ltd,SOCIAL SERVICES RESIDENTIAL,Peoples Services,Nursing Care Short Term,A56026,0
London Borough of Sutton,02/09/2022,50246709,-750.40,Newslease Ltd,SOCIAL SERVICES RESIDENTIAL,Peoples Services,Nursing Care - 3rd party top up payment,A56023,0
London Borough of Sutton,02/09/2022,50246709,"4,122.20",Newslease Ltd,SOCIAL SERVICES RESIDENTIAL,Peoples Services,Nursing Care Short Term,A56026,0
London Borough of Sutton,02/09/2022,50246724,"9,061.44",Norwood Schools Ltd,CHILDREN'S SERVICES - RESIDENTIAL,Peoples Services,Residential Care - Ext Provider,A56114,0
London Borough of Sutton,02/09/2022,50246724,-438.80,Norwood Schools Ltd,CHILDREN'S SERVICES - RESIDENTIAL,Peoples Services,Residential Care - Client Cont ( Net Paymt ),A56113,0
London Borough of Sutton,02/09/2022,50246756,"4,132.12",Norwood Schools Ltd,CHILDREN'S SERVICES - RESIDENTIAL,Peoples Services,Residential Care - Ext Provider,A56114,0
London Borough of Sutton,02/09/2022,50246756,-494.90,Norwood Schools Ltd,CHILDREN'S SERVICES - RESIDENTIAL,Peoples Services,Residential Care - Client Cont ( Net Paymt ),A56113,0
London Borough of Sutton,02/09/2022,50246374,"2,697.76",NRS Heathcare Ltd,SOCIAL SERVICES RESIDENTIAL,Peoples Services,Residential Care - Ext Provider,A56114,0
London Borough of Sutton,02/09/2022,50246407,-735.68,NRS Heathcare Ltd,SOCIAL SERVICES RESIDENTIAL,Peoples Services,Nursing Care - 3rd party top up payment,A56023,0
London Borough of Sutton,02/09/2022,50246407,"4,952.80",NRS Heathcare Ltd,SOCIAL SERVICES RESIDENTIAL,Peoples Services,Nursing Care - Ext Provider,A56025,0
London Borough of Sutton,02/09/2022,50246456,"5,716.16",NRS Heathcare Ltd,SOCIAL SERVICES RESIDENTIAL,Peoples Services,Nursing Care - Ext Provider,A56025,0
London Borough of Sutton,02/09/2022,50246456,-656.84,NRS Heathcare Ltd,SOCIAL SERVICES RESIDENTIAL,Peoples Services,Nursing Care - 3rd party top up payment,A56023,0
London Borough of Sutton,02/09/2022,50246456,-735.68,NRS Heathcare Ltd,SOCIAL SERVICES RESIDENTIAL,Peoples Services,Nursing Care - 3rd party top up payment,A56023,0
London Borough of Sutton,02/09/2022,50246513,"3,736.00",NRS Heathcare Ltd,SOCIAL SERVICES RESIDENTIAL,Peoples Services,Nursing Care Short Term,A56026,0
London Borough of Sutton,02/09/2022,50246513,-750.40,NRS Heathcare Ltd,SOCIAL SERVICES RESIDENTIAL,Peoples Services,Nursing Care - 3rd party top up payment,A56023,0
London Borough of Sutton,02/09/2022,50246559,-750.40,NRS Heathcare Ltd,SOCIAL SERVICES RESIDENTIAL,Peoples Services,Nursing Care - 3rd party top up payment,A56023,0
London Borough of Sutton,02/09/2022,50246559,"14,736.40",NRS Heathcare Ltd,SOCIAL SERVICES RESIDENTIAL,Peoples Services,Nursing Care Short Term,A56026,0
London Borough of Sutton,02/09/2022,50246718,"8,325.20",NRS Heathcare Ltd,SOCIAL SERVICES RESIDENTIAL,Peoples Services,Nursing Care - Ext Provider,A56025,0
London Borough of Sutton,02/09/2022,50246718,-750.40,NRS Heathcare Ltd,SOCIAL SERVICES RESIDENTIAL,Peoples Services,Nursing Care - 3rd party top up payment,A56023,0
London Borough of Sutton,02/09/2022,50246326,"3,400.00",Oakfield Care (Ashtead) Ltd,SOCIAL SERVICES RESIDENTIAL,Peoples Services,Nursing Care - Ext Provider,A56025,0
London Borough of Sutton,02/09/2022,50246610,"3,623.64",Orchard Vale Trust,SOCIAL SERVICES RESIDENTIAL,Peoples Services,Residential Care - Ext Provider,A56114,0
London Borough of Sutton,02/09/2022,50246610,-425.60,Orchard Vale Trust,SOCIAL SERVICES RESIDENTIAL,Peoples Services,Residential Care - Client Cont ( Net Paymt ),A56113,0
London Borough of Sutton,02/09/2022,50246660,"3,623.64",Orchard Vale Trust,SOCIAL SERVICES RESIDENTIAL,Peoples Services,Residential Care - Ext Provider,A56114,0
London Borough of Sutton,02/09/2022,50246660,-438.80,Orchard Vale Trust,SOCIAL SERVICES RESIDENTIAL,Peoples Services,Residential Care - Client Cont ( Net Paymt ),A56113,0
London Borough of Sutton,02/09/2022,50246677,-56.29,Orchard Vale Trust,SOCIAL SERVICES RESIDENTIAL,Peoples Services,Residential Care - Client Cont ( Net Paymt ),A56113,0
London Borough of Sutton,02/09/2022,50246677,609.01,Orchard Vale Trust,SOCIAL SERVICES RESIDENTIAL,Peoples Services,Residential Care - Ext Provider,A56114,0
London Borough of Sutton,02/09/2022,50246384,"5,375.16",Oregon Care Ltd,SOCIAL SERVICES RESIDENTIAL,Peoples Services,Residential Care - Ext Provider,A56114,0
London Borough of Sutton,02/09/2022,50246384,-638.00,Oregon Care Ltd,SOCIAL SERVICES RESIDENTIAL,Peoples Services,Residential Care - Client Cont ( Net Paymt ),A56113,0
London Borough of Sutton,02/09/2022,50246301,"2,306.20",Orione Care,SOCIAL SERVICES RESIDENTIAL,Peoples Services,Residential Care - Ext Provider,A56114,0
London Borough of Sutton,02/09/2022,50246301,-425.60,Orione Care,SOCIAL SERVICES RESIDENTIAL,Peoples Services,Residential Care - Client Cont ( Net Paymt ),A56113,0
London Borough of Sutton,02/09/2022,50246377,"2,669.16",Park Lodge,SOCIAL SERVICES RESIDENTIAL,Peoples Services,Residential Care - Ext Provider,A56114,0
London Borough of Sutton,02/09/2022,50246462,"3,400.00",Park Lodge,SOCIAL SERVICES RESIDENTIAL,Peoples Services,Residential Care - Ext Provider,A56114,0
London Borough of Sutton,02/09/2022,50246462,200.00,Park Lodge,SOCIAL SERVICES RESIDENTIAL,Peoples Services,One to One Care,A56108,0
London Borough of Sutton,02/09/2022,50246656,"2,845.60",Park Lodge,SOCIAL SERVICES RESIDENTIAL,Peoples Services,Residential Care - Ext Provider,A56114,0
London Borough of Sutton,02/09/2022,50246680,"4,000.00",Park Lodge,SOCIAL SERVICES RESIDENTIAL,Peoples Services,Residential Care - Ext Provider,A56114,0
London Borough of Sutton,02/09/2022,50246403,"3,653.72",Parkside Nursing Home Ltd,SOCIAL SERVICES RESIDENTIAL,Peoples Services,Nursing Care - Ext Provider,A56025,0
London Borough of Sutton,02/09/2022,50246403,-662.24,Parkside Nursing Home Ltd,SOCIAL SERVICES RESIDENTIAL,Peoples Services,Nursing Care - 3rd party top up payment,A56023,0
London Borough of Sutton,02/09/2022,50246409,"3,720.16",Parkside Nursing Home Ltd,SOCIAL SERVICES RESIDENTIAL,Peoples Services,Nursing Care - Ext Provider,A56025,0
London Borough of Sutton,02/09/2022,50246409,-735.68,Parkside Nursing Home Ltd,SOCIAL SERVICES RESIDENTIAL,Peoples Services,Nursing Care - 3rd party top up payment,A56023,0
London Borough of Sutton,02/09/2022,50246444,"3,736.00",Parkside Nursing Home Ltd,SOCIAL SERVICES RESIDENTIAL,Peoples Services,Nursing Care - Ext Provider,A56025,0
London Borough of Sutton,02/09/2022,50246445,-750.40,Parkside Nursing Home Ltd,SOCIAL SERVICES RESIDENTIAL,Peoples Services,Nursing Care - 3rd party top up payment,A56023,0
London Borough of Sutton,02/09/2022,50246596,"3,734.88",Parkside Nursing Home Ltd,SOCIAL SERVICES RESIDENTIAL,Peoples Services,Nursing Care - Ext Provider,A56025,0
London Borough of Sutton,02/09/2022,50246596,-750.40,Parkside Nursing Home Ltd,SOCIAL SERVICES RESIDENTIAL,Peoples Services,Nursing Care - 3rd party top up payment,A56023,0
London Borough of Sutton,02/09/2022,50246628,"3,848.24",Parkside Nursing Home Ltd,SOCIAL SERVICES RESIDENTIAL,Peoples Services,Nursing Care - Ext Provider,A56025,0
London Borough of Sutton,02/09/2022,50246628,-750.40,Parkside Nursing Home Ltd,SOCIAL SERVICES RESIDENTIAL,Peoples Services,Nursing Care - 3rd party top up payment,A56023,0
London Borough of Sutton,02/09/2022,50246638,"3,734.88",Parkside Nursing Home Ltd,SOCIAL SERVICES RESIDENTIAL,Peoples Services,Nursing Care - Ext Provider,A56025,0
London Borough of Sutton,02/09/2022,50246638,-750.40,Parkside Nursing Home Ltd,SOCIAL SERVICES RESIDENTIAL,Peoples Services,Nursing Care - 3rd party top up payment,A56023,0
London Borough of Sutton,02/09/2022,50246668,-836.76,Parkside Nursing Home Ltd,SOCIAL SERVICES RESIDENTIAL,Peoples Services,Nursing Care - 3rd party top up payment,A56023,0
London Borough of Sutton,02/09/2022,50246668,"3,821.24",Parkside Nursing Home Ltd,SOCIAL SERVICES RESIDENTIAL,Peoples Services,Nursing Care Short Term,A56026,0
London Borough of Sutton,02/09/2022,20031500,"2,700.00",Pau Creative Ltd,BUSINESS & COMPUTER SYSTEMS,Resources,Publicity,A44266,0
London Borough of Sutton,02/09/2022,50246277,"8,707.52",Peak 15 Ltd,SOCIAL SERVICES RESIDENTIAL,Peoples Services,Residential Care - Ext Provider,A56114,0
London Borough of Sutton,02/09/2022,50246277,-869.08,Peak 15 Ltd,SOCIAL SERVICES RESIDENTIAL,Peoples Services,Residential Care - Client Cont ( Net Paymt ),A56113,0
London Borough of Sutton,02/09/2022,50246478,"7,817.68",Peak 15 Ltd,SOCIAL SERVICES RESIDENTIAL,Peoples Services,Residential Care - Ext Provider,A56114,0
London Borough of Sutton,02/09/2022,50246320,"3,482.14",Lavender Oaks Care Home,SOCIAL SERVICES RESIDENTIAL,Peoples Services,Residential Care - Ext Provider,A56114,0
London Borough of Sutton,02/09/2022,50246313,"2,780.76",Primley House Housing Association Limited,SOCIAL SERVICES RESIDENTIAL,Peoples Services,Residential Care - Ext Provider,A56114,0
London Borough of Sutton,02/09/2022,50246281,"6,918.32",Queen Elizabeth's Foundation,SOCIAL SERVICES RESIDENTIAL,Peoples Services,Residential Care - Ext Provider,A56114,0
London Borough of Sutton,02/09/2022,50246481,-836.76,RADAH CARE LIMITED,SOCIAL SERVICES RESIDENTIAL,Peoples Services,Nursing Care - 3rd party top up payment,A56023,0
London Borough of Sutton,02/09/2022,50246481,"4,436.76",RADAH CARE LIMITED,SOCIAL SERVICES RESIDENTIAL,Peoples Services,Nursing Care - Ext Provider,A56025,0
London Borough of Sutton,02/09/2022,50246598,-836.76,RADAH CARE LIMITED,SOCIAL SERVICES RESIDENTIAL,Peoples Services,Nursing Care - 3rd party top up payment,A56023,0
London Borough of Sutton,02/09/2022,50246598,"4,436.76",RADAH CARE LIMITED,SOCIAL SERVICES RESIDENTIAL,Peoples Services,Nursing Care - Ext Provider,A56025,0
London Borough of Sutton,02/09/2022,50246366,"4,045.16",Rafael Home,SOCIAL SERVICES RESIDENTIAL,Peoples Services,Residential Care - Ext Provider,A56114,0
London Borough of Sutton,02/09/2022,50246366,214.00,Rafael Home,SOCIAL SERVICES RESIDENTIAL,Peoples Services,One to One Care,A56108,0
London Borough of Sutton,02/09/2022,50246368,"4,768.00",Rafael Home,SOCIAL SERVICES RESIDENTIAL,Peoples Services,Residential Care - Ext Provider,A56114,0
London Borough of Sutton,02/09/2022,50246368,800.00,Rafael Home,SOCIAL SERVICES RESIDENTIAL,Peoples Services,One to One Care,A56108,0
London Borough of Sutton,02/09/2022,50246405,"4,768.00",Rafael Home,SOCIAL SERVICES RESIDENTIAL,Peoples Services,Residential Care - Ext Provider,A56114,0
London Borough of Sutton,02/09/2022,50246405,800.00,Rafael Home,SOCIAL SERVICES RESIDENTIAL,Peoples Services,One to One Care,A56108,0
London Borough of Sutton,02/09/2022,50246504,"4,768.00",Rafael Home,SOCIAL SERVICES RESIDENTIAL,Peoples Services,Residential Care - Ext Provider,A56114,0
London Borough of Sutton,02/09/2022,50246504,800.00,Rafael Home,SOCIAL SERVICES RESIDENTIAL,Peoples Services,One to One Care,A56108,0
London Borough of Sutton,02/09/2022,50246754,"4,768.00",Rafael Home,SOCIAL SERVICES RESIDENTIAL,Peoples Services,Residential Care - Ext Provider,A56114,0
London Borough of Sutton,02/09/2022,50246754,800.00,Rafael Home,SOCIAL SERVICES RESIDENTIAL,Peoples Services,One to One Care,A56108,0
London Borough of Sutton,02/09/2022,20031705,992.08,Royal Borough of Kingston upon Thames,CENTRAL & LOCAL GOVERNMENT,Resources,IT Software Purchase,A45040,0
London Borough of Sutton,02/09/2022,50246348,"4,236.76",Royal Masonic Benevolent Institution,SOCIAL SERVICES RESIDENTIAL,Peoples Services,Nursing Care - Ext Provider,A56025,0
London Borough of Sutton,02/09/2022,50246348,-836.76,Royal Masonic Benevolent Institution,SOCIAL SERVICES RESIDENTIAL,Peoples Services,Nursing Care - 3rd party top up payment,A56023,0
London Borough of Sutton,02/09/2022,50246265,"5,619.88",Royal Mencap Society,SOCIAL SERVICES DAY CARE,Peoples Services,Residential Care - Ext Provider,A56114,0
London Borough of Sutton,02/09/2022,50246265,-437.60,Royal Mencap Society,SOCIAL SERVICES DAY CARE,Peoples Services,Residential Care - Client Cont ( Net Paymt ),A56113,0
London Borough of Sutton,02/09/2022,50246283,"7,235.72",Royal Mencap Society,SOCIAL SERVICES DAY CARE,Peoples Services,Residential Care - Ext Provider,A56114,0
London Borough of Sutton,02/09/2022,50246282,"4,150.40",RRC Gb Ltd,SOCIAL SERVICES RESIDENTIAL,Peoples Services,Residential Care - Ext Provider,A56114,0
London Borough of Sutton,02/09/2022,50246392,"2,697.76",Rutland House Care Home Ltd,SOCIAL SERVICES RESIDENTIAL,Peoples Services,Interim Placements - Ext Provider,A56102,0
London Borough of Sutton,02/09/2022,50246635,"2,697.76",Rutland House Care Home Ltd,SOCIAL SERVICES RESIDENTIAL,Peoples Services,Residential Care - Ext Provider,A56114,0
London Borough of Sutton,02/09/2022,50246379,"6,562.76",Seeability,SOCIAL SERVICES RESIDENTIAL,Peoples Services,Residential Care - Ext Provider,A56114,0
London Borough of Sutton,02/09/2022,50246379,-739.40,Seeability,SOCIAL SERVICES RESIDENTIAL,Peoples Services,Residential Care - Client Cont ( Net Paymt ),A56113,0
London Borough of Sutton,02/09/2022,50246362,"3,848.24",Southdown,SOCIAL SERVICES RESIDENTIAL,Peoples Services,Nursing Care - Ext Provider,A56025,0
London Borough of Sutton,02/09/2022,50246362,-750.40,Southdown,SOCIAL SERVICES RESIDENTIAL,Peoples Services,Nursing Care - 3rd party top up payment,A56023,0
London Borough of Sutton,02/09/2022,50246399,"3,821.24",Southdown,SOCIAL SERVICES RESIDENTIAL,Peoples Services,Nursing Care - Ext Provider,A56025,0
London Borough of Sutton,02/09/2022,50246399,-750.40,Southdown,SOCIAL SERVICES RESIDENTIAL,Peoples Services,Nursing Care - 3rd party top up payment,A56023,0
London Borough of Sutton,02/09/2022,50246404,-632.64,Southdown,SOCIAL SERVICES RESIDENTIAL,Peoples Services,Nursing Care - 3rd party top up payment,A56023,0
London Borough of Sutton,02/09/2022,50246404,"3,588.72",Southdown,SOCIAL SERVICES RESIDENTIAL,Peoples Services,Nursing Care - Ext Provider,A56025,0
London Borough of Sutton,02/09/2022,50246465,"3,720.16",Southdown,SOCIAL SERVICES RESIDENTIAL,Peoples Services,Nursing Care - Ext Provider,A56025,0
London Borough of Sutton,02/09/2022,50246465,-735.68,Southdown,SOCIAL SERVICES RESIDENTIAL,Peoples Services,Nursing Care - 3rd party top up payment,A56023,0
London Borough of Sutton,02/09/2022,50246505,"3,664.08",Southdown,SOCIAL SERVICES RESIDENTIAL,Peoples Services,Nursing Care - Ext Provider,A56025,0
London Borough of Sutton,02/09/2022,50246505,-662.24,Southdown,SOCIAL SERVICES RESIDENTIAL,Peoples Services,Nursing Care - 3rd party top up payment,A56023,0
London Borough of Sutton,02/09/2022,50246688,-750.40,Southdown,SOCIAL SERVICES RESIDENTIAL,Peoples Services,Nursing Care - 3rd party top up payment,A56023,0
London Borough of Sutton,02/09/2022,50246688,"3,848.24",Southdown,SOCIAL SERVICES RESIDENTIAL,Peoples Services,Nursing Care Short Term,A56026,0
London Borough of Sutton,02/09/2022,50246694,"3,588.72",Southdown,SOCIAL SERVICES RESIDENTIAL,Peoples Services,Nursing Care - Ext Provider,A56025,0
London Borough of Sutton,02/09/2022,50246694,-632.64,Southdown,SOCIAL SERVICES RESIDENTIAL,Peoples Services,Nursing Care - 3rd party top up payment,A56023,0
London Borough of Sutton,02/09/2022,50246702,"4,230.66",Southdown,SOCIAL SERVICES RESIDENTIAL,Peoples Services,Nursing Care Short Term,A56026,0
London Borough of Sutton,02/09/2022,50246702,-926.41,Southdown,SOCIAL SERVICES RESIDENTIAL,Peoples Services,Nursing Care - 3rd party top up payment,A56023,0
London Borough of Sutton,02/09/2022,50246719,"3,734.88",Southdown,SOCIAL SERVICES RESIDENTIAL,Peoples Services,Nursing Care - Ext Provider,A56025,0
London Borough of Sutton,02/09/2022,50246719,-750.40,Southdown,SOCIAL SERVICES RESIDENTIAL,Peoples Services,Nursing Care - 3rd party top up payment,A56023,0
London Borough of Sutton,02/09/2022,50246733,"3,848.24",Southdown,SOCIAL SERVICES RESIDENTIAL,Peoples Services,Nursing Care - Ext Provider,A56025,0
London Borough of Sutton,02/09/2022,50246733,-750.40,Southdown,SOCIAL SERVICES RESIDENTIAL,Peoples Services,Nursing Care - 3rd party top up payment,A56023,0
London Borough of Sutton,02/09/2022,50246738,-632.64,Southdown,SOCIAL SERVICES RESIDENTIAL,Peoples Services,Nursing Care - 3rd party top up payment,A56023,0
London Borough of Sutton,02/09/2022,50246738,"4,022.84",Southdown,SOCIAL SERVICES RESIDENTIAL,Peoples Services,Nursing Care - Ext Provider,A56025,0
London Borough of Sutton,02/09/2022,50246497,"-4,482.64",St Cloud Care PLC,SOCIAL SERVICES - OTHER,Peoples Services,Nursing Care - 3rd party top up payment,A56023,0
London Borough of Sutton,02/09/2022,50246497,"21,732.64",St Cloud Care PLC,SOCIAL SERVICES - OTHER,Peoples Services,Nursing Care - Ext Provider,A56025,0
London Borough of Sutton,02/09/2022,50246501,"28,785.40",St Cloud Care PLC,SOCIAL SERVICES - OTHER,Peoples Services,Nursing Care - Ext Provider,A56025,0
London Borough of Sutton,02/09/2022,50246501,"-5,440.40",St Cloud Care PLC,SOCIAL SERVICES - OTHER,Peoples Services,Nursing Care - 3rd party top up payment,A56023,0
London Borough of Sutton,02/09/2022,50246675,-750.40,St Cloud Care PLC,SOCIAL SERVICES - OTHER,Peoples Services,Nursing Care - 3rd party top up payment,A56023,0
London Borough of Sutton,02/09/2022,50246675,"3,970.40",St Cloud Care PLC,SOCIAL SERVICES - OTHER,Peoples Services,Nursing Care - Ext Provider,A56025,0
London Borough of Sutton,02/09/2022,50246310,"4,221.52",St Michael's ,SOCIAL SERVICES RESIDENTIAL,Peoples Services,Residential Care - Ext Provider,A56114,0
London Borough of Sutton,02/09/2022,50246280,"5,159.80",St Teresa's Home CIO,SOCIAL SERVICES RESIDENTIAL,Peoples Services,Nursing Care - Ext Provider,A56025,0
London Borough of Sutton,02/09/2022,50246280,-750.40,St Teresa's Home CIO,SOCIAL SERVICES RESIDENTIAL,Peoples Services,Nursing Care - 3rd party top up payment,A56023,0
London Borough of Sutton,02/09/2022,50246474,"10,376.00",Sunrise Rehabilition Centre,SOCIAL SERVICES RESIDENTIAL,Peoples Services,Interim Placements - Ext Provider,A56102,0
London Borough of Sutton,02/09/2022,50246511,"3,527.84",Sunrise Rehabilition Centre,SOCIAL SERVICES RESIDENTIAL,Peoples Services,Residential Care - Ext Provider,A56114,0
London Borough of Sutton,02/09/2022,50246562,"2,000.00",Sunrise Rehabilition Centre,SOCIAL SERVICES RESIDENTIAL,Peoples Services,Residential Care - Ext Provider,A56114,0
London Borough of Sutton,02/09/2022,50246681,"21,140.74",Sunrise Rehabilition Centre,SOCIAL SERVICES RESIDENTIAL,Peoples Services,Residential Care - Ext Provider,A56114,0
London Borough of Sutton,02/09/2022,50246261,"4,700.76",Sunrise UK Operations Ltd,SOCIAL SERVICES RESIDENTIAL,Peoples Services,Residential Care - Ext Provider,A56114,0
London Borough of Sutton,02/09/2022,50246643,"2,548.52",Supreme Homes Ltd,SOCIAL SERVICES RESIDENTIAL,Peoples Services,Residential Care - Ext Provider,A56114,0
London Borough of Sutton,02/09/2022,50246739,"-1,898.80",Supreme Homes Ltd,SOCIAL SERVICES RESIDENTIAL,Peoples Services,Nursing Care - 3rd party top up payment,A56023,0
London Borough of Sutton,02/09/2022,50246739,"3,863.16",Supreme Homes Ltd,SOCIAL SERVICES RESIDENTIAL,Peoples Services,Residential Care - Ext Provider,A56114,0
London Borough of Sutton,02/09/2022,50246268,"2,142.21",Surrey & Borders Partnership NHS Trust,SOCIAL SERVICES RESIDENTIAL,Peoples Services,Residential Care Respite,A56018,0
London Borough of Sutton,02/09/2022,50246636,"7,460.80",Surrey & Borders Partnership NHS Trust,SOCIAL SERVICES RESIDENTIAL,Peoples Services,Residential Care - Ext Provider,A56114,0
London Borough of Sutton,02/09/2022,50246636,-438.80,Surrey & Borders Partnership NHS Trust,SOCIAL SERVICES RESIDENTIAL,Peoples Services,Residential Care - Client Cont ( Net Paymt ),A56113,0
London Borough of Sutton,02/09/2022,50246637,"7,398.84",Surrey & Borders Partnership NHS Trust,SOCIAL SERVICES RESIDENTIAL,Peoples Services,Residential Care - Ext Provider,A56114,0
London Borough of Sutton,02/09/2022,50246637,-638.00,Surrey & Borders Partnership NHS Trust,SOCIAL SERVICES RESIDENTIAL,Peoples Services,Residential Care - Client Cont ( Net Paymt ),A56113,0
London Borough of Sutton,02/09/2022,50246708,"7,872.64",Surrey & Borders Partnership NHS Trust,SOCIAL SERVICES RESIDENTIAL,Peoples Services,Residential Care - Ext Provider,A56114,0
London Borough of Sutton,02/09/2022,50246708,-496.80,Surrey & Borders Partnership NHS Trust,SOCIAL SERVICES RESIDENTIAL,Peoples Services,Residential Care - Client Cont ( Net Paymt ),A56113,0
London Borough of Sutton,02/09/2022,50246333,"3,384.00",Surrey Choices Ltd,SOCIAL SERVICES RESIDENTIAL,Peoples Services,Residential Care Respite,A56018,0
London Borough of Sutton,02/09/2022,50246394,"4,523.92",Susash London Ltd,SOCIAL SERVICES RESIDENTIAL,Peoples Services,Residential Care - Ext Provider,A56114,0
London Borough of Sutton,02/09/2022,50246630,"4,952.28",Susash London Ltd,SOCIAL SERVICES RESIDENTIAL,Peoples Services,Nursing Care - Ext Provider,A56025,0
London Borough of Sutton,02/09/2022,50246632,"3,472.00",Susash London Ltd,SOCIAL SERVICES RESIDENTIAL,Peoples Services,Nursing Care - Ext Provider,A56025,0
London Borough of Sutton,02/09/2022,50246627,"3,341.08",Sutton Cheam Elderly People Hsg Assoc,SOCIAL SERVICES RESIDENTIAL,Peoples Services,Residential Care - Ext Provider,A56114,0
London Borough of Sutton,02/09/2022,50246645,"3,140.00",Sutton Cheam Elderly People Hsg Assoc,SOCIAL SERVICES RESIDENTIAL,Peoples Services,Residential Care Respite,A56018,0
London Borough of Sutton,02/09/2022,50246355,"6,487.08",Sutton Court Nursing Homes Ltd,SOCIAL SERVICES RESIDENTIAL,Peoples Services,Residential Care - Ext Provider,A56114,0
London Borough of Sutton,02/09/2022,50246363,"3,848.24",Sutton Nursing Homes Ltd,SOCIAL SERVICES RESIDENTIAL,Peoples Services,Nursing Care Short Term,A56026,0
London Borough of Sutton,02/09/2022,50246363,-750.40,Sutton Nursing Homes Ltd,SOCIAL SERVICES RESIDENTIAL,Peoples Services,Nursing Care - 3rd party top up payment,A56023,0
London Borough of Sutton,02/09/2022,50246416,"3,848.24",Sutton Nursing Homes Ltd,SOCIAL SERVICES RESIDENTIAL,Peoples Services,Nursing Care Short Term,A56026,0
London Borough of Sutton,02/09/2022,50246416,-750.40,Sutton Nursing Homes Ltd,SOCIAL SERVICES RESIDENTIAL,Peoples Services,Nursing Care - 3rd party top up payment,A56023,0
London Borough of Sutton,02/09/2022,50246448,"3,934.60",Sutton Nursing Homes Ltd,SOCIAL SERVICES RESIDENTIAL,Peoples Services,Nursing Care - Ext Provider,A56025,0
London Borough of Sutton,02/09/2022,50246448,-836.76,Sutton Nursing Homes Ltd,SOCIAL SERVICES RESIDENTIAL,Peoples Services,Nursing Care - 3rd party top up payment,A56023,0
London Borough of Sutton,02/09/2022,50246453,"3,664.08",Sutton Nursing Homes Ltd,SOCIAL SERVICES RESIDENTIAL,Peoples Services,Nursing Care - Ext Provider,A56025,0
London Borough of Sutton,02/09/2022,50246453,-662.24,Sutton Nursing Homes Ltd,SOCIAL SERVICES RESIDENTIAL,Peoples Services,Nursing Care - 3rd party top up payment,A56023,0
London Borough of Sutton,02/09/2022,50246467,"3,720.16",Sutton Nursing Homes Ltd,SOCIAL SERVICES RESIDENTIAL,Peoples Services,Nursing Care - Ext Provider,A56025,0
London Borough of Sutton,02/09/2022,50246467,-735.68,Sutton Nursing Homes Ltd,SOCIAL SERVICES RESIDENTIAL,Peoples Services,Nursing Care - 3rd party top up payment,A56023,0
London Borough of Sutton,02/09/2022,50246494,"3,848.24",Sutton Nursing Homes Ltd,SOCIAL SERVICES RESIDENTIAL,Peoples Services,Nursing Care - Ext Provider,A56025,0
London Borough of Sutton,02/09/2022,50246494,-750.40,Sutton Nursing Homes Ltd,SOCIAL SERVICES RESIDENTIAL,Peoples Services,Nursing Care - 3rd party top up payment,A56023,0
London Borough of Sutton,02/09/2022,50246508,"3,720.16",Sutton Nursing Homes Ltd,SOCIAL SERVICES RESIDENTIAL,Peoples Services,Nursing Care - Ext Provider,A56025,0
London Borough of Sutton,02/09/2022,50246508,-735.68,Sutton Nursing Homes Ltd,SOCIAL SERVICES RESIDENTIAL,Peoples Services,Nursing Care - 3rd party top up payment,A56023,0
London Borough of Sutton,02/09/2022,50246523,"3,734.88",Sutton Nursing Homes Ltd,SOCIAL SERVICES RESIDENTIAL,Peoples Services,Nursing Care - Ext Provider,A56025,0
London Borough of Sutton,02/09/2022,50246523,-750.40,Sutton Nursing Homes Ltd,SOCIAL SERVICES RESIDENTIAL,Peoples Services,Nursing Care - 3rd party top up payment,A56023,0
London Borough of Sutton,02/09/2022,50246564,"3,734.88",Sutton Nursing Homes Ltd,SOCIAL SERVICES RESIDENTIAL,Peoples Services,Nursing Care Short Term,A56026,0
London Borough of Sutton,02/09/2022,50246564,-750.40,Sutton Nursing Homes Ltd,SOCIAL SERVICES RESIDENTIAL,Peoples Services,Nursing Care - 3rd party top up payment,A56023,0
London Borough of Sutton,02/09/2022,50246678,"3,665.20",Sutton Nursing Homes Ltd,SOCIAL SERVICES RESIDENTIAL,Peoples Services,Nursing Care - Ext Provider,A56025,0
London Borough of Sutton,02/09/2022,50246678,-632.64,Sutton Nursing Homes Ltd,SOCIAL SERVICES RESIDENTIAL,Peoples Services,Nursing Care - 3rd party top up payment,A56023,0
London Borough of Sutton,02/09/2022,50246735,-926.41,Sutton Nursing Homes Ltd,SOCIAL SERVICES RESIDENTIAL,Peoples Services,Nursing Care - 3rd party top up payment,A56023,0
London Borough of Sutton,02/09/2022,50246735,"4,317.86",Sutton Nursing Homes Ltd,SOCIAL SERVICES RESIDENTIAL,Peoples Services,Nursing Care Short Term,A56026,0
London Borough of Sutton,02/09/2022,50246740,"3,664.08",Sutton Nursing Homes Ltd,SOCIAL SERVICES RESIDENTIAL,Peoples Services,Nursing Care - Ext Provider,A56025,0
London Borough of Sutton,02/09/2022,50246740,-662.24,Sutton Nursing Homes Ltd,SOCIAL SERVICES RESIDENTIAL,Peoples Services,Nursing Care - 3rd party top up payment,A56023,0
London Borough of Sutton,02/09/2022,50246748,"3,848.24",Sutton Nursing Homes Ltd,SOCIAL SERVICES RESIDENTIAL,Peoples Services,Nursing Care - Ext Provider,A56025,0
London Borough of Sutton,02/09/2022,50246748,-750.40,Sutton Nursing Homes Ltd,SOCIAL SERVICES RESIDENTIAL,Peoples Services,Nursing Care - 3rd party top up payment,A56023,0
London Borough of Sutton,02/09/2022,50246294,"3,612.00",Sweet Homes Ltd,SOCIAL SERVICES RESIDENTIAL,Peoples Services,Nursing Care - Ext Provider,A56025,0
London Borough of Sutton,02/09/2022,50246294,-735.68,Sweet Homes Ltd,SOCIAL SERVICES RESIDENTIAL,Peoples Services,Nursing Care - 3rd party top up payment,A56023,0
London Borough of Sutton,02/09/2022,50246388,"6,000.00",The Abbeyfield Society,SOCIAL SERVICES RESIDENTIAL,Peoples Services,Interim Placements - Ext Provider,A56102,0
London Borough of Sutton,02/09/2022,50246351,"6,050.24",The Avenues Trust Ltd,SOCIAL SERVICES RESIDENTIAL,Peoples Services,Residential Care - Ext Provider,A56114,0
London Borough of Sutton,02/09/2022,50246351,-425.60,The Avenues Trust Ltd,SOCIAL SERVICES RESIDENTIAL,Peoples Services,Residential Care - Client Cont ( Net Paymt ),A56113,0
London Borough of Sutton,02/09/2022,50246270,"5,240.60",The Dignity Group Ltd,SOCIAL SERVICES RESIDENTIAL,Peoples Services,Residential Care - Ext Provider,A56114,0
London Borough of Sutton,02/09/2022,50246295,"2,833.60",The Garwood Foundation,CHILDREN'S SERVICES - DAY CARE,Peoples Services,Residential Care - Ext Provider,A56114,0
London Borough of Sutton,02/09/2022,50246381,"2,697.76",The Larcombe Housing Association,SOCIAL SERVICES RESIDENTIAL,Peoples Services,Residential Care - Ext Provider,A56114,0
London Borough of Sutton,02/09/2022,50246383,"2,697.76",The Larcombe Housing Association,SOCIAL SERVICES RESIDENTIAL,Peoples Services,Residential Care - Ext Provider,A56114,0
London Borough of Sutton,02/09/2022,50246479,"2,697.76",The Larcombe Housing Association,SOCIAL SERVICES RESIDENTIAL,Peoples Services,Residential Care - Ext Provider,A56114,0
London Borough of Sutton,02/09/2022,50246480,"2,697.76",The Larcombe Housing Association,SOCIAL SERVICES RESIDENTIAL,Peoples Services,Residential Care - Ext Provider,A56114,0
London Borough of Sutton,02/09/2022,50246372,"5,125.76",The Meath,SOCIAL SERVICES RESIDENTIAL,Peoples Services,Residential Care - Ext Provider,A56114,0
London Borough of Sutton,02/09/2022,50246469,"4,213.08",The Meath,SOCIAL SERVICES RESIDENTIAL,Peoples Services,Residential Care - Ext Provider,A56114,0
London Borough of Sutton,02/09/2022,50246469,-553.60,The Meath,SOCIAL SERVICES RESIDENTIAL,Peoples Services,Residential Care - Client Cont ( Net Paymt ),A56113,0
London Borough of Sutton,02/09/2022,50246346,"2,491.80",The Mount Camphill Community Ltd,SOCIAL SERVICES RESIDENTIAL,Peoples Services,Interim Placements - Ext Provider,A56102,0
London Borough of Sutton,02/09/2022,50246543,"2,697.76",The Orders of St John Care Trust,SOCIAL SERVICES RESIDENTIAL,Peoples Services,Residential Care - Ext Provider,A56114,0
London Borough of Sutton,02/09/2022,50246314,"2,975.84",The Rose Homes for the Elderly,SOCIAL SERVICES RESIDENTIAL,Peoples Services,Residential Care - Ext Provider,A56114,0
London Borough of Sutton,02/09/2022,50246332,"8,515.44",THF Care Estates Ltd,SOCIAL SERVICES RESIDENTIAL,Peoples Services,Residential Care - Ext Provider,A56114,0
London Borough of Sutton,02/09/2022,50246552,"5,364.88",Tinkers Hatch Ltd,SOCIAL SERVICES RESIDENTIAL,Peoples Services,Residential Care - Ext Provider,A56114,0
London Borough of Sutton,02/09/2022,50246552,-563.90,Tinkers Hatch Ltd,SOCIAL SERVICES RESIDENTIAL,Peoples Services,Residential Care - Client Cont ( Net Paymt ),A56113,0
London Borough of Sutton,02/09/2022,50246360,"7,653.76",Totem Care Ltd,SOCIAL SERVICES RESIDENTIAL,Peoples Services,Residential Care - Ext Provider,A56114,0
London Borough of Sutton,02/09/2022,50246360,"3,256.00",Totem Care Ltd,SOCIAL SERVICES RESIDENTIAL,Peoples Services,One to One Care,A56108,0
London Borough of Sutton,02/09/2022,50246360,-438.80,Totem Care Ltd,SOCIAL SERVICES RESIDENTIAL,Peoples Services,Residential Care - Client Cont ( Net Paymt ),A56113,0
London Borough of Sutton,02/09/2022,50246750,"4,062.56",United Response,SOCIAL SERVICES RESIDENTIAL,Peoples Services,Residential Care - Ext Provider,A56114,0
London Borough of Sutton,02/09/2022,50246750,-438.80,United Response,SOCIAL SERVICES RESIDENTIAL,Peoples Services,Residential Care - Client Cont ( Net Paymt ),A56113,0
London Borough of Sutton,02/09/2022,50246263,"5,795.52",Voyage Ltd,SOCIAL SERVICES RESIDENTIAL,Peoples Services,Residential Care - Ext Provider,A56114,0
London Borough of Sutton,02/09/2022,50246263,-410.80,Voyage Ltd,SOCIAL SERVICES RESIDENTIAL,Peoples Services,Residential Care - Client Cont ( Net Paymt ),A56113,0
London Borough of Sutton,02/09/2022,50246285,"6,176.96",Voyage Ltd,SOCIAL SERVICES RESIDENTIAL,Peoples Services,Residential Care - Ext Provider,A56114,0
London Borough of Sutton,02/09/2022,50246286,"5,987.96",Voyage Ltd,SOCIAL SERVICES RESIDENTIAL,Peoples Services,Residential Care - Ext Provider,A56114,0
London Borough of Sutton,02/09/2022,50246286,-627.80,Voyage Ltd,SOCIAL SERVICES RESIDENTIAL,Peoples Services,Residential Care - Client Cont ( Net Paymt ),A56113,0
London Borough of Sutton,02/09/2022,50246318,"6,020.16",Voyage Ltd,SOCIAL SERVICES RESIDENTIAL,Peoples Services,Residential Care - Ext Provider,A56114,0
London Borough of Sutton,02/09/2022,50246325,"5,955.84",Voyage Ltd,SOCIAL SERVICES RESIDENTIAL,Peoples Services,Residential Care - Ext Provider,A56114,0
London Borough of Sutton,02/09/2022,50246325,-467.80,Voyage Ltd,SOCIAL SERVICES RESIDENTIAL,Peoples Services,Residential Care - Client Cont ( Net Paymt ),A56113,0
London Borough of Sutton,02/09/2022,50246358,"6,476.68",Voyage Ltd,SOCIAL SERVICES RESIDENTIAL,Peoples Services,Residential Care - Ext Provider,A56114,0
London Borough of Sutton,02/09/2022,50246358,-430.80,Voyage Ltd,SOCIAL SERVICES RESIDENTIAL,Peoples Services,Residential Care - Client Cont ( Net Paymt ),A56113,0
London Borough of Sutton,02/09/2022,50246415,"6,305.16",Walsingham,SOCIAL SERVICES RESIDENTIAL,Peoples Services,Residential Care - Ext Provider,A56114,0
London Borough of Sutton,02/09/2022,50246415,-608.88,Walsingham,SOCIAL SERVICES RESIDENTIAL,Peoples Services,Residential Care - Client Cont ( Net Paymt ),A56113,0
London Borough of Sutton,02/09/2022,50246433,"7,203.84",Walsingham,SOCIAL SERVICES RESIDENTIAL,Peoples Services,Residential Care - Ext Provider,A56114,0
London Borough of Sutton,02/09/2022,50246468,"5,268.44",Walsingham,SOCIAL SERVICES RESIDENTIAL,Peoples Services,Residential Care - Ext Provider,A56114,0
London Borough of Sutton,02/09/2022,50246468,-718.12,Walsingham,SOCIAL SERVICES RESIDENTIAL,Peoples Services,Residential Care - Client Cont ( Net Paymt ),A56113,0
London Borough of Sutton,02/09/2022,50246468,953.44,Walsingham,SOCIAL SERVICES RESIDENTIAL,Peoples Services,One to One Care,A56108,0
London Borough of Sutton,02/09/2022,50246608,"6,318.40",Walsingham,SOCIAL SERVICES RESIDENTIAL,Peoples Services,Residential Care - Ext Provider,A56114,0
London Borough of Sutton,02/09/2022,50246608,-708.55,Walsingham,SOCIAL SERVICES RESIDENTIAL,Peoples Services,Residential Care - Client Cont ( Net Paymt ),A56113,0
London Borough of Sutton,02/09/2022,50246642,"6,672.56",Walsingham,SOCIAL SERVICES RESIDENTIAL,Peoples Services,Residential Care - Ext Provider,A56114,0
London Borough of Sutton,02/09/2022,50246679,"6,342.28",Walsingham,SOCIAL SERVICES RESIDENTIAL,Peoples Services,Residential Care - Ext Provider,A56114,0
London Borough of Sutton,02/09/2022,50246679,-636.80,Walsingham,SOCIAL SERVICES RESIDENTIAL,Peoples Services,Residential Care - Client Cont ( Net Paymt ),A56113,0
London Borough of Sutton,02/09/2022,50246340,"8,093.28",Westhill Care Home,SOCIAL SERVICES RESIDENTIAL,Peoples Services,Residential Care - Ext Provider,A56114,0
London Borough of Sutton,02/09/2022,50246382,"8,647.56",Westhill Care Home,SOCIAL SERVICES RESIDENTIAL,Peoples Services,Residential Care - Ext Provider,A56114,0
London Borough of Sutton,02/09/2022,50246430,"4,772.96",Westhill Care Home,SOCIAL SERVICES RESIDENTIAL,Peoples Services,Residential Care - Ext Provider,A56114,0
London Borough of Sutton,02/09/2022,50246512,"7,263.20",Westhill Care Home,SOCIAL SERVICES RESIDENTIAL,Peoples Services,Residential Care - Ext Provider,A56114,0
London Borough of Sutton,02/09/2022,50246640,"7,263.20",Westhill Care Home,SOCIAL SERVICES RESIDENTIAL,Peoples Services,Residential Care - Ext Provider,A56114,0
London Borough of Sutton,02/09/2022,50246700,"-4,386.00",Westhill Care Home,SOCIAL SERVICES RESIDENTIAL,Peoples Services,Nursing Care - 3rd party top up payment,A56023,0
London Borough of Sutton,02/09/2022,50246700,"8,923.36",Westhill Care Home,SOCIAL SERVICES RESIDENTIAL,Peoples Services,Residential Care - Ext Provider,A56114,0
London Borough of Sutton,02/09/2022,50246271,"6,521.20",Westhope Care Ltd,SOCIAL SERVICES RESIDENTIAL,Peoples Services,Residential Care - Ext Provider,A56114,0
London Borough of Sutton,02/09/2022,50246306,"9,630.12",William Blake House,SOCIAL SERVICES RESIDENTIAL,Peoples Services,Residential Care - Ext Provider,A56114,0
London Borough of Sutton,02/09/2022,50246365,"3,609.96",Willow Lodge Nursing Home,SOCIAL SERVICES RESIDENTIAL,Peoples Services,Nursing Care - Ext Provider,A56025,0
London Borough of Sutton,02/09/2022,50246365,-632.64,Willow Lodge Nursing Home,SOCIAL SERVICES RESIDENTIAL,Peoples Services,Nursing Care - 3rd party top up payment,A56023,0
London Borough of Sutton,02/09/2022,50246370,"3,848.24",Willow Lodge Nursing Home,SOCIAL SERVICES RESIDENTIAL,Peoples Services,Nursing Care Short Term,A56026,0
London Borough of Sutton,02/09/2022,50246370,-750.40,Willow Lodge Nursing Home,SOCIAL SERVICES RESIDENTIAL,Peoples Services,Nursing Care - 3rd party top up payment,A56023,0
London Borough of Sutton,02/09/2022,50246558,"5,569.61",Willow Lodge Nursing Home,SOCIAL SERVICES RESIDENTIAL,Peoples Services,Nursing Care Short Term,A56026,0
London Borough of Sutton,02/09/2022,50246558,"-1,834.73",Willow Lodge Nursing Home,SOCIAL SERVICES RESIDENTIAL,Peoples Services,Nursing Care - Ext Provider,A56025,0
London Borough of Sutton,02/09/2022,50246558,-750.40,Willow Lodge Nursing Home,SOCIAL SERVICES RESIDENTIAL,Peoples Services,Nursing Care - 3rd party top up payment,A56023,0
London Borough of Sutton,02/09/2022,50246561,"3,848.24",Willow Lodge Nursing Home,SOCIAL SERVICES RESIDENTIAL,Peoples Services,Nursing Care - Ext Provider,A56025,0
London Borough of Sutton,02/09/2022,50246561,-750.40,Willow Lodge Nursing Home,SOCIAL SERVICES RESIDENTIAL,Peoples Services,Nursing Care - 3rd party top up payment,A56023,0
London Borough of Sutton,02/09/2022,50246602,136.47,Willow Lodge Nursing Home,SOCIAL SERVICES RESIDENTIAL,Peoples Services,Respite Care,A56116,0
London Borough of Sutton,02/09/2022,50246602,-29.88,Willow Lodge Nursing Home,SOCIAL SERVICES RESIDENTIAL,Peoples Services,Nursing Care - 3rd party top up payment,A56023,0
London Borough of Sutton,02/09/2022,50246602,"1,228.26",Willow Lodge Nursing Home,SOCIAL SERVICES RESIDENTIAL,Peoples Services,Respite Care,A56116,0
London Borough of Sutton,02/09/2022,50246602,-268.96,Willow Lodge Nursing Home,SOCIAL SERVICES RESIDENTIAL,Peoples Services,Nursing Care - 3rd party top up payment,A56023,0
London Borough of Sutton,02/09/2022,50246744,"3,848.24",Willow Lodge Nursing Home,SOCIAL SERVICES RESIDENTIAL,Peoples Services,Nursing Care - Ext Provider,A56025,0
London Borough of Sutton,02/09/2022,50246744,-750.40,Willow Lodge Nursing Home,SOCIAL SERVICES RESIDENTIAL,Peoples Services,Nursing Care - 3rd party top up payment,A56023,0
London Borough of Sutton,02/09/2022,50246347,"3,527.84",Willowcroft Care Home Ltd,SOCIAL SERVICES RESIDENTIAL,Peoples Services,Nursing Care - Ext Provider,A56025,0
London Borough of Sutton,02/09/2022,50246287,"3,486.32",Woodlarks Centre,SOCIAL SERVICES RESIDENTIAL,Peoples Services,Residential Care - Ext Provider,A56114,0
London Borough of Sutton,02/09/2022,50246482,"6,204.84",Together for Mental Wellbeing,GRANTS & EX GRATIA PAYMENTS,Peoples Services,Residential Care - Ext Provider,A56114,0
London Borough of Sutton,03/09/2022,50250778,542.50,REDACTED - PERSONAL DATA,CHILDREN'S SERVICES - SEN SERVICES,Peoples Services,Special Educational Needs,A51015,0
London Borough of Sutton,03/09/2022,20031450,997.10,REDACTED - PERSONAL DATA,GRANTS & EX GRATIA PAYMENTS,Environment Housing and Neighbourhoods,Temporary Protection - Homeless Persons,A62028,0
London Borough of Sutton,03/09/2022,50248745,"56,344.28",Transforming Young People Ltd,CHILDREN'S SERVICES - RESIDENTIAL,Peoples Services,Residential Care-Children,A56115,0
London Borough of Sutton,03/09/2022,50248773,"20,194.28",Transforming Young People Ltd,CHILDREN'S SERVICES - RESIDENTIAL,Peoples Services,Approved Lodgings,A61000,0
London Borough of Sutton,03/09/2022,50248844,"6,454.63",Transforming Young People Ltd,CHILDREN'S SERVICES - RESIDENTIAL,Peoples Services,Accommodation - Supported Living,A62001,0
London Borough of Sutton,04/09/2022,50249008,437.60,Absolute Care Services Ltd,SOCIAL SERVICES DAY CARE,Peoples Services,Home Care Services,A56019,0
London Borough of Sutton,04/09/2022,50249008,101.08,Absolute Care Services Ltd,SOCIAL SERVICES DAY CARE,Peoples Services,Home Care Services,A56019,0
London Borough of Sutton,04/09/2022,50249051,506.52,Absolute Care Services Ltd,SOCIAL SERVICES DAY CARE,Peoples Services,Home Care Services,A56019,0
London Borough of Sutton,04/09/2022,50249051,16.08,Absolute Care Services Ltd,SOCIAL SERVICES DAY CARE,Peoples Services,Home Care Services,A56019,0
London Borough of Sutton,04/09/2022,50249052,48.24,Absolute Care Services Ltd,SOCIAL SERVICES DAY CARE,Peoples Services,Home Care Services,A56019,0
London Borough of Sutton,04/09/2022,50249052,506.52,Absolute Care Services Ltd,SOCIAL SERVICES DAY CARE,Peoples Services,Home Care Services,A56019,0
London Borough of Sutton,04/09/2022,50249056,526.49,Absolute Care Services Ltd,SOCIAL SERVICES DAY CARE,Peoples Services,Home Care Services,A56019,0
London Borough of Sutton,04/09/2022,50249056,75.21,Absolute Care Services Ltd,SOCIAL SERVICES DAY CARE,Peoples Services,Home Care Services,A56019,0
London Borough of Sutton,04/09/2022,50249056,105.82,Absolute Care Services Ltd,SOCIAL SERVICES DAY CARE,Peoples Services,Home Care Services,A56019,0
London Borough of Sutton,04/09/2022,50249097,409.11,Absolute Care Services Ltd,SOCIAL SERVICES DAY CARE,Peoples Services,Home Care Services,A56019,0
London Borough of Sutton,04/09/2022,50249097,12.99,Absolute Care Services Ltd,SOCIAL SERVICES DAY CARE,Peoples Services,Home Care Services,A56019,0
London Borough of Sutton,04/09/2022,50249097,100.50,Absolute Care Services Ltd,SOCIAL SERVICES DAY CARE,Peoples Services,Home Care Services,A56019,0
London Borough of Sutton,04/09/2022,50249447,551.18,Absolute Care Services Ltd,SOCIAL SERVICES DAY CARE,Peoples Services,Home Care Services,A56019,0
London Borough of Sutton,04/09/2022,50249460,776.88,Absolute Care Services Ltd,SOCIAL SERVICES DAY CARE,Peoples Services,Home Care Services,A56019,0
London Borough of Sutton,04/09/2022,50249460,45.25,Absolute Care Services Ltd,SOCIAL SERVICES DAY CARE,Peoples Services,Home Care Services,A56019,0
London Borough of Sutton,04/09/2022,50249465,612.36,Absolute Care Services Ltd,SOCIAL SERVICES DAY CARE,Peoples Services,Home Care Services,A56019,0
London Borough of Sutton,04/09/2022,50255378,935.82,Absolute Care Services Ltd,SOCIAL SERVICES DAY CARE,Peoples Services,Home Care Services,A56019,0
London Borough of Sutton,04/09/2022,50255378,104.94,Absolute Care Services Ltd,SOCIAL SERVICES DAY CARE,Peoples Services,Home Care Services,A56019,0
London Borough of Sutton,04/09/2022,50252618,509.50,Best at Home Domiciliary Care Services Ltd,SOCIAL SERVICES DAY CARE,Peoples Services,Home Care Services,A56019,0
London Borough of Sutton,04/09/2022,50252624,867.98,Best at Home Domiciliary Care Services Ltd,SOCIAL SERVICES DAY CARE,Peoples Services,Home Care Services,A56019,0
London Borough of Sutton,04/09/2022,50252670,509.96,Best at Home Domiciliary Care Services Ltd,SOCIAL SERVICES DAY CARE,Peoples Services,Home Care Services,A56019,0
London Borough of Sutton,04/09/2022,50252683,867.98,Best at Home Domiciliary Care Services Ltd,SOCIAL SERVICES DAY CARE,Peoples Services,Home Care Services,A56019,0
London Borough of Sutton,04/09/2022,50252683,157.50,Best at Home Domiciliary Care Services Ltd,SOCIAL SERVICES DAY CARE,Peoples Services,Home Care Services,A56019,0
London Borough of Sutton,04/09/2022,50252693,"3,336.00",Best at Home Domiciliary Care Services Ltd,SOCIAL SERVICES DAY CARE,Peoples Services,Home Care Services,A56019,0
London Borough of Sutton,04/09/2022,50252699,867.98,Best at Home Domiciliary Care Services Ltd,SOCIAL SERVICES DAY CARE,Peoples Services,Home Care Services,A56019,0
London Borough of Sutton,04/09/2022,50252706,"3,336.00",Best at Home Domiciliary Care Services Ltd,SOCIAL SERVICES DAY CARE,Peoples Services,Home Care Services,A56019,0
London Borough of Sutton,04/09/2022,50252714,600.00,Best at Home Domiciliary Care Services Ltd,SOCIAL SERVICES DAY CARE,Peoples Services,Home Care Services,A56019,0
London Borough of Sutton,04/09/2022,50252727,941.98,Best at Home Domiciliary Care Services Ltd,SOCIAL SERVICES DAY CARE,Peoples Services,Home Care Services,A56019,0
London Borough of Sutton,04/09/2022,50252746,"3,336.00",Best at Home Domiciliary Care Services Ltd,SOCIAL SERVICES DAY CARE,Peoples Services,Home Care Services,A56019,0
London Borough of Sutton,04/09/2022,50252754,"1,031.95",Best at Home Domiciliary Care Services Ltd,SOCIAL SERVICES DAY CARE,Peoples Services,Home Care Services,A56019,0
London Borough of Sutton,04/09/2022,50252760,565.00,Best at Home Domiciliary Care Services Ltd,SOCIAL SERVICES DAY CARE,Peoples Services,Home Care Services,A56019,0
London Borough of Sutton,04/09/2022,50252762,867.98,Best at Home Domiciliary Care Services Ltd,SOCIAL SERVICES DAY CARE,Peoples Services,Home Care Services,A56019,0
London Borough of Sutton,04/09/2022,50247646,613.29,Clovecare Ltd,SOCIAL SERVICES RESIDENTIAL,Peoples Services,Home Care Services,A56019,0
London Borough of Sutton,04/09/2022,50247703,867.01,Clovecare Ltd,SOCIAL SERVICES RESIDENTIAL,Peoples Services,Home Care Services,A56019,0
London Borough of Sutton,04/09/2022,50247703,46.88,Clovecare Ltd,SOCIAL SERVICES RESIDENTIAL,Peoples Services,Home Care Services,A56019,0
London Borough of Sutton,04/09/2022,20031507,"14,404.17",Cognus Ltd,LEGAL & PROFESSIONAL SERVICES,Peoples Services,Consultancy Services,A56007,0
London Borough of Sutton,04/09/2022,20031508,"218,108.33",Cognus Ltd,LEGAL & PROFESSIONAL SERVICES,Peoples Services,Consultancy Services,A56007,0
London Borough of Sutton,04/09/2022,20031511,"42,533.33",Cognus Ltd,LEGAL & PROFESSIONAL SERVICES,Peoples Services,Consultancy Services,A56007,0
London Borough of Sutton,04/09/2022,50249068,640.00,Day and Nite Services,SOCIAL SERVICES DAY CARE,Peoples Services,Home Care Services,A56019,0
London Borough of Sutton,04/09/2022,50249093,576.00,Day and Nite Services,SOCIAL SERVICES DAY CARE,Peoples Services,Home Care Services,A56019,0
London Borough of Sutton,04/09/2022,50249564,737.10,Elite CarePlus Ltd,SOCIAL SERVICES DAY CARE,Peoples Services,Home Care Services,A56019,0
London Borough of Sutton,04/09/2022,50249577,675.68,Elite CarePlus Ltd,SOCIAL SERVICES DAY CARE,Peoples Services,Home Care Services,A56019,0
London Borough of Sutton,04/09/2022,50249599,719.55,Elite CarePlus Ltd,SOCIAL SERVICES DAY CARE,Peoples Services,Home Care Services,A56019,0
London Borough of Sutton,04/09/2022,50249618,552.83,Elite CarePlus Ltd,SOCIAL SERVICES DAY CARE,Peoples Services,Home Care Services,A56019,0
London Borough of Sutton,04/09/2022,50249626,552.83,Elite CarePlus Ltd,SOCIAL SERVICES DAY CARE,Peoples Services,Home Care Services,A56019,0
London Borough of Sutton,04/09/2022,50249773,737.10,Elite CarePlus Ltd,SOCIAL SERVICES DAY CARE,Peoples Services,Home Care Services,A56019,0
London Borough of Sutton,04/09/2022,50248958,675.00,Escoben Care Services Ltd,SOCIAL SERVICES RESIDENTIAL,Peoples Services,Home Care Services,A56019,0
London Borough of Sutton,04/09/2022,50248965,859.50,Escoben Care Services Ltd,SOCIAL SERVICES RESIDENTIAL,Peoples Services,Home Care Services,A56019,0
London Borough of Sutton,04/09/2022,50248983,393.00,Escoben Care Services Ltd,SOCIAL SERVICES RESIDENTIAL,Peoples Services,Home Care Services,A56019,0
London Borough of Sutton,04/09/2022,50248983,195.00,Escoben Care Services Ltd,SOCIAL SERVICES RESIDENTIAL,Peoples Services,Home Care Services,A56019,0
London Borough of Sutton,04/09/2022,50252457,551.25,Exodus Health Care Services Ltd,SOCIAL SERVICES RESIDENTIAL,Peoples Services,Home Care Services,A56019,0
London Borough of Sutton,04/09/2022,50252457,52.50,Exodus Health Care Services Ltd,SOCIAL SERVICES RESIDENTIAL,Peoples Services,Home Care Services,A56019,0
London Borough of Sutton,04/09/2022,50252543,367.47,Exodus Health Care Services Ltd,SOCIAL SERVICES RESIDENTIAL,Peoples Services,Home Care Services,A56019,0
London Borough of Sutton,04/09/2022,50252543,336.91,Exodus Health Care Services Ltd,SOCIAL SERVICES RESIDENTIAL,Peoples Services,Home Care Services,A56019,0
London Borough of Sutton,04/09/2022,50252556,796.25,Exodus Health Care Services Ltd,SOCIAL SERVICES RESIDENTIAL,Peoples Services,Home Care Services,A56019,0
London Borough of Sutton,04/09/2022,50252584,551.25,Exodus Health Care Services Ltd,SOCIAL SERVICES RESIDENTIAL,Peoples Services,Home Care Services,A56019,0
London Borough of Sutton,04/09/2022,50252584,91.88,Exodus Health Care Services Ltd,SOCIAL SERVICES RESIDENTIAL,Peoples Services,Home Care Services,A56019,0
London Borough of Sutton,04/09/2022,50252587,612.50,Exodus Health Care Services Ltd,SOCIAL SERVICES RESIDENTIAL,Peoples Services,Home Care Services,A56019,0
London Borough of Sutton,04/09/2022,50252587,52.50,Exodus Health Care Services Ltd,SOCIAL SERVICES RESIDENTIAL,Peoples Services,Home Care Services,A56019,0
London Borough of Sutton,04/09/2022,50252589,551.25,Exodus Health Care Services Ltd,SOCIAL SERVICES RESIDENTIAL,Peoples Services,Home Care Services,A56019,0
London Borough of Sutton,04/09/2022,50252590,551.25,Exodus Health Care Services Ltd,SOCIAL SERVICES RESIDENTIAL,Peoples Services,Home Care Services,A56019,0
London Borough of Sutton,04/09/2022,50252595,612.50,Exodus Health Care Services Ltd,SOCIAL SERVICES RESIDENTIAL,Peoples Services,Home Care Services,A56019,0
London Borough of Sutton,04/09/2022,50252826,612.50,J.C. Michael Group,SOCIAL SERVICES DAY CARE,Peoples Services,Home Care Services,A56019,0
London Borough of Sutton,04/09/2022,20031844,924.00,Keen2Go,SOCIAL SERVICES RESIDENTIAL,Peoples Services,Play Groups,A56111,0
London Borough of Sutton,04/09/2022,20031848,700.00,Keen2Go,SOCIAL SERVICES RESIDENTIAL,Peoples Services,Play Groups,A56111,0
London Borough of Sutton,04/09/2022,20031852,"1,380.00",Keen2Go,SOCIAL SERVICES RESIDENTIAL,Peoples Services,Play Groups,A56111,0
London Borough of Sutton,04/09/2022,20031859,"1,380.00",Keen2Go,SOCIAL SERVICES RESIDENTIAL,Peoples Services,Play Groups,A56111,0
London Borough of Sutton,04/09/2022,50247595,"1,584.00",Options Care Ltd,SOCIAL SERVICES DAY CARE,Peoples Services,Home Care Services,A56019,0
London Borough of Sutton,04/09/2022,50247595,125.97,Options Care Ltd,SOCIAL SERVICES DAY CARE,Peoples Services,Home Care Services,A56019,0
London Borough of Sutton,04/09/2022,20031615,"1,209.00",REDACTED - PERSONAL DATA,GRANTS & EX GRATIA PAYMENTS,Environment Housing and Neighbourhoods,Temporary Protection - Homeless Persons,A62028,0
London Borough of Sutton,04/09/2022,50256300,551.25,Savannah Care Ltd,SOCIAL SERVICES DAY CARE,Peoples Services,Home Care Services,A56019,0
London Borough of Sutton,04/09/2022,50256302,857.50,Savannah Care Ltd,SOCIAL SERVICES DAY CARE,Peoples Services,Home Care Services,A56019,0
London Borough of Sutton,04/09/2022,50256307,551.25,Savannah Care Ltd,SOCIAL SERVICES DAY CARE,Peoples Services,Home Care Services,A56019,0
London Borough of Sutton,04/09/2022,50256309,551.25,Savannah Care Ltd,SOCIAL SERVICES DAY CARE,Peoples Services,Home Care Services,A56019,0
London Borough of Sutton,04/09/2022,50256320,551.25,Savannah Care Ltd,SOCIAL SERVICES DAY CARE,Peoples Services,Home Care Services,A56019,0
London Borough of Sutton,04/09/2022,50256322,694.50,Savannah Care Ltd,SOCIAL SERVICES DAY CARE,Peoples Services,Home Care Services,A56019,0
London Borough of Sutton,04/09/2022,50256338,535.15,Savannah Care Ltd,SOCIAL SERVICES DAY CARE,Peoples Services,Home Care Services,A56019,0
London Borough of Sutton,04/09/2022,50256360,542.50,Savannah Care Ltd,SOCIAL SERVICES DAY CARE,Peoples Services,Home Care Services,A56019,0
London Borough of Sutton,04/09/2022,50256362,240.38,Savannah Care Ltd,SOCIAL SERVICES DAY CARE,Peoples Services,Home Care Services,A56019,0
London Borough of Sutton,04/09/2022,50256362,669.62,Savannah Care Ltd,SOCIAL SERVICES DAY CARE,Peoples Services,Home Care Services,A56019,0
London Borough of Sutton,04/09/2022,50248991,668.25,Sevacare UK Ltd,SOCIAL SERVICES RESIDENTIAL,Peoples Services,Home Care Services,A56019,0
London Borough of Sutton,04/09/2022,50249080,637.88,Sevacare UK Ltd,SOCIAL SERVICES RESIDENTIAL,Peoples Services,Home Care Services,A56019,0
London Borough of Sutton,04/09/2022,50249058,550.31,Surecare Services (Croydon),SOCIAL SERVICES DAY CARE,Peoples Services,Home Care Services,A56019,0
London Borough of Sutton,04/09/2022,50249058,17.47,Surecare Services (Croydon),SOCIAL SERVICES DAY CARE,Peoples Services,Home Care Services,A56019,0
London Borough of Sutton,04/09/2022,50252886,615.90,The Health Care Group (THCG) Ltd,SOCIAL SERVICES DAY CARE,Peoples Services,Home Care Services,A56019,0
London Borough of Sutton,04/09/2022,50252891,529.90,The Health Care Group (THCG) Ltd,SOCIAL SERVICES DAY CARE,Peoples Services,Home Care Services,A56019,0
London Borough of Sutton,04/09/2022,50252918,500.14,The Health Care Group (THCG) Ltd,SOCIAL SERVICES DAY CARE,Peoples Services,Home Care Services,A56019,0
London Borough of Sutton,04/09/2022,50252920,946.78,The Health Care Group (THCG) Ltd,SOCIAL SERVICES DAY CARE,Peoples Services,Home Care Services,A56019,0
London Borough of Sutton,04/09/2022,50252944,976.80,The Health Care Group (THCG) Ltd,SOCIAL SERVICES DAY CARE,Peoples Services,Home Care Services,A56019,0
London Borough of Sutton,04/09/2022,50249695,"1,123.50",Trinity Care Services Ltd,SOCIAL SERVICES DAY CARE,Peoples Services,Home Care Services,A56019,0
London Borough of Sutton,04/09/2022,50255138,585.83,Trinity Care Services Ltd,SOCIAL SERVICES DAY CARE,Peoples Services,Home Care Services,A56019,0
London Borough of Sutton,04/09/2022,50255143,577.80,Trinity Care Services Ltd,SOCIAL SERVICES DAY CARE,Peoples Services,Home Care Services,A56019,0
London Borough of Sutton,05/09/2022,20031681,"5,715.81",Absolute Care Services Ltd,SOCIAL SERVICES DAY CARE,Peoples Services,Homecare Core Services,A56020,0
London Borough of Sutton,05/09/2022,20031682,"5,926.51",Absolute Care Services Ltd,SOCIAL SERVICES DAY CARE,Peoples Services,Homecare Core Services,A56020,0
London Borough of Sutton,05/09/2022,20031683,"6,794.87",Absolute Care Services Ltd,SOCIAL SERVICES DAY CARE,Peoples Services,Homecare Core Services,A56020,0
London Borough of Sutton,05/09/2022,50247481,"5,410.61",Accomplish Group Ltd,SOCIAL SERVICES RESIDENTIAL,Peoples Services,Supported Living,A56088,0
London Borough of Sutton,05/09/2022,20031562,"5,411.60",Beeches Tree Care,AGRICULTURAL & ESTATE SERVICES,Environment Housing and Neighbourhoods,Highway Trees - Maintenance,A28005,0
London Borough of Sutton,05/09/2022,20031587,"7,225.06",Beeches Tree Care,AGRICULTURAL & ESTATE SERVICES,Environment Housing and Neighbourhoods,Maintenance of trees,A28003,0
London Borough of Sutton,05/09/2022,50247400,51.50,Care More Ltd,SOCIAL SERVICES RESIDENTIAL,Peoples Services,Home Care Services,A56019,0
London Borough of Sutton,05/09/2022,50247400,"1,751.50",Care More Ltd,SOCIAL SERVICES RESIDENTIAL,Peoples Services,Home Care Services,A56019,0
London Borough of Sutton,05/09/2022,50247401,855.50,Care More Ltd,SOCIAL SERVICES RESIDENTIAL,Peoples Services,Home Care Services,A56019,0
London Borough of Sutton,05/09/2022,50247403,742.00,Care More Ltd,SOCIAL SERVICES RESIDENTIAL,Peoples Services,Home Care Services,A56019,0
London Borough of Sutton,05/09/2022,50247406,742.00,Care More Ltd,SOCIAL SERVICES RESIDENTIAL,Peoples Services,Home Care Services,A56019,0
London Borough of Sutton,05/09/2022,50247408,"1,093.00",Care More Ltd,SOCIAL SERVICES RESIDENTIAL,Peoples Services,Home Care Services,A56019,0
London Borough of Sutton,05/09/2022,50247415,742.00,Care More Ltd,SOCIAL SERVICES RESIDENTIAL,Peoples Services,Home Care Services,A56019,0
London Borough of Sutton,05/09/2022,50247417,"1,526.00",Care More Ltd,SOCIAL SERVICES RESIDENTIAL,Peoples Services,Home Care Services,A56019,0
London Borough of Sutton,05/09/2022,50247418,"1,596.00",Care More Ltd,SOCIAL SERVICES RESIDENTIAL,Peoples Services,Home Care Services,A56019,0
London Borough of Sutton,05/09/2022,50247420,798.00,Care More Ltd,SOCIAL SERVICES RESIDENTIAL,Peoples Services,Home Care Services,A56019,0
London Borough of Sutton,05/09/2022,50247422,"1,438.50",Care More Ltd,SOCIAL SERVICES RESIDENTIAL,Peoples Services,Home Care Services,A56019,0
London Borough of Sutton,05/09/2022,50247422,87.50,Care More Ltd,SOCIAL SERVICES RESIDENTIAL,Peoples Services,Home Care Services,A56019,0
London Borough of Sutton,05/09/2022,50247446,742.00,Care More Ltd,SOCIAL SERVICES RESIDENTIAL,Peoples Services,Home Care Services,A56019,0
London Borough of Sutton,05/09/2022,50247452,"1,484.00",Care More Ltd,SOCIAL SERVICES RESIDENTIAL,Peoples Services,Home Care Services,A56019,0
London Borough of Sutton,05/09/2022,50247457,"1,400.00",Care More Ltd,SOCIAL SERVICES RESIDENTIAL,Peoples Services,Home Care Services,A56019,0
London Borough of Sutton,05/09/2022,50247458,"1,400.00",Care More Ltd,SOCIAL SERVICES RESIDENTIAL,Peoples Services,Home Care Services,A56019,0
London Borough of Sutton,05/09/2022,50247461,960.00,Care More Ltd,SOCIAL SERVICES RESIDENTIAL,Peoples Services,Home Care Services,A56019,0
London Borough of Sutton,05/09/2022,50247463,"1,484.00",Care More Ltd,SOCIAL SERVICES RESIDENTIAL,Peoples Services,Home Care Services,A56019,0
London Borough of Sutton,05/09/2022,50247464,800.50,Care More Ltd,SOCIAL SERVICES RESIDENTIAL,Peoples Services,Home Care Services,A56019,0
London Borough of Sutton,05/09/2022,50247465,721.00,Care More Ltd,SOCIAL SERVICES RESIDENTIAL,Peoples Services,Home Care Services,A56019,0
London Borough of Sutton,05/09/2022,50247466,625.50,Care More Ltd,SOCIAL SERVICES RESIDENTIAL,Peoples Services,Home Care Services,A56019,0
London Borough of Sutton,05/09/2022,50247467,567.00,Care More Ltd,SOCIAL SERVICES RESIDENTIAL,Peoples Services,Home Care Services,A56019,0
London Borough of Sutton,05/09/2022,50247468,609.00,Care More Ltd,SOCIAL SERVICES RESIDENTIAL,Peoples Services,Home Care Services,A56019,0
London Borough of Sutton,05/09/2022,50247469,742.00,Care More Ltd,SOCIAL SERVICES RESIDENTIAL,Peoples Services,Home Care Services,A56019,0
London Borough of Sutton,05/09/2022,50247476,798.00,Care More Ltd,SOCIAL SERVICES RESIDENTIAL,Peoples Services,Home Care Services,A56019,0
London Borough of Sutton,05/09/2022,50247489,"4,040.00",Care4Care Services Ltd,SOCIAL SERVICES DAY CARE,Peoples Services,Home Care Services,A56019,0
London Borough of Sutton,05/09/2022,50247500,909.50,Care4Care Services Ltd,SOCIAL SERVICES DAY CARE,Peoples Services,Home Care Services,A56019,0
London Borough of Sutton,05/09/2022,50247501,909.50,Care4Care Services Ltd,SOCIAL SERVICES DAY CARE,Peoples Services,Home Care Services,A56019,0
London Borough of Sutton,05/09/2022,50247503,"1,070.60",Care4Care Services Ltd,SOCIAL SERVICES DAY CARE,Peoples Services,Home Care Services,A56019,0
London Borough of Sutton,05/09/2022,50247504,"1,770.00",Care4Care Services Ltd,SOCIAL SERVICES DAY CARE,Peoples Services,Home Care Services,A56019,0
London Borough of Sutton,05/09/2022,50250675,"3,214.30",Care4Care Services Ltd,SOCIAL SERVICES DAY CARE,Peoples Services,Home Care Services,A56019,0
London Borough of Sutton,05/09/2022,50250675,795.70,Care4Care Services Ltd,SOCIAL SERVICES DAY CARE,Peoples Services,Home Care Services,A56019,0
London Borough of Sutton,05/09/2022,50250684,"4,104.00",Care4Care Services Ltd,SOCIAL SERVICES DAY CARE,Peoples Services,Home Care Services,A56019,0
London Borough of Sutton,05/09/2022,50247562,548.16,Helpr Ltd,SOCIAL SERVICES RESIDENTIAL,Peoples Services,Home Care Services,A56019,0
London Borough of Sutton,05/09/2022,20031647,518.99,Jigsaw4u Limited,TEMP STAFF & CONSULTANCY,Peoples Services,Miscellaneous Expenses,A49000,0
London Borough of Sutton,05/09/2022,50250781,"2,640.00",Justlearn Tuition Centre,ACADEMIC - STUDENT FEES,Peoples Services,Independent School Fees,A56002,0
London Borough of Sutton,05/09/2022,20031832,588.00,Keen2Go,SOCIAL SERVICES RESIDENTIAL,Peoples Services,Play Groups,A56111,0
London Borough of Sutton,05/09/2022,20031837,756.00,Keen2Go,SOCIAL SERVICES RESIDENTIAL,Peoples Services,Play Groups,A56111,0
London Borough of Sutton,05/09/2022,20031838,868.00,Keen2Go,SOCIAL SERVICES RESIDENTIAL,Peoples Services,Play Groups,A56111,0
London Borough of Sutton,05/09/2022,20031839,896.00,Keen2Go,SOCIAL SERVICES RESIDENTIAL,Peoples Services,Housing - Playground Repairs,A20046,0
London Borough of Sutton,05/09/2022,20031841,594.00,Keen2Go,SOCIAL SERVICES RESIDENTIAL,Peoples Services,Play Groups,A56111,0
London Borough of Sutton,05/09/2022,20031843,684.00,Keen2Go,SOCIAL SERVICES RESIDENTIAL,Peoples Services,Play Groups,A56111,0
London Borough of Sutton,05/09/2022,20031846,756.00,Keen2Go,SOCIAL SERVICES RESIDENTIAL,Peoples Services,Play Groups,A56111,0
London Borough of Sutton,05/09/2022,20031850,504.00,Keen2Go,SOCIAL SERVICES RESIDENTIAL,Peoples Services,Play Groups,A56111,0
London Borough of Sutton,05/09/2022,20031851,486.00,Keen2Go,SOCIAL SERVICES RESIDENTIAL,Peoples Services,Play Groups,A56111,0
London Borough of Sutton,05/09/2022,20031853,774.00,Keen2Go,SOCIAL SERVICES RESIDENTIAL,Peoples Services,Play Groups,A56111,0
London Borough of Sutton,05/09/2022,20031854,468.00,Keen2Go,SOCIAL SERVICES RESIDENTIAL,Peoples Services,Play Groups,A56111,0
London Borough of Sutton,05/09/2022,50250674,891.00,Lakeshore Care Ltd,SOCIAL SERVICES RESIDENTIAL,Peoples Services,Home Care Services,A56019,0
London Borough of Sutton,05/09/2022,50250674,55.00,Lakeshore Care Ltd,SOCIAL SERVICES RESIDENTIAL,Peoples Services,Home Care Services,A56019,0
London Borough of Sutton,05/09/2022,50250682,"1,078.00",Lakeshore Care Ltd,SOCIAL SERVICES RESIDENTIAL,Peoples Services,Home Care Services,A56019,0
London Borough of Sutton,05/09/2022,50250686,525.03,Lavender Care Agency Ltd,SOCIAL SERVICES RESIDENTIAL,Peoples Services,Home Care Services,A56019,0
London Borough of Sutton,05/09/2022,50253410,"1,251.17",London Borough Of Merton,CENTRAL & LOCAL GOVERNMENT,Peoples Services,Top-up Funding,A51016,0
London Borough of Sutton,05/09/2022,50247549,756.00,Micbee Care & Employment Ltd,SOCIAL SERVICES RESIDENTIAL,Peoples Services,Home Care Services,A56019,0
London Borough of Sutton,05/09/2022,50247549,34.00,Micbee Care & Employment Ltd,SOCIAL SERVICES RESIDENTIAL,Peoples Services,Home Care Services,A56019,0
London Borough of Sutton,05/09/2022,50247553,430.00,Micbee Care & Employment Ltd,SOCIAL SERVICES RESIDENTIAL,Peoples Services,Home Care Services,A56019,0
London Borough of Sutton,05/09/2022,50247553,177.00,Micbee Care & Employment Ltd,SOCIAL SERVICES RESIDENTIAL,Peoples Services,Home Care Services,A56019,0
London Borough of Sutton,05/09/2022,50247398,528.00,MOVR Ltd,TAXI AND COACH HIRE,Peoples Services,Hired Peoples Transport (CS only),A32001,0
London Borough of Sutton,05/09/2022,20031583,"1,030.00",REDACTED - PERSONAL DATA,GRANTS & EX GRATIA PAYMENTS,Environment Housing and Neighbourhoods,Temporary Protection - Homeless Persons,A62028,0
London Borough of Sutton,05/09/2022,50247404,668.50,My Homecare Surrey,SOCIAL SERVICES RESIDENTIAL,Peoples Services,Home Care Services,A56019,0
London Borough of Sutton,05/09/2022,50247404,209.00,My Homecare Surrey,SOCIAL SERVICES RESIDENTIAL,Peoples Services,Home Care Services,A56019,0
London Borough of Sutton,05/09/2022,50247412,624.00,My Homecare Surrey,SOCIAL SERVICES RESIDENTIAL,Peoples Services,Home Care Services,A56019,0
London Borough of Sutton,05/09/2022,50247429,864.00,My Homecare Surrey,SOCIAL SERVICES RESIDENTIAL,Peoples Services,Home Care Services,A56019,0
London Borough of Sutton,05/09/2022,50247430,899.00,My Homecare Surrey,SOCIAL SERVICES RESIDENTIAL,Peoples Services,Home Care Services,A56019,0
London Borough of Sutton,05/09/2022,50247432,866.00,My Homecare Surrey,SOCIAL SERVICES RESIDENTIAL,Peoples Services,Home Care Services,A56019,0
London Borough of Sutton,05/09/2022,50247432,68.00,My Homecare Surrey,SOCIAL SERVICES RESIDENTIAL,Peoples Services,Home Care Services,A56019,0
London Borough of Sutton,05/09/2022,50247433,886.50,My Homecare Surrey,SOCIAL SERVICES RESIDENTIAL,Peoples Services,Home Care Services,A56019,0
London Borough of Sutton,05/09/2022,50247433,52.50,My Homecare Surrey,SOCIAL SERVICES RESIDENTIAL,Peoples Services,Home Care Services,A56019,0
London Borough of Sutton,05/09/2022,50247453,656.00,My Homecare Surrey,SOCIAL SERVICES RESIDENTIAL,Peoples Services,Home Care Services,A56019,0
London Borough of Sutton,05/09/2022,50247454,656.00,My Homecare Surrey,SOCIAL SERVICES RESIDENTIAL,Peoples Services,Home Care Services,A56019,0
London Borough of Sutton,05/09/2022,50247455,832.00,My Homecare Surrey,SOCIAL SERVICES RESIDENTIAL,Peoples Services,Home Care Services,A56019,0
London Borough of Sutton,05/09/2022,50247470,936.00,My Homecare Surrey,SOCIAL SERVICES RESIDENTIAL,Peoples Services,Home Care Services,A56019,0
London Borough of Sutton,05/09/2022,50247473,968.00,My Homecare Surrey,SOCIAL SERVICES RESIDENTIAL,Peoples Services,Home Care Services,A56019,0
London Borough of Sutton,05/09/2022,50247474,864.00,My Homecare Surrey,SOCIAL SERVICES RESIDENTIAL,Peoples Services,Home Care Services,A56019,0
London Borough of Sutton,05/09/2022,50247475,780.00,My Homecare Surrey,SOCIAL SERVICES RESIDENTIAL,Peoples Services,Home Care Services,A56019,0
London Borough of Sutton,05/09/2022,50247475,156.00,My Homecare Surrey,SOCIAL SERVICES RESIDENTIAL,Peoples Services,Home Care Services,A56019,0
London Borough of Sutton,05/09/2022,50247486,"1,000.00",My Homecare Surrey,SOCIAL SERVICES RESIDENTIAL,Peoples Services,Home Care Services,A56019,0
London Borough of Sutton,05/09/2022,50247487,864.00,My Homecare Surrey,SOCIAL SERVICES RESIDENTIAL,Peoples Services,Home Care Services,A56019,0
London Borough of Sutton,05/09/2022,20031690,895.00,REDACTED - PERSONAL DATA,SUNDRY SUPPLIER - HOUSING,Environment Housing and Neighbourhoods,Rent Deposit Scheme,B32179,0
London Borough of Sutton,05/09/2022,50247742,728.33,REDACTED - PERSONAL DATA,SUNDRY SUPPLIER - EDUCATION,Peoples Services,Miscellaneous Expenses,A49000,0
London Borough of Sutton,05/09/2022,20031654,"1,518.89",REDACTED - PERSONAL DATA,SUNDRY SUPPLIER - HOUSING,Environment Housing and Neighbourhoods,Rent Deposit Scheme,B32179,0
London Borough of Sutton,05/09/2022,20031606,"1,200.00",School of Noise,SUNDRY SUPPLIER - FINANCE,Health and Wellbeing,Arts Programme,A44286,0
London Borough of Sutton,05/09/2022,20031423,"1,096.98",Smartspace Property Solution Ltd,AGRICULTURAL & ESTATE SERVICES,Environment Housing and Neighbourhoods,Temporary Protection - Homeless Persons,A62028,0
London Borough of Sutton,05/09/2022,50253091,"2,093.00",Smith & Byford Ltd,CONSTRUCTION INDUSTRY,HRA,Payments to Contractors,C14000,0
London Borough of Sutton,05/09/2022,20031518,"5,756.70",Theori Housing,ACCOMMODATION BED & BREAKFAST,Environment Housing and Neighbourhoods,Bed & Breakfast,A56000,0
London Borough of Sutton,06/09/2022,50244890,643.65,ABC Pre-School Beddington LLP,GRANTS & EX GRATIA PAYMENTS,Peoples Services,Place Funding,A56110,0
London Borough of Sutton,06/09/2022,50244947,"1,863.68",ABC Pre-School Beddington LLP,GRANTS & EX GRATIA PAYMENTS,Peoples Services,Place Funding,A56110,0
London Borough of Sutton,06/09/2022,20031717,"9,086.18",ADAM HTT LTD,TAXI AND COACH HIRE,Peoples Services,Childrens Social Care Transport,A32009,0
London Borough of Sutton,06/09/2022,50245687,"159,396.66",All Saints Benhilton C Of E,GRANTS & EX GRATIA PAYMENTS,Peoples Services,Payments to Schools,A51013,0
London Borough of Sutton,06/09/2022,50245717,"10,752.00",All Saints Benhilton C Of E,GRANTS & EX GRATIA PAYMENTS,Peoples Services,Place Funding,A56110,0
London Borough of Sutton,06/09/2022,50245718,"9,408.00",All Saints Carshalton Primary School,GRANTS & EX GRATIA PAYMENTS,Peoples Services,Place Funding,A56110,0
London Borough of Sutton,06/09/2022,50247522,836.00,Ambient Support Limited,SOCIAL SERVICES RESIDENTIAL,Peoples Services,Supported Living,A56088,0
London Borough of Sutton,06/09/2022,50247523,836.00,Ambient Support Limited,SOCIAL SERVICES RESIDENTIAL,Peoples Services,Supported Living,A56088,0
London Borough of Sutton,06/09/2022,50245719,"13,532.40",Avenue Primary Acadamy,GRANTS & EX GRATIA PAYMENTS,Peoples Services,Place Funding,A56110,0
London Borough of Sutton,06/09/2022,50245751,700.00,Avenue Primary Acadamy,GRANTS & EX GRATIA PAYMENTS,Peoples Services,SEND Inclusion funding,A60038,0
London Borough of Sutton,06/09/2022,50245720,"14,942.03",Bandon Hill Primary School (Academy),GRANTS & EX GRATIA PAYMENTS,Peoples Services,Place Funding,A56110,0
London Borough of Sutton,06/09/2022,50245754,700.00,Bandon Hill Primary School (Academy),GRANTS & EX GRATIA PAYMENTS,Peoples Services,SEND Inclusion funding,A60038,0
London Borough of Sutton,06/09/2022,50245681,"105,063.94",Beddington Infants School,GRANTS & EX GRATIA PAYMENTS,Peoples Services,Payments to Schools,A51013,0
London Borough of Sutton,06/09/2022,50245722,"11,840.85",Beddington Infants School,GRANTS & EX GRATIA PAYMENTS,Peoples Services,Place Funding,A56110,0
London Borough of Sutton,06/09/2022,50245723,"6,766.20",Beddington Park Primary (Academy),GRANTS & EX GRATIA PAYMENTS,Peoples Services,Place Funding,A56110,0
London Borough of Sutton,06/09/2022,50245753,700.00,Beddington Park Primary (Academy),GRANTS & EX GRATIA PAYMENTS,Peoples Services,SEND Inclusion funding,A60038,0
London Borough of Sutton,06/09/2022,50244891,"1,416.03",Belmont Village Playgroup,GRANTS & EX GRATIA PAYMENTS,Peoples Services,Place Funding,A56110,0
London Borough of Sutton,06/09/2022,50244950,"2,819.25",Belmont Village Playgroup,GRANTS & EX GRATIA PAYMENTS,Peoples Services,Place Funding,A56110,0
London Borough of Sutton,06/09/2022,50245045,"2,571.35",Bizzy Bees Day Nursery,GRANTS & EX GRATIA PAYMENTS,Peoples Services,Place Funding,A56110,0
London Borough of Sutton,06/09/2022,50245022,845.78,REDACTED - PERSONAL DATA,TEMP STAFF & CONSULTANCY,Peoples Services,Place Funding,A56110,0
London Borough of Sutton,06/09/2022,50244894,"4,505.55",Bumpsa Daisies Nurserys,GRANTS & EX GRATIA PAYMENTS,Peoples Services,Place Funding,A56110,0
London Borough of Sutton,06/09/2022,50244959,"7,257.60",Bumpsa Daisies Nurserys,GRANTS & EX GRATIA PAYMENTS,Peoples Services,Place Funding,A56110,0
London Borough of Sutton,06/09/2022,50244897,643.65,Busy Bees Day Nurseries Ltd,GRANTS & EX GRATIA PAYMENTS,Peoples Services,Place Funding,A56110,0
London Borough of Sutton,06/09/2022,50244962,"9,067.52",Busy Bees Day Nurseries Ltd,GRANTS & EX GRATIA PAYMENTS,Peoples Services,Place Funding,A56110,0
London Borough of Sutton,06/09/2022,50244896,965.48,Busy Bees Day Nurseries Ltd,GRANTS & EX GRATIA PAYMENTS,Peoples Services,Place Funding,A56110,0
London Borough of Sutton,06/09/2022,50244961,"9,408.00",Busy Bees Day Nurseries Ltd,GRANTS & EX GRATIA PAYMENTS,Peoples Services,Place Funding,A56110,0
London Borough of Sutton,06/09/2022,20031714,"317,000.95",Buxton Building Contractors Ltd,CONSTRUCTION INDUSTRY,HRA,Payments to Contractors,C14000,0
London Borough of Sutton,06/09/2022,50245764,"11,286.00",Carew Academy,CHILDREN'S SERVICES - RESIDENTIAL,Peoples Services,Payments to Schools,A51013,0
London Borough of Sutton,06/09/2022,50245766,"24,460.20",Carew Academy,CHILDREN'S SERVICES - RESIDENTIAL,Peoples Services,Payments to Schools,A51013,0
London Borough of Sutton,06/09/2022,50245773,"67,781.18",Carew Academy,CHILDREN'S SERVICES - RESIDENTIAL,Peoples Services,Payments to Schools,A51013,0
London Borough of Sutton,06/09/2022,50244999,845.78,REDACTED - PERSONAL DATA,GRANTS & EX GRATIA PAYMENTS,Peoples Services,Place Funding,A56110,0
London Borough of Sutton,06/09/2022,50244957,"1,973.48",REDACTED - PERSONAL DATA,GRANTS & EX GRATIA PAYMENTS,Peoples Services,Place Funding,A56110,0
London Borough of Sutton,06/09/2022,50244966,"2,932.02",Cheam Baptist Church Pre-School,GRANTS & EX GRATIA PAYMENTS,Peoples Services,Place Funding,A56110,0
London Borough of Sutton,06/09/2022,50245725,"26,500.95",Cheam Common Infants School -ACADEMY,GRANTS & EX GRATIA PAYMENTS,Peoples Services,Place Funding,A56110,0
London Borough of Sutton,06/09/2022,50245727,"13,977.60",Cheam Park Farm Primary School,GRANTS & EX GRATIA PAYMENTS,Peoples Services,Place Funding,A56110,0
London Borough of Sutton,06/09/2022,50244967,"2,819.25",Chiltern Day Nursery,GRANTS & EX GRATIA PAYMENTS,Peoples Services,Place Funding,A56110,0
London Borough of Sutton,06/09/2022,50247525,"5,843.99",Choice Support,GRANTS & EX GRATIA PAYMENTS,Peoples Services,Supported Living,A56088,0
London Borough of Sutton,06/09/2022,50247525,887.35,Choice Support,GRANTS & EX GRATIA PAYMENTS,Peoples Services,Supported Living,A56088,0
London Borough of Sutton,06/09/2022,50247527,"6,350.26",Choice Support,GRANTS & EX GRATIA PAYMENTS,Peoples Services,Supported Living,A56088,0
London Borough of Sutton,06/09/2022,50247527,244.50,Choice Support,GRANTS & EX GRATIA PAYMENTS,Peoples Services,Supported Living,A56088,0
London Borough of Sutton,06/09/2022,50247527,633.82,Choice Support,GRANTS & EX GRATIA PAYMENTS,Peoples Services,Supported Living,A56088,0
London Borough of Sutton,06/09/2022,50247529,"6,920.93",Choice Support,GRANTS & EX GRATIA PAYMENTS,Peoples Services,Supported Living,A56088,0
London Borough of Sutton,06/09/2022,50247529,887.35,Choice Support,GRANTS & EX GRATIA PAYMENTS,Peoples Services,Supported Living,A56088,0
London Borough of Sutton,06/09/2022,50247530,"2,335.23",Choice Support,GRANTS & EX GRATIA PAYMENTS,Peoples Services,Supported Living,A56088,0
London Borough of Sutton,06/09/2022,50247530,"1,529.45",Choice Support,GRANTS & EX GRATIA PAYMENTS,Peoples Services,Supported Living,A56088,0
London Borough of Sutton,06/09/2022,50247530,244.50,Choice Support,GRANTS & EX GRATIA PAYMENTS,Peoples Services,Supported Living,A56088,0
London Borough of Sutton,06/09/2022,50247530,633.82,Choice Support,GRANTS & EX GRATIA PAYMENTS,Peoples Services,Supported Living,A56088,0
London Borough of Sutton,06/09/2022,50247531,"1,694.95",Choice Support,GRANTS & EX GRATIA PAYMENTS,Peoples Services,Supported Living,A56088,0
London Borough of Sutton,06/09/2022,50247531,"1,793.39",Choice Support,GRANTS & EX GRATIA PAYMENTS,Peoples Services,Supported Living,A56088,0
London Borough of Sutton,06/09/2022,50247531,244.50,Choice Support,GRANTS & EX GRATIA PAYMENTS,Peoples Services,Supported Living,A56088,0
London Borough of Sutton,06/09/2022,50247531,633.82,Choice Support,GRANTS & EX GRATIA PAYMENTS,Peoples Services,Supported Living,A56088,0
London Borough of Sutton,06/09/2022,50247532,"3,578.95",Choice Support,GRANTS & EX GRATIA PAYMENTS,Peoples Services,Supported Living,A56088,0
London Borough of Sutton,06/09/2022,50247532,"3,156.33",Choice Support,GRANTS & EX GRATIA PAYMENTS,Peoples Services,Supported Living,A56088,0
London Borough of Sutton,06/09/2022,50247532,244.50,Choice Support,GRANTS & EX GRATIA PAYMENTS,Peoples Services,Supported Living,A56088,0
London Borough of Sutton,06/09/2022,50247532,633.82,Choice Support,GRANTS & EX GRATIA PAYMENTS,Peoples Services,Supported Living,A56088,0
London Borough of Sutton,06/09/2022,50247533,"2,812.81",Choice Support,GRANTS & EX GRATIA PAYMENTS,Peoples Services,Supported Living,A56088,0
London Borough of Sutton,06/09/2022,50247533,"1,642.42",Choice Support,GRANTS & EX GRATIA PAYMENTS,Peoples Services,Supported Living,A56088,0
London Borough of Sutton,06/09/2022,50247533,244.50,Choice Support,GRANTS & EX GRATIA PAYMENTS,Peoples Services,Supported Living,A56088,0
London Borough of Sutton,06/09/2022,50247533,633.82,Choice Support,GRANTS & EX GRATIA PAYMENTS,Peoples Services,Supported Living,A56088,0
London Borough of Sutton,06/09/2022,50247534,887.35,Choice Support,GRANTS & EX GRATIA PAYMENTS,Peoples Services,Supported Living,A56088,0
London Borough of Sutton,06/09/2022,50247534,"5,015.36",Choice Support,GRANTS & EX GRATIA PAYMENTS,Peoples Services,Supported Living,A56088,0
London Borough of Sutton,06/09/2022,50255472,"5,834.29",Choice Support,GRANTS & EX GRATIA PAYMENTS,Peoples Services,Supported Living,A56088,0
London Borough of Sutton,06/09/2022,50255472,919.37,Choice Support,GRANTS & EX GRATIA PAYMENTS,Peoples Services,Supported Living,A56088,0
London Borough of Sutton,06/09/2022,50244900,"1,287.30",Christchurch Fledgelings Pre-School,GRANTS & EX GRATIA PAYMENTS,Peoples Services,Place Funding,A56110,0
London Borough of Sutton,06/09/2022,50244968,"7,048.13",Christchurch Fledgelings Pre-School,GRANTS & EX GRATIA PAYMENTS,Peoples Services,Place Funding,A56110,0
London Borough of Sutton,06/09/2022,50245721,"11,827.20",Barrow Hedges Primary School Academy,GRANTS & EX GRATIA PAYMENTS,Peoples Services,Place Funding,A56110,0
London Borough of Sutton,06/09/2022,50245752,700.00,Barrow Hedges Primary School Academy,GRANTS & EX GRATIA PAYMENTS,Peoples Services,SEND Inclusion funding,A60038,0
London Borough of Sutton,06/09/2022,50244969,"10,214.40",Collingwood School Ltd,GRANTS & EX GRATIA PAYMENTS,Peoples Services,Place Funding,A56110,0
London Borough of Sutton,06/09/2022,50244918,"1,609.13",Co-operative Childcare,GRANTS & EX GRATIA PAYMENTS,Peoples Services,Place Funding,A56110,0
London Borough of Sutton,06/09/2022,50245004,"14,378.18",Co-operative Childcare,GRANTS & EX GRATIA PAYMENTS,Peoples Services,Place Funding,A56110,0
London Borough of Sutton,06/09/2022,50245685,"174,548.46",Culvers House Primary School,GRANTS & EX GRATIA PAYMENTS,Peoples Services,Payments to Schools,A51013,0
London Borough of Sutton,06/09/2022,50245728,"7,795.20",Culvers House Primary School,GRANTS & EX GRATIA PAYMENTS,Peoples Services,Place Funding,A56110,0
London Borough of Sutton,06/09/2022,50245678,"254,143.43",Devonshire Primary School,GRANTS & EX GRATIA PAYMENTS,Peoples Services,Payments to Schools,A51013,0
London Borough of Sutton,06/09/2022,50245729,"9,021.60",Devonshire Primary School,GRANTS & EX GRATIA PAYMENTS,Peoples Services,Place Funding,A56110,0
London Borough of Sutton,06/09/2022,50244901,643.65,REDACTED - PERSONAL DATA,GRANTS & EX GRATIA PAYMENTS,Peoples Services,Place Funding,A56110,0
London Borough of Sutton,06/09/2022,50244973,563.85,REDACTED - PERSONAL DATA,GRANTS & EX GRATIA PAYMENTS,Peoples Services,Place Funding,A56110,0
London Borough of Sutton,06/09/2022,50245680,"197,787.27",Dorchester Primary School,GRANTS & EX GRATIA PAYMENTS,Peoples Services,Payments to Schools,A51013,0
London Borough of Sutton,06/09/2022,50245730,"12,122.78",Dorchester Primary School,GRANTS & EX GRATIA PAYMENTS,Peoples Services,Place Funding,A56110,0
London Borough of Sutton,06/09/2022,20032236,842.20,EDF Energy,UTILITIES,Environment Housing and Neighbourhoods,Electricity,A21000,0
London Borough of Sutton,06/09/2022,50244963,845.78,REDACTED - PERSONAL DATA,GRANTS & EX GRATIA PAYMENTS,Peoples Services,Place Funding,A56110,0
London Borough of Sutton,06/09/2022,20032246,898.74,E-on Energy,UTILITIES,Resources,Electricity,A21000,0
London Borough of Sutton,06/09/2022,50245054,"12,874.58",Epsom & St Helier Nhs Trust,OFFICE SERVICES,Peoples Services,Place Funding,A56110,0
London Borough of Sutton,06/09/2022,50244902,"2,574.60",Fairlands Pre-School,GRANTS & EX GRATIA PAYMENTS,Peoples Services,Place Funding,A56110,0
London Borough of Sutton,06/09/2022,50244975,"1,785.53",Fairlands Pre-School,GRANTS & EX GRATIA PAYMENTS,Peoples Services,Place Funding,A56110,0
London Borough of Sutton,06/09/2022,50245005,805.18,REDACTED - PERSONAL DATA,GRANTS & EX GRATIA PAYMENTS,Peoples Services,Place Funding,A56110,0
London Borough of Sutton,06/09/2022,50244903,"4,827.38",First Little Steps Day Nursery,GRANTS & EX GRATIA PAYMENTS,Peoples Services,Place Funding,A56110,0
London Borough of Sutton,06/09/2022,50244976,"4,228.88",First Little Steps Day Nursery,GRANTS & EX GRATIA PAYMENTS,Peoples Services,Place Funding,A56110,0
London Borough of Sutton,06/09/2022,50245010,"9,585.45",Mill House Day Nursery,GRANTS & EX GRATIA PAYMENTS,Peoples Services,Place Funding,A56110,0
London Borough of Sutton,06/09/2022,50245684,"108,593.32",Foresters Primary,GRANTS & EX GRATIA PAYMENTS,Peoples Services,Payments to Schools,A51013,0
London Borough of Sutton,06/09/2022,50245701,"21,000.00",Foresters Primary,GRANTS & EX GRATIA PAYMENTS,Peoples Services,Place Funding,A56110,0
London Borough of Sutton,06/09/2022,50245731,"2,537.33",Foresters Primary,GRANTS & EX GRATIA PAYMENTS,Peoples Services,Place Funding,A56110,0
London Borough of Sutton,06/09/2022,50244906,"1,930.95",Hidden Gems Daycare Ltd,GRANTS & EX GRATIA PAYMENTS,Peoples Services,Place Funding,A56110,0
London Borough of Sutton,06/09/2022,50244984,"3,494.40",Hidden Gems Daycare Ltd,GRANTS & EX GRATIA PAYMENTS,Peoples Services,Place Funding,A56110,0
London Borough of Sutton,06/09/2022,50244905,"4,827.38",Gifted Hands Childcare Ltd,GRANTS & EX GRATIA PAYMENTS,Peoples Services,Place Funding,A56110,0
London Borough of Sutton,06/09/2022,50244978,"5,644.80",Gifted Hands Childcare Ltd,GRANTS & EX GRATIA PAYMENTS,Peoples Services,Place Funding,A56110,0
London Borough of Sutton,06/09/2022,50244979,"16,128.00",Glaisdale Day Nursery,GRANTS & EX GRATIA PAYMENTS,Peoples Services,Place Funding,A56110,0
London Borough of Sutton,06/09/2022,50245732,"4,569.60",Green Wrythe Primary School,SCHOOL FUNDS,Peoples Services,Place Funding,A56110,0
London Borough of Sutton,06/09/2022,50245746,"23,117.85",Victor Seymour Infants School,GRANTS & EX GRATIA PAYMENTS,Peoples Services,Place Funding,A56110,0
London Borough of Sutton,06/09/2022,50244935,965.48,Greenwich Leisure Ltd,OFFICE SERVICES,Peoples Services,Place Funding,A56110,0
London Borough of Sutton,06/09/2022,50245036,"9,569.28",Greenwich Leisure Ltd,OFFICE SERVICES,Peoples Services,Place Funding,A56110,0
London Borough of Sutton,06/09/2022,50245676,"290,594.56",Hackbridge Primary School,GRANTS & EX GRATIA PAYMENTS,Peoples Services,Payments to Schools,A51013,0
London Borough of Sutton,06/09/2022,50245733,"25,091.33",Hackbridge Primary School,GRANTS & EX GRATIA PAYMENTS,Peoples Services,Place Funding,A56110,0
London Borough of Sutton,06/09/2022,50245051,523.58,REDACTED - PERSONAL DATA,GRANTS & EX GRATIA PAYMENTS,Peoples Services,Place Funding,A56110,0
London Borough of Sutton,06/09/2022,50245677,"160,380.56",Highview Primary School,GRANTS & EX GRATIA PAYMENTS,Peoples Services,Payments to Schools,A51013,0
London Borough of Sutton,06/09/2022,50245734,"14,784.00",Highview Primary School,GRANTS & EX GRATIA PAYMENTS,Peoples Services,Place Funding,A56110,0
London Borough of Sutton,06/09/2022,50245755,700.00,Highview Primary School,GRANTS & EX GRATIA PAYMENTS,Peoples Services,SEND Inclusion funding,A60038,0
London Borough of Sutton,06/09/2022,50244907,"1,930.95",Hillcrest Rising Stars Day Nursery Ltd,GRANTS & EX GRATIA PAYMENTS,Peoples Services,Place Funding,A56110,0
London Borough of Sutton,06/09/2022,50244985,"2,819.25",Hillcrest Rising Stars Day Nursery Ltd,GRANTS & EX GRATIA PAYMENTS,Peoples Services,Place Funding,A56110,0
London Borough of Sutton,06/09/2022,50244908,643.65,Holmwood Pre-School,GRANTS & EX GRATIA PAYMENTS,Peoples Services,Place Funding,A56110,0
London Borough of Sutton,06/09/2022,50244988,"2,598.40",Holmwood Pre-School,GRANTS & EX GRATIA PAYMENTS,Peoples Services,Place Funding,A56110,0
London Borough of Sutton,06/09/2022,50245688,"132,867.66",Holy Trinity C Of E Junior School,GRANTS & EX GRATIA PAYMENTS,Peoples Services,Payments to Schools,A51013,0
London Borough of Sutton,06/09/2022,50244909,"1,287.30",Hopscotch Day Nursery,GRANTS & EX GRATIA PAYMENTS,Peoples Services,Place Funding,A56110,0
London Borough of Sutton,06/09/2022,50244989,"5,920.43",Hopscotch Day Nursery,GRANTS & EX GRATIA PAYMENTS,Peoples Services,Place Funding,A56110,0
London Borough of Sutton,06/09/2022,50244910,"3,540.08",Humpty Dumpty Pre-School,GRANTS & EX GRATIA PAYMENTS,Peoples Services,Place Funding,A56110,0
London Borough of Sutton,06/09/2022,50244990,"5,074.65",Humpty Dumpty Pre-School,GRANTS & EX GRATIA PAYMENTS,Peoples Services,Place Funding,A56110,0
London Borough of Sutton,06/09/2022,50244949,"2,819.25",REDACTED - PERSONAL DATA,GRANTS & EX GRATIA PAYMENTS,Peoples Services,Place Funding,A56110,0
London Borough of Sutton,06/09/2022,50253398,624.04,James Askew & Son Ltd,BOOKS PUBLICATIONS STATIONERY,Health and Wellbeing,Books,A43050,0
London Borough of Sutton,06/09/2022,50244911,"3,411.35",Jancett Childcare & Jace Training Ltd,GRANTS & EX GRATIA PAYMENTS,Peoples Services,Place Funding,A56110,0
London Borough of Sutton,06/09/2022,50244912,643.65,Jancett Childcare & Jace Training Ltd,GRANTS & EX GRATIA PAYMENTS,Peoples Services,Place Funding,A56110,0
London Borough of Sutton,06/09/2022,50244913,643.65,Jancett Childcare & Jace Training Ltd,GRANTS & EX GRATIA PAYMENTS,Peoples Services,Place Funding,A56110,0
London Borough of Sutton,06/09/2022,50244993,"15,985.15",Jancett Childcare & Jace Training Ltd,GRANTS & EX GRATIA PAYMENTS,Peoples Services,Place Funding,A56110,0
London Borough of Sutton,06/09/2022,50244994,"9,867.38",Jancett Childcare & Jace Training Ltd,GRANTS & EX GRATIA PAYMENTS,Peoples Services,Place Funding,A56110,0
London Borough of Sutton,06/09/2022,50244995,"10,149.30",Jancett Childcare & Jace Training Ltd,GRANTS & EX GRATIA PAYMENTS,Peoples Services,Place Funding,A56110,0
London Borough of Sutton,06/09/2022,50244996,"12,780.60",Jancett Childcare & Jace Training Ltd,GRANTS & EX GRATIA PAYMENTS,Peoples Services,Place Funding,A56110,0
London Borough of Sutton,06/09/2022,50244958,"1,218.56",REDACTED - PERSONAL DATA,GRANTS & EX GRATIA PAYMENTS,Peoples Services,Place Funding,A56110,0
London Borough of Sutton,06/09/2022,50244914,"3,046.61",Jelly Beans Pre-School,GRANTS & EX GRATIA PAYMENTS,Peoples Services,Place Funding,A56110,0
London Borough of Sutton,06/09/2022,50244997,"18,108.99",Jelly Beans Pre-School,GRANTS & EX GRATIA PAYMENTS,Peoples Services,Place Funding,A56110,0
London Borough of Sutton,06/09/2022,50245025,563.85,REDACTED - PERSONAL DATA,GRANTS & EX GRATIA PAYMENTS,Peoples Services,Place Funding,A56110,0
London Borough of Sutton,06/09/2022,20031834,560.00,Keen2Go,SOCIAL SERVICES RESIDENTIAL,Peoples Services,Play Groups,A56111,0
London Borough of Sutton,06/09/2022,20031836,828.00,Keen2Go,SOCIAL SERVICES RESIDENTIAL,Peoples Services,Play Groups,A56111,0
London Borough of Sutton,06/09/2022,20031857,684.00,Keen2Go,SOCIAL SERVICES RESIDENTIAL,Peoples Services,Play Groups,A56111,0
London Borough of Sutton,06/09/2022,20031861,"1,148.00",Keen2Go,SOCIAL SERVICES RESIDENTIAL,Peoples Services,Play Groups,A56111,0
London Borough of Sutton,06/09/2022,20031972,"1,518.00",Keen2Go,SOCIAL SERVICES RESIDENTIAL,Peoples Services,Play Groups,A56111,0
London Borough of Sutton,06/09/2022,20032145,896.00,Keen2Go,SOCIAL SERVICES RESIDENTIAL,Peoples Services,Play Groups,A56111,0
London Borough of Sutton,06/09/2022,50244951,"1,691.55",REDACTED - PERSONAL DATA,GRANTS & EX GRATIA PAYMENTS,Peoples Services,Place Funding,A56110,0
London Borough of Sutton,06/09/2022,50244954,"3,494.40",Kids Unlimited Day Nursery ,GRANTS & EX GRATIA PAYMENTS,Peoples Services,Place Funding,A56110,0
London Borough of Sutton,06/09/2022,50244955,"6,988.80",Kids Unlimited Day Nursery ,GRANTS & EX GRATIA PAYMENTS,Peoples Services,Place Funding,A56110,0
London Borough of Sutton,06/09/2022,50244974,"4,792.73",Kingston College,GRANTS & EX GRATIA PAYMENTS,Peoples Services,Place Funding,A56110,0
London Borough of Sutton,06/09/2022,50244916,"2,574.60",Lavender Play School,GRANTS & EX GRATIA PAYMENTS,Peoples Services,Place Funding,A56110,0
London Borough of Sutton,06/09/2022,50244917,"4,183.73",Lavender Play School,GRANTS & EX GRATIA PAYMENTS,Peoples Services,Place Funding,A56110,0
London Borough of Sutton,06/09/2022,50245001,"2,556.12",Lavender Play School,GRANTS & EX GRATIA PAYMENTS,Peoples Services,Place Funding,A56110,0
London Borough of Sutton,06/09/2022,50245002,"8,175.83",Lavender Play School,GRANTS & EX GRATIA PAYMENTS,Peoples Services,Place Funding,A56110,0
London Borough of Sutton,06/09/2022,50245726,"12,686.63",Cheam Fields,GRANTS & EX GRATIA PAYMENTS,Peoples Services,Place Funding,A56110,0
London Borough of Sutton,06/09/2022,50245724,"12,902.40",Brookfield Primary (Academy),GRANTS & EX GRATIA PAYMENTS,Peoples Services,Place Funding,A56110,0
London Borough of Sutton,06/09/2022,50245703,"95,490.00",Limes College (Academy),GRANTS & EX GRATIA PAYMENTS,Peoples Services,Top-up Funding,A51016,0
London Borough of Sutton,06/09/2022,50245704,"22,968.00",Limes College (Academy),GRANTS & EX GRATIA PAYMENTS,Peoples Services,Top-up extra funding,A60032,0
London Borough of Sutton,06/09/2022,50245705,"11,053.00",Limes College (Academy),GRANTS & EX GRATIA PAYMENTS,Peoples Services,Top-up individual funding,A60033,0
London Borough of Sutton,06/09/2022,50245706,"32,944.00",Limes College (Academy),GRANTS & EX GRATIA PAYMENTS,Peoples Services,Place extra funding,A56124,0
London Borough of Sutton,06/09/2022,50245707,"8,442.00",Limes College (Academy),GRANTS & EX GRATIA PAYMENTS,Peoples Services,Payment to PRU,A56109,0
London Borough of Sutton,06/09/2022,50245756,"19,285.65",Limes College (Academy),GRANTS & EX GRATIA PAYMENTS,Peoples Services,Payments to Schools,A51013,0
